Workbook

Sheet Analyse
D1: 0 | AC1: 3321 | AD1: 4371 | AE1: 524536 | AJ1: 527 | AK1: 6066 | AL1: 519017 | AM1: 0 | AP1: 2419 | AQ1: 2069 | AR1: 519301 | AV1: 17731 | AW1: 5484 | AX1: 531492 | BB1: 23679 | BC1: 2597 | BD1: 552890 | BI1: 9353 | BJ1: 1312 | BK1: 560774 | BR1: 4496 | BS1: 7114 | BT1: 558327
E2: 465991 | F2: 1850 | G2: 4877 | H2: 528687 | J2: 141 Ref | L2: 403 | M2: 3071 | N2: 532162 | P2: 178 Ref | V2: 77 | W2: 5362 | X2: 525478 | Z2: 93 Ref | AC2: 3346 | AD2: 4371 | AE2: 524536 | AJ2: 527 | AK2: 6066 | AL2: 519017 | AP2: 2419 | AQ2: 2069 | AR2: 519301 | AV2: 17731 | AW2: 5484 | AX2: 531526 | BB2: 23679 | BC2: 2597 | BD2: 552852 | BI2: 9333 | BJ2: 1312 | BK2: 560796 | BR2: 4496 | BS2: 7114 | BT2: 558327
A3: IPL / IPC de 07 2015 | B3: 2763 Ref | C3: Ref Fab (PNR) | D3: Désignation | E3: Stock fin S 40 | F3: Entrées S 41 | G3: Sorties S 41 | H3: Stock fin S 41 | I3: Stock S40 + E S41 - S S41 | J3: Ecart I - J | K3: Remarques | L3: Entrées S42 | M3: Sorties S42 | N3: Stocks fin S42 | O3: Stock S41 + E S42 - S S42 | P3: Ecart O - P | Q3: Remarques | R3: Ref affectées a du stock INDUS | V3: Entrées S43 | W3: Sorties S43 | X3: Stocks fin S43 | Y3: Stock S42 + E S43 - S S43 | Z3: Ecart X - Y | AA3: Remarques | AB3: Test somme P+Z | AC3: Entrées S44 | AD3: Sorties S44 | AE3: Stocks fin S44 | AF3: Stock S43 + E S44 - S S44 | AG3: Ecart AE - AF | AH3: Remarques | AJ3: Entrées S45 | AK3: Sorties S45 | AL3: Stocks fin S45 | AM3: Stock S44 + E S45 - S S45 | AN3: Ecart AL - AM | AO3: Remarques | AP3: Entrées S46 | AQ3: Sorties S46 | AR3: Stocks fin S46 | AS3: Stock S45 + E S46 - S S46 | AT3: Ecart AR - AS | AU3: Remarques | AV3: Entrées S47 | AW3: Sorties S47 | AX3: Stocks fin S47 | AY3: Stock S46 + E S47 - S S47 | AZ3: Ecart AX - AY | BA3: Remarques | BB3: Entrées S48 | BC3: Sorties S48 | BD3: Stocks fin S48 | BE3: Stock S47 + E S48 - S S48 | BF3: Ecart BD - BE | BG3: Remarques SN | BH3: Remarque AIA | BI3: Entrées S49 | BJ3: Sorties S49 | BK3: Stocks fin S49 | BL3: Stock S48 + E S49 - S S49 | BM3: Ecart BJ- BK | BN3: Remarques SN | BO3: Remarque AIA | BP3: Point AIA/SN | BQ3: Conclusion / ecart | BR3: Entrées S50 | BS3: Sorties S50 | BT3: Stocks fin S50 | BU3: Stock S49 + E S50 - S S50 | BV3: Ecart BT- BU | BW3: Remarques SN | BX3: Remarque AIA | BY3: Point AIA/SN | BZ3: Conclusion / ecart | CA3: Entrées S51 | CB3: Sorties S51 | CC3: Stocks fin S51 | CD3: Stock S50 + E S51 - S S51 | CE3: Ecart CC- CD | CF3: Remarque AIA | CG3: Entrées S52 | CH3: Sorties S52 | CI3: Stocks fin S53 | CJ3: Stock S51 + E S52- S S52 | CK3: Ecart CI- CJ | CL3: Remarque AIA | CM3: Entrées S01 | CN3: Sorties S01 | CO3: Stocks fin S01 | CP3: Stock S53 + E S01- S 01 | CQ3: Ecart Co- Cp | CR3: Remarque AIA | CS3: Entrées S02 | CT3: Sorties S02 | CU3: Stocks fin S02 | CV3: Stock S01 + E S02- S 02 | CW3: Ecart CU- CV | CX3: Remarque AIA
B4: Snecma | C4: 06003 | D4: EMBOUT A ROTULE | E4: 22 | F4: 0 | G4: 1 | H4: 21 | I4: 21 | J4: 0 | L4: 0 | M4: 0 | N4: 21 | O4: 21 | P4: 0 | V4: 0 | W4: 0 | X4: 21 | Y4: 21 | Z4: 0 | AC4: 0 | AD4: 0 | AE4: 21 | AF4: 21 | AG4: 0 | AJ4: 0 | AK4: 0 | AL4: 21 | AM4: 21 | AN4: 0 | AP4: 29 | AQ4: 0 | AR4: 50 | AS4: 50 | AT4: 0 | AV4: 0 | AW4: 0 | AX4: 50 | AY4: 50 | AZ4: 0 | BB4: 51 | BC4: 0 | BD4: 101 | BE4: 101 | BF4: 0 | BI4: 0 | BJ4: 5 | BK4: 96 | BL4: 96 | BM4: 0 | BR4: 0 | BS4: 0 | BT4: 96 | BU4: 96 | BV4: 0 | CA4: 0 | CB4: 2 | CC4: =VLOOKUP(C4,[1]TCD!$D:$E,2,0) -> 94 | CD4: =BT4+CA4-CB4 -> 94 | CE4: =CC4-CD4 -> 0 | CG4: 20 | CH4: 0 | CI4: 114 | CJ4: =CC4+CG4-CH4 -> 114 | CK4: =CI4-CJ4 -> 0 | CM4: 0 | CN4: 0 | CO4: 114 | CP4: =CI4+CM4-CN4 -> 114 | CQ4: =CO4-CP4 -> 0 | CS4: 0 | CT4: 0 | CU4: 114 | CV4: =CO4+CS4-CT4 -> 114 | CW4: =CU4-CV4 -> 0
A5: Oui | B5: Snecma | C5: 25907 | D5: JOINT DE PYROMETRE | E5: 66 | F5: 0 | G5: 0 | H5: 66 | I5: 66 | J5: 0 | L5: 0 | M5: 0 | N5: 66 | O5: 66 | P5: 0 | Q5: Ecart de stock avec aucune entree ni sortie | S5: corrigé / format ref (nombre/texte) | V5: 0 | W5: 0 | X5: 66 | Y5: 66 | Z5: 0 | AC5: 0 | AD5: 0 | AE5: 66 | AF5: 66 | AG5: 0 | AJ5: 0 | AK5: 0 | AL5: 66 | AM5: 66 | AN5: 0 | AP5: 0 | AQ5: 0 | AR5: 66 | AS5: 66 | AT5: 0 | AV5: 0 | AW5: 0 | AX5: 66 | AY5: 66 | AZ5: 0 | BB5: 0 | BC5: 0 | BD5: 66 | BE5: 66 | BF5: 0 | BI5: 0 | BJ5: 0 | BK5: 66 | BL5: 66 | BM5: 0 | BR5: 0 | BS5: 0 | BT5: 66 | BU5: 66 | BV5: 0 | CA5: 0 | CB5: 0 | CC5: =VLOOKUP(C5,[1]TCD!$D:$E,2,0) -> 66 | CD5: =BT5+CA5-CB5 -> 66 | CE5: =CC5-CD5 -> 0 | CG5: 0 | CH5: 0 | CI5: 66 | CJ5: =CC5+CG5-CH5 -> 66 | CK5: =CI5-CJ5 -> 0 | CM5: 0 | CN5: 0 | CO5: 66 | CP5: =CI5+CM5-CN5 -> 66 | CQ5: =CO5-CP5 -> 0 | CS5: 0 | CT5: 0 | CU5: 66 | CV5: =CO5+CS5-CT5 -> 66 | CW5: =CU5-CV5 -> 0
A6: Oui | C6: 70206 | E6: 161 | F6: 0 | G6: 0 | H6: 161 | I6: 161 | J6: 0 | L6: 0 | M6: 0 | N6: 161 | O6: 161 | P6: 0 | V6: 0 | W6: 0 | X6: 161 | Y6: 161 | Z6: 0 | AC6: 0 | AD6: 0 | AE6: 161 | AF6: 161 | AG6: 0 | AJ6: 0 | AK6: 0 | AL6: 161 | AM6: 161 | AN6: 0 | AP6: 0 | AQ6: 0 | AR6: 161 | AS6: 161 | AT6: 0 | AV6: 0 | AW6: 0 | AX6: 161 | AY6: 161 | AZ6: 0 | BB6: 0 | BC6: 0 | BD6: 161 | BE6: 161 | BF6: 0 | BI6: 0 | BJ6: 0 | BK6: 161 | BL6: 161 | BM6: 0 | BR6: 0 | BS6: 0 | BT6: 161 | BU6: 161 | BV6: 0 | CA6: 0 | CB6: 0 | CC6: =VLOOKUP(C6,[1]TCD!$D:$E,2,0) -> 161 | CD6: 161 | CE6: 0 | CG6: 0 | CH6: 0 | CI6: 161 | CJ6: 161 | CK6: 0 | CM6: 0 | CN6: 0 | CO6: 161 | CP6: 161 | CQ6: 0 | CS6: 0 | CT6: 0 | CU6: 161 | CV6: 161 | CW6: 0
A7: Oui | B7: Snecma | C7: 70515 | D7: BOUCHON POUR SUB-MINIATURE | E7: 1 | F7: 0 | G7: 0 | H7: 1 | I7: 1 | J7: 0 | L7: 0 | M7: 0 | N7: 1 | O7: 1 | P7: 0 | Q7: Ecart de stock avec aucune entree ni sortie | S7: corrigé / format ref (nombre/texte) | V7: 0 | W7: 0 | X7: 1 | Y7: 1 | Z7: 0 | AC7: 0 | AD7: 0 | AE7: 1 | AF7: 1 | AG7: 0 | AJ7: 0 | AK7: 0 | AL7: 1 | AM7: 1 | AN7: 0 | AP7: 0 | AQ7: 0 | AR7: 1 | AS7: 1 | AT7: 0 | AV7: 0 | AW7: 0 | AX7: 1 | AY7: 1 | AZ7: 0 | BB7: 0 | BC7: 0 | BD7: 1 | BE7: 1 | BF7: 0 | BI7: 0 | BJ7: 0 | BK7: 1 | BL7: 1 | BM7: 0 | BR7: 0 | BS7: 0 | BT7: 1 | BU7: 1 | BV7: 0 | CA7: 0 | CB7: 0 | CC7: =VLOOKUP(C7,[1]TCD!$D:$E,2,0) -> 1 | CD7: 1 | CE7: 0 | CG7: 0 | CH7: 0 | CI7: 1 | CJ7: 1 | CK7: 0 | CM7: 0 | CN7: 0 | CO7: 1 | CP7: 1 | CQ7: 0 | CS7: 0 | CT7: 0 | CU7: 1 | CV7: 1 | CW7: 0
A8: Oui | B8: Snecma | C8: 602991 | D8: ROULEMANT A BILLES | E8: 36 | F8: 0 | G8: 0 | H8: 36 | I8: 36 | J8: 0 | L8: 0 | M8: 2 | N8: 34 | O8: 34 | P8: 0 | V8: 0 | W8: 0 | X8: 34 | Y8: 34 | Z8: 0 | AC8: 0 | AD8: 2 | AE8: 32 | AF8: 32 | AG8: 0 | AJ8: 0 | AK8: 0 | AL8: 32 | AM8: 32 | AN8: 0 | AP8: 0 | AQ8: 0 | AR8: 32 | AS8: 32 | AT8: 0 | AV8: 0 | AW8: 0 | AX8: 32 | AY8: 32 | AZ8: 0 | BB8: 0 | BC8: 0 | BD8: 32 | BE8: 32 | BF8: 0 | BI8: 0 | BJ8: 2 | BK8: 30 | BL8: 30 | BM8: 0 | BR8: 0 | BS8: 0 | BT8: 30 | BU8: 30 | BV8: 0 | CA8: 0 | CB8: 2 | CC8: =VLOOKUP(C8,[1]TCD!$D:$E,2,0) -> 28 | CD8: 28 | CE8: 0 | CG8: 0 | CH8: 0 | CI8: 28 | CJ8: 28 | CK8: 0 | CM8: 0 | CN8: 2 | CO8: 26 | CP8: 26 | CQ8: 0 | CS8: 0 | CT8: 2 | CU8: 24 | CV8: 24 | CW8: 0
A9: Oui | B9: Snecma | C9: 2000081 | D9: SERRE FIL | E9: 3310 | F9: 0 | G9: 0 | H9: 3310 | I9: 3310 | J9: 0 | L9: 0 | M9: 0 | N9: 3310 | O9: 3310 | P9: 0 | Q9: Ecart de stock avec aucune entree ni sortie | S9: corrigé / format ref (nombre/texte) | V9: 0 | W9: 0 | X9: 3310 | Y9: 3310 | Z9: 0 | AC9: 0 | AD9: 0 | AE9: 3310 | AF9: 3310 | AG9: 0 | AJ9: 0 | AK9: 0 | AL9: 3310 | AM9: 3310 | AN9: 0 | AP9: 0 | AQ9: 0 | AR9: 3310 | AS9: 3310 | AT9: 0 | AV9: 0 | AW9: 0 | AX9: 3310 | AY9: 3310 | AZ9: 0 | BB9: 0 | BC9: 0 | BD9: 3310 | BE9: 3310 | BF9: 0 | BI9: 0 | BJ9: 0 | BK9: 3310 | BL9: 3310 | BM9: 0 | BR9: 0 | BS9: 0 | BT9: 3310 | BU9: 3310 | BV9: 0 | CA9: 0 | CB9: 0 | CC9: =VLOOKUP(C9,[1]TCD!$D:$E,2,0) -> 3310 | CD9: 3310 | CE9: 0 | CG9: 0 | CH9: 0 | CI9: 3310 | CJ9: 3310 | CK9: 0 | CM9: 0 | CN9: 0 | CO9: 3310 | CP9: 3310 | CQ9: 0 | CS9: 0 | CT9: 0 | CU9: 3310 | CV9: 3310 | CW9: 0
A10: Oui | B10: Snecma | C10: 2010065 | D10: BAGUE PTFE | E10: 304 | F10: 0 | G10: 0 | H10: 304 | I10: 304 | J10: 0 | L10: 0 | M10: 0 | N10: 304 | O10: 304 | P10: 0 | Q10: Ecart de stock avec aucune entree ni sortie | S10: corrigé / format ref (nombre/texte) | V10: 0 | W10: 0 | X10: 304 | Y10: 304 | Z10: 0 | AC10: 0 | AD10: 0 | AE10: 304 | AF10: 304 | AG10: 0 | AJ10: 0 | AK10: 0 | AL10: 304 | AM10: 304 | AN10: 0 | AP10: 0 | AQ10: 0 | AR10: 304 | AS10: 304 | AT10: 0 | AV10: 0 | AW10: 0 | AX10: 304 | AY10: 304 | AZ10: 0 | BB10: 0 | BC10: 0 | BD10: 304 | BE10: 304 | BF10: 0 | BI10: 0 | BJ10: 0 | BK10: 304 | BL10: 304 | BM10: 0 | BR10: 0 | BS10: 0 | BT10: 304 | BU10: 304 | BV10: 0 | CA10: 0 | CB10: 0 | CC10: =VLOOKUP(C10,[1]TCD!$D:$E,2,0) -> 304 | CD10: 304 | CE10: 0 | CG10: 0 | CH10: 0 | CI10: 304 | CJ10: 304 | CK10: 0 | CM10: 0 | CN10: 0 | CO10: 304 | CP10: 304 | CQ10: 0 | CS10: 0 | CT10: 0 | CU10: 304 | CV10: 304 | CW10: 0
A11: Oui | B11: Snecma | C11: 3153008 | D11: COLLIER | E11: 519 | F11: 0 | G11: 10 | H11: 509 | I11: 509 | J11: 0 | L11: 0 | M11: 0 | N11: 509 | O11: 509 | P11: 0 | Q11: Ecart de stock avec aucune entree ni sortie | S11: corrigé / format ref (nombre/texte) | V11: 0 | W11: 0 | X11: 509 | Y11: 509 | Z11: 0 | AC11: 0 | AD11: 0 | AE11: 509 | AF11: 509 | AG11: 0 | AJ11: 0 | AK11: 0 | AL11: 509 | AM11: 509 | AN11: 0 | AP11: 0 | AQ11: 0 | AR11: 509 | AS11: 509 | AT11: 0 | AV11: 0 | AW11: 0 | AX11: 509 | AY11: 509 | AZ11: 0 | BB11: 0 | BC11: 0 | BD11: 509 | BE11: 509 | BF11: 0 | BI11: 0 | BJ11: 0 | BK11: 509 | BL11: 509 | BM11: 0 | BR11: 0 | BS11: 0 | BT11: 509 | BU11: 509 | BV11: 0 | CA11: 0 | CB11: 0 | CC11: =VLOOKUP(C11,[1]TCD!$D:$E,2,0) -> 509 | CD11: 509 | CE11: 0 | CG11: 0 | CH11: 0 | CI11: 509 | CJ11: 509 | CK11: 0 | CM11: 0 | CN11: 0 | CO11: 509 | CP11: 509 | CQ11: 0 | CS11: 0 | CT11: 0 | CU11: 509 | CV11: 509 | CW11: 0
A12: Oui | B12: Snecma | C12: 7290107 | E12: 0 | F12: 0 | G12: 0 | H12: 0 | I12: 0 | J12: 0 | L12: 0 | M12: 0 | N12: 0 | O12: 0 | P12: 0 | V12: 0 | W12: 0 | X12: 0 | Y12: 0 | Z12: 0 | AC12: 0 | AD12: 0 | AE12: 0 | AF12: 0 | AG12: 0 | AJ12: 0 | AK12: 0 | AL12: 0 | AM12: 0 | AN12: 0 | AP12: 0 | AQ12: 0 | AR12: 0 | AS12: 0 | AT12: 0 | AV12: 0 | AW12: 0 | AX12: 0 | AY12: 0 | AZ12: 0 | BB12: 0 | BC12: 0 | BD12: 0 | BE12: 0 | BF12: 0 | BI12: 0 | BJ12: 0 | BK12: 0 | BL12: 0 | BM12: 0 | BS12: 0 | BT12: 0 | BU12: 0 | BV12: 0 | CA12: 0 | CB12: 0 | CC12: 0 | CD12: 0 | CE12: 0 | CG12: 0 | CH12: 0 | CI12: 0 | CJ12: 0 | CK12: 0 | CM12: 0 | CN12: 0 | CO12: 0 | CP12: 0 | CQ12: 0 | CS12: 0 | CT12: 0 | CU12: 0 | CV12: 0 | CW12: 0
A13: Oui | B13: Snecma | C13: 7440905 | D13: ECROU AUTOFREINANT | E13: 63 | F13: 0 | G13: 0 | H13: 63 | I13: 63 | J13: 0 | L13: 0 | M13: 0 | N13: 63 | O13: 63 | P13: 0 | Q13: Ecart de stock avec aucune entree ni sortie | S13: corrigé / format ref (nombre/texte) | V13: 0 | W13: 0 | X13: 63 | Y13: 63 | Z13: 0 | AC13: 0 | AD13: 0 | AE13: 63 | AF13: 63 | AG13: 0 | AJ13: 0 | AK13: 0 | AL13: 63 | AM13: 63 | AN13: 0 | AP13: 0 | AQ13: 0 | AR13: 63 | AS13: 63 | AT13: 0 | AV13: 0 | AW13: 0 | AX13: 63 | AY13: 63 | AZ13: 0 | BB13: 0 | BC13: 0 | BD13: 63 | BE13: 63 | BF13: 0 | BI13: 0 | BJ13: 0 | BK13: 63 | BL13: 63 | BM13: 0 | BR13: 0 | BS13: 0 | BT13: 63 | BU13: 63 | BV13: 0 | CA13: 0 | CB13: 0 | CC13: =VLOOKUP(C13,[1]TCD!$D:$E,2,0) -> 63 | CD13: 63 | CE13: 0 | CG13: 0 | CH13: 0 | CI13: 63 | CJ13: 63 | CK13: 0 | CM13: 0 | CN13: 0 | CO13: 63 | CP13: 63 | CQ13: 0 | CS13: 0 | CT13: 0 | CU13: 63 | CV13: 63 | CW13: 0
A14: Oui | B14: Snecma | C14: 8607570 | E14: 0 | F14: 0 | G14: 0 | H14: 0 | I14: 0 | J14: 0 | L14: 0 | M14: 0 | N14: 0 | O14: 0 | P14: 0 | V14: 0 | W14: 0 | X14: 0 | Y14: 0 | Z14: 0 | AC14: 0 | AD14: 0 | AE14: 0 | AF14: 0 | AG14: 0 | AJ14: 0 | AK14: 0 | AL14: 0 | AM14: 0 | AN14: 0 | AP14: 0 | AQ14: 0 | AR14: 0 | AS14: 0 | AT14: 0 | AV14: 0 | AW14: 0 | AX14: 0 | AY14: 0 | AZ14: 0 | BB14: 0 | BC14: 0 | BD14: 0 | BE14: 0 | BF14: 0 | BI14: 0 | BJ14: 0 | BK14: 0 | BL14: 0 | BM14: 0 | BS14: 0 | BT14: 0 | BU14: 0 | BV14: 0 | CA14: 0 | CB14: 0 | CC14: 0 | CD14: 0 | CE14: 0 | CG14: 0 | CH14: 0 | CI14: 0 | CJ14: 0 | CK14: 0 | CM14: 0 | CN14: 0 | CO14: 0 | CP14: 0 | CQ14: 0 | CS14: 0 | CT14: 0 | CU14: 0 | CV14: 0 | CW14: 0
A15: Oui | B15: Snecma | C15: 37189001 | E15: 72 | F15: 0 | G15: 0 | H15: 72 | I15: 72 | J15: 0 | L15: 0 | M15: 0 | N15: 72 | O15: 72 | P15: 0 | Q15: Ecart de stock avec aucune entree ni sortie | S15: corrigé / format ref (nombre/texte) | V15: 0 | W15: 0 | X15: 72 | Y15: 72 | Z15: 0 | AC15: 0 | AD15: 0 | AE15: 72 | AF15: 72 | AG15: 0 | AJ15: 0 | AK15: 0 | AL15: 72 | AM15: 72 | AN15: 0 | AP15: 0 | AQ15: 0 | AR15: 72 | AS15: 72 | AT15: 0 | AV15: 0 | AW15: 0 | AX15: 72 | AY15: 72 | AZ15: 0 | BB15: 0 | BC15: 0 | BD15: 72 | BE15: 72 | BF15: 0 | BI15: 0 | BJ15: 0 | BK15: 72 | BL15: 72 | BM15: 0 | BR15: 0 | BS15: 0 | BT15: 72 | BU15: 72 | BV15: 0 | CA15: 0 | CB15: 0 | CC15: =VLOOKUP(C15,[1]TCD!$D:$E,2,0) -> 72 | CD15: 72 | CE15: 0 | CG15: 0 | CH15: 0 | CI15: 72 | CJ15: 72 | CK15: 0 | CM15: 0 | CN15: 0 | CO15: 72 | CP15: 72 | CQ15: 0 | CS15: 0 | CT15: 0 | CU15: 72 | CV15: 72 | CW15: 0
A16: Oui | B16: Snecma | C16: 37199001 | E16: 20 | F16: 0 | G16: 0 | H16: 20 | I16: 20 | J16: 0 | L16: 0 | M16: 0 | N16: 20 | O16: 20 | P16: 0 | Q16: Ecart de stock avec aucune entree ni sortie | S16: corrigé / format ref (nombre/texte) | V16: 0 | W16: 0 | X16: 20 | Y16: 20 | Z16: 0 | AC16: 0 | AD16: 0 | AE16: 20 | AF16: 20 | AG16: 0 | AJ16: 0 | AK16: 0 | AL16: 20 | AM16: 20 | AN16: 0 | AP16: 0 | AQ16: 0 | AR16: 20 | AS16: 20 | AT16: 0 | AV16: 0 | AW16: 0 | AX16: 20 | AY16: 20 | AZ16: 0 | BB16: 0 | BC16: 0 | BD16: 20 | BE16: 20 | BF16: 0 | BI16: 0 | BJ16: 0 | BK16: 20 | BL16: 20 | BM16: 0 | BR16: 0 | BS16: 0 | BT16: 20 | BU16: 20 | BV16: 0 | CA16: 0 | CB16: 0 | CC16: =VLOOKUP(C16,[1]TCD!$D:$E,2,0) -> 20 | CD16: 20 | CE16: 0 | CG16: 0 | CH16: 0 | CI16: 20 | CJ16: 20 | CK16: 0 | CM16: 0 | CN16: 0 | CO16: 20 | CP16: 20 | CQ16: 0 | CS16: 0 | CT16: 0 | CU16: 20 | CV16: 20 | CW16: 0
A17: Oui | B17: Snecma | C17: 01320040008 | E17: 0 | F17: 0 | G17: 0 | H17: 5300 | I17: 0 | J17: 5300 | K17: Pas d' Entrées et pas de Sorties mais différence de Stock! | L17: 0 | M17: 0 | N17: 5300 | O17: 5300 | P17: 0 | Q17: Ecart de stock avec aucune entree ni sortie | V17: 0 | W17: 0 | X17: 5300 | Y17: 5300 | Z17: 0 | AC17: 0 | AD17: 0 | AE17: 5300 | AF17: 5300 | AG17: 0 | AJ17: 0 | AK17: 0 | AL17: 5300 | AM17: 5300 | AN17: 0 | AP17: 0 | AQ17: 0 | AR17: 5300 | AS17: 5300 | AT17: 0 | AV17: 0 | AW17: 6 | AX17: 5294 | AY17: 5294 | AZ17: 0 | BB17: 0 | BC17: 0 | BD17: 5294 | BE17: 5294 | BF17: 0 | BI17: 0 | BJ17: 0 | BK17: 5294 | BL17: 5294 | BM17: 0 | BR17: 3 | BS17: 0 | BT17: 5297 | BU17: 5297 | BV17: 0 | CA17: 0 | CB17: 0 | CC17: =VLOOKUP(C17,[1]TCD!$D:$E,2,0) -> 5297 | CD17: 5297 | CE17: 0 | CG17: 0 | CH17: 0 | CI17: 5297 | CJ17: 5297 | CK17: 0 | CM17: 0 | CN17: 0 | CO17: 5297 | CP17: 5297 | CQ17: 0 | CS17: 0 | CT17: 0 | CU17: 5297 | CV17: 5297 | CW17: 0
A18: Oui | B18: Snecma | C18: 01320040009 | E18: 0 | F18: 0 | G18: 0 | H18: 0 | I18: 0 | J18: 0 | L18: 0 | M18: 0 | N18: 0 | O18: 0 | P18: 0 | V18: 0 | W18: 0 | X18: 0 | Y18: 0 | Z18: 0 | AC18: 0 | AD18: 0 | AE18: 0 | AF18: 0 | AG18: 0 | AJ18: 0 | AK18: 0 | AL18: 0 | AM18: 0 | AN18: 0 | AP18: 0 | AQ18: 0 | AR18: 0 | AS18: 0 | AT18: 0 | AV18: 0 | AW18: 0 | AX18: 0 | AY18: 0 | AZ18: 0 | BB18: 0 | BC18: 0 | BD18: 0 | BE18: 0 | BF18: 0 | BI18: 0 | BJ18: 0 | BK18: 0 | BL18: 0 | BM18: 0 | BS18: 0 | BT18: 0 | BU18: 0 | BV18: 0 | CA18: 0 | CB18: 0 | CC18: 0 | CD18: 0 | CE18: 0 | CG18: 0 | CH18: 0 | CI18: 0 | CJ18: 0 | CK18: 0 | CM18: 0 | CN18: 0 | CO18: 0 | CP18: 0 | CQ18: 0 | CS18: 0 | CT18: 0 | CU18: 0 | CV18: 0 | CW18: 0
A19: Oui | B19: Snecma | C19: 01320050010 | D19: INSERT SCREW THREAD | E19: 0 | F19: 0 | G19: 0 | H19: 1398 | I19: 0 | J19: 1398 | L19: 0 | M19: 0 | N19: 1398 | O19: 1398 | P19: 0 | V19: 0 | W19: 0 | X19: 1398 | Y19: 1398 | Z19: 0 | AC19: 0 | AD19: 0 | AE19: 1398 | AF19: 1398 | AG19: 0 | AJ19: 0 | AK19: 0 | AL19: 1398 | AM19: 1398 | AN19: 0 | AP19: 0 | AQ19: 0 | AR19: 1398 | AS19: 1398 | AT19: 0 | AV19: 0 | AW19: 6 | AX19: 1392 | AY19: 1392 | AZ19: 0 | BB19: 0 | BC19: 0 | BD19: 1392 | BE19: 1392 | BF19: 0 | BI19: 0 | BJ19: 0 | BK19: 1392 | BL19: 1392 | BM19: 0 | BR19: 0 | BS19: 0 | BT19: 1392 | BU19: 1392 | BV19: 0 | CA19: 0 | CB19: 0 | CC19: =VLOOKUP(C19,[1]TCD!$D:$E,2,0) -> 1392 | CD19: 1392 | CE19: 0 | CG19: 0 | CH19: 0 | CI19: 1392 | CJ19: 1392 | CK19: 0 | CM19: 0 | CN19: 0 | CO19: 1392 | CP19: 1392 | CQ19: 0 | CS19: 0 | CT19: 0 | CU19: 1392 | CV19: 1392 | CW19: 0
A20: Oui | B20: Snecma | C20: 01320050015 | E20: 0 | F20: 0 | G20: 0 | H20: 200 | I20: 0 | J20: 200 | L20: 0 | M20: 0 | N20: 200 | O20: 200 | P20: 0 | V20: 0 | W20: 0 | X20: 200 | Y20: 200 | Z20: 0 | AC20: 0 | AD20: 0 | AE20: 200 | AF20: 200 | AG20: 0 | AJ20: 0 | AK20: 0 | AL20: 200 | AM20: 200 | AN20: 0 | AP20: 0 | AQ20: 0 | AR20: 200 | AS20: 200 | AT20: 0 | AV20: 0 | AW20: 0 | AX20: 200 | AY20: 200 | AZ20: 0 | BB20: 0 | BC20: 0 | BD20: 200 | BE20: 200 | BF20: 0 | BI20: 0 | BJ20: 0 | BK20: 200 | BL20: 200 | BM20: 0 | BR20: 0 | BS20: 0 | BT20: 200 | BU20: 200 | BV20: 0 | CA20: 0 | CB20: 0 | CC20: =VLOOKUP(C20,[1]TCD!$D:$E,2,0) -> 200 | CD20: 200 | CE20: 0 | CG20: 0 | CH20: 0 | CI20: 200 | CJ20: 200 | CK20: 0 | CM20: 0 | CN20: 0 | CO20: 200 | CP20: 200 | CQ20: 0 | CS20: 0 | CT20: 0 | CU20: 200 | CV20: 200 | CW20: 0
A21: Oui | B21: Snecma | C21: 01320050075 | D21: INSERT, SCREW THREAD | E21: 0 | F21: 0 | G21: 0 | H21: 4154 | I21: 0 | J21: 4154 | L21: 0 | M21: 0 | N21: 4154 | O21: 4154 | P21: 0 | Q21: Ecart de stock avec aucune entree ni sortie | V21: 0 | W21: 0 | X21: 4154 | Y21: 4154 | Z21: 0 | AC21: 0 | AD21: 0 | AE21: 4154 | AF21: 4154 | AG21: 0 | AJ21: 0 | AK21: 0 | AL21: 4154 | AM21: 4154 | AN21: 0 | AP21: 0 | AQ21: 0 | AR21: 4154 | AS21: 4154 | AT21: 0 | AV21: 0 | AW21: 0 | AX21: 4154 | AY21: 4154 | AZ21: 0 | BB21: 0 | BC21: 0 | BD21: 4154 | BE21: 4154 | BF21: 0 | BI21: 0 | BJ21: 0 | BK21: 4154 | BL21: 4154 | BM21: 0 | BR21: 6 | BS21: 0 | BT21: 4160 | BU21: 4160 | BV21: 0 | CA21: 0 | CB21: 0 | CC21: =VLOOKUP(C21,[1]TCD!$D:$E,2,0) -> 4160 | CD21: 4160 | CE21: 0 | CG21: 0 | CH21: 0 | CI21: 4160 | CJ21: 4160 | CK21: 0 | CM21: 0 | CN21: 0 | CO21: 4160 | CP21: 4160 | CQ21: 0 | CS21: 0 | CT21: 0 | CU21: 4160 | CV21: 4160 | CW21: 0
A22: Oui | B22: Snecma | C22: 01320060012 | D22: INSERT | E22: 1037 | F22: 0 | G22: 4 | H22: 2266 | I22: 1033 | J22: 1233 | L22: 0 | M22: 0 | N22: 2266 | O22: 2266 | P22: 0 | V22: 0 | W22: 0 | X22: 2266 | Y22: 2266 | Z22: 0 | AC22: 2 | AD22: 0 | AE22: 2268 | AF22: 2268 | AG22: 0 | AJ22: 0 | AK22: 0 | AL22: 2268 | AM22: 2268 | AN22: 0 | AP22: 0 | AQ22: 0 | AR22: 2268 | AS22: 2268 | AT22: 0 | AV22: 0 | AW22: 0 | AX22: 2268 | AY22: 2268 | AZ22: 0 | BB22: 0 | BC22: 0 | BD22: 2268 | BE22: 2268 | BF22: 0 | BI22: 0 | BJ22: 0 | BK22: 2268 | BL22: 2268 | BM22: 0 | BR22: 0 | BS22: 0 | BT22: 2268 | BU22: 2268 | BV22: 0 | CA22: 0 | CB22: 0 | CC22: =VLOOKUP(C22,[1]TCD!$D:$E,2,0) -> 2268 | CD22: 2268 | CE22: 0 | CG22: 0 | CH22: 0 | CI22: 2268 | CJ22: 2268 | CK22: 0 | CM22: 0 | CN22: 0 | CO22: 2268 | CP22: 2268 | CQ22: 0 | CS22: 0 | CT22: 0 | CU22: 2268 | CV22: 2268 | CW22: 0
A23: Oui | B23: Snecma | C23: 01329050503 | D23: INSERT HELICAL COIL | E23: 1773 | F23: 0 | G23: 0 | H23: 1773 | I23: 1773 | J23: 0 | L23: 0 | M23: 0 | N23: 1773 | O23: 1773 | P23: 0 | Q23: Ecart de stock avec aucune entree ni sortie | S23: corrigé / format ref (nombre/texte) | V23: 0 | W23: 0 | X23: 1773 | Y23: 1773 | Z23: 0 | AC23: 0 | AD23: 0 | AE23: 1773 | AF23: 1773 | AG23: 0 | AJ23: 0 | AK23: 0 | AL23: 1773 | AM23: 1773 | AN23: 0 | AP23: 0 | AQ23: 0 | AR23: 1773 | AS23: 1773 | AT23: 0 | AV23: 0 | AW23: 0 | AX23: 1773 | AY23: 1773 | AZ23: 0 | BB23: 0 | BC23: 0 | BD23: 1773 | BE23: 1773 | BF23: 0 | BI23: 0 | BJ23: 0 | BK23: 1773 | BL23: 1773 | BM23: 0 | BR23: 0 | BS23: 0 | BT23: 1773 | BU23: 1773 | BV23: 0 | CA23: 0 | CB23: 0 | CC23: =VLOOKUP(C23,[1]TCD!$D:$E,2,0) -> 1773 | CD23: 1773 | CE23: 0 | CG23: 0 | CH23: 0 | CI23: 1773 | CJ23: 1773 | CK23: 0 | CM23: 0 | CN23: 0 | CO23: 1773 | CP23: 1773 | CQ23: 0 | CS23: 0 | CT23: 0 | CU23: 1773 | CV23: 1773 | CW23: 0
C24: 9794410112 | E24: 20 | F24: 0 | G24: 0 | H24: 20 | I24: 20 | J24: 0 | L24: 0 | M24: 0 | N24: 20 | O24: 20 | P24: 0 | V24: 0 | W24: 0 | X24: 20 | Y24: 20 | Z24: 0 | AC24: 0 | AD24: 0 | AE24: 20 | AF24: 20 | AG24: 0 | AJ24: 0 | AK24: 0 | AL24: 20 | AM24: 20 | AN24: 0 | AP24: 0 | AQ24: 0 | AR24: 20 | AS24: 20 | AT24: 0 | AV24: 0 | AW24: 0 | AX24: 20 | AY24: 20 | AZ24: 0 | BB24: 0 | BC24: 0 | BD24: 20 | BE24: 20 | BF24: 0 | BI24: 0 | BJ24: 0 | BK24: 20 | BL24: 20 | BM24: 0 | BR24: 0 | BS24: 0 | BT24: 20 | BU24: 20 | BV24: 0 | CA24: 0 | CB24: 0 | CC24: =VLOOKUP(C24,[1]TCD!$D:$E,2,0) -> 20 | CD24: 20 | CE24: 0 | CG24: 0 | CH24: 0 | CI24: 20 | CJ24: 20 | CK24: 0 | CM24: 0 | CN24: 0 | CO24: 20 | CP24: 20 | CQ24: 0 | CS24: 0 | CT24: 0 | CU24: 20 | CV24: 20 | CW24: 0
C25: 41320050010 | D25: FILET RAP | E25: 3681 | F25: 0 | G25: 0 | H25: 3681 | I25: 3681 | J25: 0 | L25: 0 | M25: 0 | N25: 3681 | O25: 3681 | P25: 0 | V25: 0 | W25: 0 | X25: 3681 | Y25: 3681 | Z25: 0 | AC25: 0 | AD25: 0 | AE25: 3681 | AF25: 3681 | AG25: 0 | AJ25: 0 | AK25: 0 | AL25: 3681 | AM25: 3681 | AN25: 0 | AP25: 0 | AQ25: 0 | AR25: 3681 | AS25: 3681 | AT25: 0 | AV25: 0 | AW25: 0 | AX25: 3681 | AY25: 3681 | AZ25: 0 | BB25: 0 | BC25: 0 | BD25: 3681 | BE25: 3681 | BF25: 0 | BI25: 0 | BJ25: 0 | BK25: 3681 | BL25: 3681 | BM25: 0 | BR25: 0 | BS25: 0 | BT25: 3681 | BU25: 3681 | BV25: 0 | CA25: 0 | CB25: 0 | CC25: =VLOOKUP(C25,[1]TCD!$D:$E,2,0) -> 3681 | CD25: 3681 | CE25: 0 | CG25: 0 | CH25: 0 | CI25: 3681 | CJ25: 3681 | CK25: 0 | CM25: 0 | CN25: 0 | CO25: 3681 | CP25: 3681 | CQ25: 0 | CS25: 0 | CT25: 0 | CU25: 3681 | CV25: 3681 | CW25: 0
A26: Oui | B26: Snecma | C26: 41320050125 | E26: 0 | F26: 0 | G26: 0 | H26: 0 | I26: 0 | J26: 0 | L26: 0 | M26: 0 | N26: 0 | O26: 0 | P26: 0 | V26: 0 | W26: 0 | X26: 0 | Y26: 0 | Z26: 0 | AC26: 0 | AD26: 0 | AE26: 0 | AF26: 0 | AG26: 0 | AJ26: 0 | AK26: 0 | AL26: 0 | AM26: 0 | AN26: 0 | AP26: 0 | AQ26: 0 | AR26: 0 | AS26: 0 | AT26: 0 | AV26: 0 | AW26: 0 | AX26: 0 | AY26: 0 | AZ26: 0 | BB26: 0 | BC26: 0 | BD26: 0 | BE26: 0 | BF26: 0 | BI26: 0 | BJ26: 0 | BK26: 0 | BL26: 0 | BM26: 0 | BS26: 0 | BT26: 0 | BU26: 0 | BV26: 0 | CA26: 0 | CB26: 0 | CC26: 0 | CD26: 0 | CE26: 0 | CG26: 0 | CH26: 0 | CI26: 0 | CJ26: 0 | CK26: 0 | CM26: 0 | CN26: 0 | CO26: 0 | CP26: 0 | CQ26: 0 | CS26: 0 | CT26: 0 | CU26: 0 | CV26: 0 | CW26: 0
A27: Oui | B27: AIA | C27: 0-0031819-0 | E27: 458 | F27: 0 | G27: 0 | H27: 458 | I27: 458 | J27: 0 | L27: 0 | M27: 0 | N27: 458 | O27: 458 | P27: 0 | V27: 0 | W27: 0 | X27: 458 | Y27: 458 | Z27: 0 | AC27: 0 | AD27: 0 | AE27: 458 | AF27: 458 | AG27: 0 | AJ27: 0 | AK27: 0 | AL27: 458 | AM27: 458 | AN27: 0 | AP27: 0 | AQ27: 0 | AR27: 458 | AS27: 458 | AT27: 0 | AV27: 0 | AW27: 0 | AX27: 458 | AY27: 458 | AZ27: 0 | BB27: 0 | BC27: 0 | BD27: 458 | BE27: 458 | BF27: 0 | BI27: 0 | BJ27: 0 | BK27: 458 | BL27: 458 | BM27: 0 | BR27: 0 | BS27: 0 | BT27: 458 | BU27: 458 | BV27: 0 | CA27: 0 | CB27: 0 | CC27: =VLOOKUP(C27,[1]TCD!$D:$E,2,0) -> 458 | CD27: 458 | CE27: 0 | CG27: 0 | CH27: 0 | CI27: 458 | CJ27: 458 | CK27: 0 | CM27: 0 | CN27: 0 | CO27: 458 | CP27: 458 | CQ27: 0 | CS27: 0 | CT27: 0 | CU27: 458 | CV27: 458 | CW27: 0
A28: Oui | B28: AIA | C28: 0-0036490-0 | E28: 448 | F28: 0 | G28: 0 | H28: 448 | I28: 448 | J28: 0 | L28: 0 | M28: 0 | N28: 448 | O28: 448 | P28: 0 | V28: 0 | W28: 0 | X28: 448 | Y28: 448 | Z28: 0 | AC28: 0 | AD28: 0 | AE28: 448 | AF28: 448 | AG28: 0 | AJ28: 0 | AK28: 0 | AL28: 448 | AM28: 448 | AN28: 0 | AP28: 0 | AQ28: 0 | AR28: 448 | AS28: 448 | AT28: 0 | AV28: 0 | AW28: 0 | AX28: 448 | AY28: 448 | AZ28: 0 | BB28: 0 | BC28: 0 | BD28: 448 | BE28: 448 | BF28: 0 | BI28: 0 | BJ28: 0 | BK28: 448 | BL28: 448 | BM28: 0 | BR28: 0 | BS28: 0 | BT28: 448 | BU28: 448 | BV28: 0 | CA28: 0 | CB28: 0 | CC28: =VLOOKUP(C28,[1]TCD!$D:$E,2,0) -> 448 | CD28: 448 | CE28: 0 | CG28: 0 | CH28: 0 | CI28: 448 | CJ28: 448 | CK28: 0 | CM28: 0 | CN28: 0 | CO28: 448 | CP28: 448 | CQ28: 0 | CS28: 0 | CT28: 0 | CU28: 448 | CV28: 448 | CW28: 0
A29: Oui | B29: AIA | C29: 006-0912-16 | E29: 100 | F29: 0 | G29: 0 | H29: 100 | I29: 100 | J29: 0 | L29: 0 | M29: 0 | N29: 100 | O29: 100 | P29: 0 | V29: 0 | W29: 0 | X29: 100 | Y29: 100 | Z29: 0 | AC29: 0 | AD29: 0 | AE29: 100 | AF29: 100 | AG29: 0 | AJ29: 0 | AK29: 0 | AL29: 100 | AM29: 100 | AN29: 0 | AP29: 0 | AQ29: 0 | AR29: 100 | AS29: 100 | AT29: 0 | AV29: 0 | AW29: 0 | AX29: 100 | AY29: 100 | AZ29: 0 | BB29: 0 | BC29: 0 | BD29: 100 | BE29: 100 | BF29: 0 | BI29: 0 | BJ29: 0 | BK29: 100 | BL29: 100 | BM29: 0 | BR29: 0 | BS29: 0 | BT29: 100 | BU29: 100 | BV29: 0 | CA29: 0 | CB29: 0 | CC29: =VLOOKUP(C29,[1]TCD!$D:$E,2,0) -> 100 | CD29: 100 | CE29: 0 | CG29: 0 | CH29: 0 | CI29: 100 | CJ29: 100 | CK29: 0 | CM29: 0 | CN29: 0 | CO29: 100 | CP29: 100 | CQ29: 0 | CS29: 0 | CT29: 0 | CU29: 100 | CV29: 100 | CW29: 0
A30: Oui | B30: AIA | C30: 006-0912-20 | E30: 100 | F30: 0 | G30: 0 | H30: 100 | I30: 100 | J30: 0 | L30: 0 | M30: 0 | N30: 100 | O30: 100 | P30: 0 | V30: 0 | W30: 0 | X30: 100 | Y30: 100 | Z30: 0 | AC30: 0 | AD30: 0 | AE30: 100 | AF30: 100 | AG30: 0 | AJ30: 0 | AK30: 0 | AL30: 100 | AM30: 100 | AN30: 0 | AP30: 0 | AQ30: 0 | AR30: 100 | AS30: 100 | AT30: 0 | AV30: 0 | AW30: 0 | AX30: 100 | AY30: 100 | AZ30: 0 | BB30: 0 | BC30: 0 | BD30: 100 | BE30: 100 | BF30: 0 | BI30: 0 | BJ30: 0 | BK30: 100 | BL30: 100 | BM30: 0 | BR30: 0 | BS30: 0 | BT30: 100 | BU30: 100 | BV30: 0 | CA30: 0 | CB30: 0 | CC30: =VLOOKUP(C30,[1]TCD!$D:$E,2,0) -> 100 | CD30: 100 | CE30: 0 | CG30: 0 | CH30: 0 | CI30: 100 | CJ30: 100 | CK30: 0 | CM30: 0 | CN30: 0 | CO30: 100 | CP30: 100 | CQ30: 0 | CS30: 0 | CT30: 0 | CU30: 100 | CV30: 100 | CW30: 0
A31: Oui | B31: AIA | C31: 006-0937-16 | E31: 100 | F31: 0 | G31: 0 | H31: 100 | I31: 100 | J31: 0 | L31: 0 | M31: 0 | N31: 100 | O31: 100 | P31: 0 | V31: 0 | W31: 0 | X31: 100 | Y31: 100 | Z31: 0 | AC31: 0 | AD31: 0 | AE31: 100 | AF31: 100 | AG31: 0 | AJ31: 0 | AK31: 0 | AL31: 100 | AM31: 100 | AN31: 0 | AP31: 0 | AQ31: 0 | AR31: 100 | AS31: 100 | AT31: 0 | AV31: 0 | AW31: 0 | AX31: 100 | AY31: 100 | AZ31: 0 | BB31: 0 | BC31: 0 | BD31: 100 | BE31: 100 | BF31: 0 | BI31: 0 | BJ31: 0 | BK31: 100 | BL31: 100 | BM31: 0 | BR31: 0 | BS31: 0 | BT31: 100 | BU31: 100 | BV31: 0 | CA31: 0 | CB31: 0 | CC31: =VLOOKUP(C31,[1]TCD!$D:$E,2,0) -> 100 | CD31: 100 | CE31: 0 | CG31: 0 | CH31: 0 | CI31: 100 | CJ31: 100 | CK31: 0 | CM31: 0 | CN31: 0 | CO31: 100 | CP31: 100 | CQ31: 0 | CS31: 0 | CT31: 0 | CU31: 100 | CV31: 100 | CW31: 0
A32: Oui | B32: AIA | C32: 006-0937-20 | E32: 3823 | F32: 0 | G32: 0 | H32: 3823 | I32: 3823 | J32: 0 | L32: 0 | M32: 0 | N32: 3823 | O32: 3823 | P32: 0 | V32: 0 | W32: 12 | X32: 3811 | Y32: 3811 | Z32: 0 | AC32: 0 | AD32: 6 | AE32: 3805 | AF32: 3805 | AG32: 0 | AJ32: 0 | AK32: 36 | AL32: 3769 | AM32: 3769 | AN32: 0 | AP32: 0 | AQ32: 0 | AR32: 3769 | AS32: 3769 | AT32: 0 | AV32: 0 | AW32: 0 | AX32: 3769 | AY32: 3769 | AZ32: 0 | BB32: 0 | BC32: 40 | BD32: 3729 | BE32: 3729 | BF32: 0 | BI32: 0 | BJ32: 12 | BK32: 3717 | BL32: 3717 | BM32: 0 | BR32: 0 | BS32: 41 | BT32: 3676 | BU32: 3676 | BV32: 0 | CA32: 0 | CB32: 42 | CC32: =VLOOKUP(C32,[1]TCD!$D:$E,2,0) -> 3634 | CD32: 3634 | CE32: 0 | CG32: 0 | CH32: 0 | CI32: 3634 | CJ32: 3634 | CK32: 0 | CM32: 0 | CN32: 18 | CO32: 3616 | CP32: 3616 | CQ32: 0 | CS32: 0 | CT32: 12 | CU32: 3604 | CV32: 3604 | CW32: 0
B33: AIA | C33: 01KS0001 | D33: PION | E33: 0 | F33: 0 | G33: 0 | H33: 0 | I33: 0 | J33: 0 | L33: 0 | M33: 0 | N33: 37 | O33: 0 | P33: 37 | Q33: Pas perimetre SN | V33: 0 | W33: 0 | X33: 0 | Y33: 37 | Z33: -37 | AA33: sorti du fichier S43 car hors périmètre | AC33: 0 | AD33: 0 | AE33: 0 | AF33: 0 | AG33: 0 | AJ33: 0 | AK33: 0 | AL33: 0 | AM33: 0 | AN33: 0 | AP33: 0 | AQ33: 0 | AR33: 0 | AS33: 0 | AT33: 0 | AV33: 0 | AW33: 0 | AX33: 0 | AY33: 0 | AZ33: 0 | BB33: 0 | BC33: 0 | BD33: 0 | BE33: 0 | BF33: 0 | BI33: 0 | BJ33: 0 | BK33: 0 | BL33: 0 | BM33: 0 | BS33: 0 | BT33: 0 | BU33: 0 | BV33: 0 | CA33: 0 | CB33: 0 | CC33: 0 | CD33: 0 | CE33: 0 | CG33: 0 | CH33: 0 | CI33: 0 | CJ33: 0 | CK33: 0 | CM33: 0 | CN33: 0 | CO33: 0 | CP33: 0 | CQ33: 0 | CS33: 0 | CT33: 0 | CU33: 0 | CV33: 0 | CW33: 0
B34: AIA | C34: 01KS0011 | D34: DOUILLE POUR REP 17-80217 | E34: 0 | F34: 0 | G34: 0 | H34: 0 | I34: 0 | J34: 0 | L34: 0 | M34: 0 | N34: 236 | O34: 0 | P34: 236 | Q34: Pas perimetre SN | V34: 0 | W34: 0 | X34: 0 | Y34: 236 | Z34: -236 | AA34: sorti du fichier S43 car hors périmètre | AC34: 0 | AD34: 0 | AE34: 0 | AF34: 0 | AG34: 0 | AJ34: 0 | AK34: 0 | AL34: 0 | AM34: 0 | AN34: 0 | AP34: 0 | AQ34: 0 | AR34: 0 | AS34: 0 | AT34: 0 | AV34: 0 | AW34: 0 | AX34: 0 | AY34: 0 | AZ34: 0 | BB34: 0 | BC34: 0 | BD34: 0 | BE34: 0 | BF34: 0 | BI34: 0 | BJ34: 0 | BK34: 0 | BL34: 0 | BM34: 0 | BS34: 0 | BT34: 0 | BU34: 0 | BV34: 0 | CA34: 0 | CB34: 0 | CC34: 0 | CD34: 0 | CE34: 0 | CG34: 0 | CH34: 0 | CI34: 0 | CJ34: 0 | CK34: 0 | CM34: 0 | CN34: 0 | CO34: 0 | CP34: 0 | CQ34: 0 | CS34: 0 | CT34: 0 | CU34: 0 | CV34: 0 | CW34: 0
A35: Oui | B35: Snecma | C35: 0200/SPEC/00/F93768 | E35: 0 | F35: 0 | G35: 0 | H35: 0 | I35: 0 | J35: 0 | L35: 0 | M35: 0 | N35: 0 | O35: 0 | P35: 0 | V35: 0 | W35: 0 | X35: 0 | Y35: 0 | Z35: 0 | AC35: 0 | AD35: 0 | AE35: 0 | AF35: 0 | AG35: 0 | AJ35: 0 | AK35: 0 | AL35: 0 | AM35: 0 | AN35: 0 | AP35: 0 | AQ35: 0 | AR35: 0 | AS35: 0 | AT35: 0 | AV35: 0 | AW35: 0 | AX35: 0 | AY35: 0 | AZ35: 0 | BB35: 0 | BC35: 0 | BD35: 0 | BE35: 0 | BF35: 0 | BI35: 0 | BJ35: 0 | BK35: 0 | BL35: 0 | BM35: 0 | BS35: 0 | BT35: 0 | BU35: 0 | BV35: 0 | CA35: 0 | CB35: 0 | CC35: 0 | CD35: 0 | CE35: 0 | CG35: 0 | CH35: 0 | CI35: 0 | CJ35: 0 | CK35: 0 | CM35: 0 | CN35: 0 | CO35: 0 | CP35: 0 | CQ35: 0 | CS35: 0 | CT35: 0 | CU35: 0 | CV35: 0 | CW35: 0
A36: Oui | B36: Snecma | C36: 0290/SPEC//FJ3730 | E36: 0 | F36: 0 | G36: 0 | H36: 0 | I36: 0 | J36: 0 | L36: 0 | M36: 0 | N36: 0 | O36: 0 | P36: 0 | V36: 0 | W36: 0 | X36: 0 | Y36: 0 | Z36: 0 | AC36: 0 | AD36: 0 | AE36: 0 | AF36: 0 | AG36: 0 | AJ36: 0 | AK36: 0 | AL36: 0 | AM36: 0 | AN36: 0 | AP36: 0 | AQ36: 0 | AR36: 0 | AS36: 0 | AT36: 0 | AV36: 0 | AW36: 0 | AX36: 0 | AY36: 0 | AZ36: 0 | BB36: 0 | BC36: 0 | BD36: 0 | BE36: 0 | BF36: 0 | BI36: 0 | BJ36: 0 | BK36: 0 | BL36: 0 | BM36: 0 | BS36: 0 | BT36: 0 | BU36: 0 | BV36: 0 | CA36: 0 | CB36: 0 | CC36: 0 | CD36: 0 | CE36: 0 | CG36: 0 | CH36: 0 | CI36: 0 | CJ36: 0 | CK36: 0 | CM36: 0 | CN36: 0 | CO36: 0 | CP36: 0 | CQ36: 0 | CS36: 0 | CT36: 0 | CU36: 0 | CV36: 0 | CW36: 0
B37: AIA | C37: 03KS0001 | D37: BAGUE | E37: 0 | F37: 0 | G37: 0 | H37: 0 | I37: 0 | J37: 0 | L37: 0 | M37: 0 | N37: 2 | O37: 0 | P37: 2 | Q37: Pas perimetre SN | V37: 0 | W37: 0 | X37: 0 | Y37: 2 | Z37: -2 | AA37: sorti du fichier S43 car hors périmètre | AC37: 0 | AD37: 0 | AE37: 0 | AF37: 0 | AG37: 0 | AJ37: 0 | AK37: 0 | AL37: 0 | AM37: 0 | AN37: 0 | AP37: 0 | AQ37: 0 | AR37: 0 | AS37: 0 | AT37: 0 | AV37: 0 | AW37: 0 | AX37: 0 | AY37: 0 | AZ37: 0 | BB37: 0 | BC37: 0 | BD37: 0 | BE37: 0 | BF37: 0 | BI37: 0 | BJ37: 0 | BK37: 0 | BL37: 0 | BM37: 0 | BS37: 0 | BT37: 0 | BU37: 0 | BV37: 0 | CA37: 0 | CB37: 0 | CC37: 0 | CD37: 0 | CE37: 0 | CG37: 0 | CH37: 0 | CI37: 0 | CJ37: 0 | CK37: 0 | CM37: 0 | CN37: 0 | CO37: 0 | CP37: 0 | CQ37: 0 | CS37: 0 | CT37: 0 | CU37: 0 | CV37: 0 | CW37: 0
A38: Oui | C38: 058-000-604-6 | D38: DIAPHRAGME ASSEMBLE | E38: 0 | F38: 0 | G38: 0 | H38: 0 | I38: 0 | J38: 0 | L38: 0 | M38: 0 | N38: 0 | O38: 0 | P38: 0 | V38: 0 | W38: 0 | X38: 0 | Y38: 0 | Z38: 0 | AC38: 0 | AD38: 0 | AE38: 0 | AF38: 0 | AG38: 0 | AJ38: 0 | AK38: 0 | AL38: 0 | AM38: 0 | AN38: 0 | AP38: 0 | AQ38: 0 | AR38: 0 | AS38: 0 | AT38: 0 | AV38: 0 | AW38: 0 | AX38: 0 | AY38: 0 | AZ38: 0 | BB38: 0 | BC38: 0 | BD38: 0 | BE38: 0 | BF38: 0 | BI38: 0 | BJ38: 0 | BK38: 0 | BL38: 0 | BM38: 0 | BS38: 0 | BT38: 0 | BU38: 0 | BV38: 0 | CA38: 0 | CB38: 0 | CC38: 0 | CD38: 0 | CE38: 0 | CG38: 0 | CH38: 0 | CI38: 0 | CJ38: 0 | CK38: 0 | CM38: 0 | CN38: 0 | CO38: 0 | CP38: 0 | CQ38: 0 | CS38: 0 | CT38: 0 | CU38: 0 | CV38: 0 | CW38: 0
A39: Oui | B39: Snecma | C39: 058-001-302-6 | D39: JOINT | E39: 13 | F39: 0 | G39: 0 | H39: 13 | I39: 13 | J39: 0 | L39: 0 | M39: 0 | N39: 13 | O39: 13 | P39: 0 | V39: 0 | W39: 0 | X39: 13 | Y39: 13 | Z39: 0 | AC39: 0 | AD39: 0 | AE39: 13 | AF39: 13 | AG39: 0 | AJ39: 0 | AK39: 0 | AL39: 13 | AM39: 13 | AN39: 0 | AP39: 0 | AQ39: 0 | AR39: 13 | AS39: 13 | AT39: 0 | AV39: 0 | AW39: 0 | AX39: 13 | AY39: 13 | AZ39: 0 | BB39: 0 | BC39: 0 | BD39: 13 | BE39: 13 | BF39: 0 | BI39: 0 | BJ39: 0 | BK39: 13 | BL39: 13 | BM39: 0 | BR39: 0 | BS39: 0 | BT39: 13 | BU39: 13 | BV39: 0 | CA39: 0 | CB39: 0 | CC39: =VLOOKUP(C39,[1]TCD!$D:$E,2,0) -> 13 | CD39: 13 | CE39: 0 | CG39: 0 | CH39: 0 | CI39: 13 | CJ39: 13 | CK39: 0 | CM39: 0 | CN39: 0 | CO39: 13 | CP39: 13 | CQ39: 0 | CS39: 0 | CT39: 0 | CU39: 13 | CV39: 13 | CW39: 0
A40: Oui | B40: Snecma | C40: 058-001-901-6 | E40: 0 | F40: 0 | G40: 0 | H40: 0 | I40: 0 | J40: 0 | L40: 0 | M40: 0 | N40: 0 | O40: 0 | P40: 0 | V40: 0 | W40: 0 | X40: 0 | Y40: 0 | Z40: 0 | AC40: 0 | AD40: 0 | AE40: 0 | AF40: 0 | AG40: 0 | AJ40: 0 | AK40: 0 | AL40: 0 | AM40: 0 | AN40: 0 | AP40: 0 | AQ40: 0 | AR40: 0 | AS40: 0 | AT40: 0 | AV40: 0 | AW40: 0 | AX40: 0 | AY40: 0 | AZ40: 0 | BB40: 0 | BC40: 0 | BD40: 0 | BE40: 0 | BF40: 0 | BI40: 0 | BJ40: 0 | BK40: 0 | BL40: 0 | BM40: 0 | BS40: 0 | BT40: 0 | BU40: 0 | BV40: 0 | CA40: 0 | CB40: 0 | CC40: 0 | CD40: 0 | CE40: 0 | CG40: 0 | CH40: 0 | CI40: 0 | CJ40: 0 | CK40: 0 | CM40: 0 | CN40: 0 | CO40: 0 | CP40: 0 | CQ40: 0 | CS40: 0 | CT40: 0 | CU40: 0 | CV40: 0 | CW40: 0
A41: Oui | B41: Snecma | C41: 058-001-902-6 | D41: CARENAGE EXTER ASSEMBLE | E41: 0 | F41: 0 | G41: 0 | H41: 0 | I41: 0 | J41: 0 | L41: 0 | M41: 0 | N41: 0 | O41: 0 | P41: 0 | V41: 0 | W41: 0 | X41: 0 | Y41: 0 | Z41: 0 | AC41: 0 | AD41: 0 | AE41: 0 | AF41: 0 | AG41: 0 | AJ41: 0 | AK41: 0 | AL41: 0 | AM41: 0 | AN41: 0 | AP41: 0 | AQ41: 0 | AR41: 0 | AS41: 0 | AT41: 0 | AV41: 0 | AW41: 0 | AX41: 0 | AY41: 0 | AZ41: 0 | BB41: 0 | BC41: 0 | BD41: 0 | BE41: 0 | BF41: 0 | BI41: 0 | BJ41: 0 | BK41: 0 | BL41: 0 | BM41: 0 | BS41: 0 | BT41: 0 | BU41: 0 | BV41: 0 | CA41: 0 | CB41: 0 | CC41: 0 | CD41: 0 | CE41: 0 | CG41: 0 | CH41: 0 | CI41: 0 | CJ41: 0 | CK41: 0 | CM41: 0 | CN41: 0 | CO41: 0 | CP41: 0 | CQ41: 0 | CS41: 0 | CT41: 0 | CU41: 0 | CV41: 0 | CW41: 0
A42: Oui | B42: Snecma | C42: 058-002-003-6 | E42: 1342 | F42: 0 | G42: 0 | H42: 1342 | I42: 1342 | J42: 0 | L42: 0 | M42: 0 | N42: 1342 | O42: 1342 | P42: 0 | V42: 0 | W42: 0 | X42: 1342 | Y42: 1342 | Z42: 0 | AC42: 0 | AD42: 0 | AE42: 1342 | AF42: 1342 | AG42: 0 | AJ42: 0 | AK42: 0 | AL42: 1342 | AM42: 1342 | AN42: 0 | AP42: 0 | AQ42: 0 | AR42: 1342 | AS42: 1342 | AT42: 0 | AV42: 0 | AW42: 0 | AX42: 1342 | AY42: 1342 | AZ42: 0 | BB42: 0 | BC42: 0 | BD42: 1342 | BE42: 1342 | BF42: 0 | BI42: 0 | BJ42: 0 | BK42: 1342 | BL42: 1342 | BM42: 0 | BR42: 0 | BS42: 0 | BT42: 1342 | BU42: 1342 | BV42: 0 | CA42: 0 | CB42: 0 | CC42: =VLOOKUP(C42,[1]TCD!$D:$E,2,0) -> 1342 | CD42: 1342 | CE42: 0 | CG42: 0 | CH42: 0 | CI42: 1342 | CJ42: 1342 | CK42: 0 | CM42: 0 | CN42: 0 | CO42: 1342 | CP42: 1342 | CQ42: 0 | CS42: 0 | CT42: 0 | CU42: 1342 | CV42: 1342 | CW42: 0
A43: Oui | B43: Snecma | C43: 058-002-005-6 | E43: 210 | F43: 0 | G43: 0 | H43: 210 | I43: 210 | J43: 0 | L43: 0 | M43: 0 | N43: 210 | O43: 210 | P43: 0 | V43: 0 | W43: 0 | X43: 210 | Y43: 210 | Z43: 0 | AC43: 0 | AD43: 0 | AE43: 210 | AF43: 210 | AG43: 0 | AJ43: 0 | AK43: 0 | AL43: 210 | AM43: 210 | AN43: 0 | AP43: 0 | AQ43: 0 | AR43: 210 | AS43: 210 | AT43: 0 | AV43: 0 | AW43: 0 | AX43: 210 | AY43: 210 | AZ43: 0 | BB43: 0 | BC43: 0 | BD43: 210 | BE43: 210 | BF43: 0 | BI43: 0 | BJ43: 0 | BK43: 210 | BL43: 210 | BM43: 0 | BR43: 0 | BS43: 0 | BT43: 210 | BU43: 210 | BV43: 0 | CA43: 0 | CB43: 0 | CC43: =VLOOKUP(C43,[1]TCD!$D:$E,2,0) -> 210 | CD43: 210 | CE43: 0 | CG43: 0 | CH43: 0 | CI43: 210 | CJ43: 210 | CK43: 0 | CM43: 0 | CN43: 0 | CO43: 210 | CP43: 210 | CQ43: 0 | CS43: 0 | CT43: 0 | CU43: 210 | CV43: 210 | CW43: 0
A44: Oui | B44: Snecma | C44: 058-004-001-6 | D44: TUBE EQUIPE | E44: 20 | F44: 0 | G44: 0 | H44: 20 | I44: 20 | J44: 0 | L44: 0 | M44: 0 | N44: 20 | O44: 20 | P44: 0 | V44: 0 | W44: 0 | X44: 20 | Y44: 20 | Z44: 0 | AC44: 0 | AD44: 0 | AE44: 20 | AF44: 20 | AG44: 0 | AJ44: 0 | AK44: 2 | AL44: 18 | AM44: 18 | AN44: 0 | AP44: 5 | AQ44: 0 | AR44: 23 | AS44: 23 | AT44: 0 | AV44: 0 | AW44: 0 | AX44: 23 | AY44: 23 | AZ44: 0 | BB44: 0 | BC44: 2 | BD44: 21 | BE44: 21 | BF44: 0 | BI44: 0 | BJ44: 3 | BK44: 18 | BL44: 18 | BM44: 0 | BR44: 0 | BS44: 0 | BT44: 18 | BU44: 18 | BV44: 0 | CA44: 0 | CB44: 0 | CC44: =VLOOKUP(C44,[1]TCD!$D:$E,2,0) -> 18 | CD44: 18 | CE44: 0 | CG44: 0 | CH44: 0 | CI44: 18 | CJ44: 18 | CK44: 0 | CM44: 0 | CN44: 0 | CO44: 18 | CP44: 18 | CQ44: 0 | CS44: 0 | CT44: 2 | CU44: 16 | CV44: 16 | CW44: 0
A45: Oui | B45: Snecma | C45: 058-004-201-6 | D45: COUDE EQUIPE | E45: 27 | F45: 0 | G45: 0 | H45: 27 | I45: 27 | J45: 0 | L45: 0 | M45: 1 | N45: 26 | O45: 26 | P45: 0 | V45: 0 | W45: 1 | X45: 25 | Y45: 25 | Z45: 0 | AC45: 0 | AD45: 2 | AE45: 23 | AF45: 23 | AG45: 0 | AJ45: 0 | AK45: 4 | AL45: 19 | AM45: 19 | AN45: 0 | AP45: 0 | AQ45: 0 | AR45: 19 | AS45: 19 | AT45: 0 | AV45: 0 | AW45: 0 | AX45: 19 | AY45: 19 | AZ45: 0 | BB45: 0 | BC45: 0 | BD45: 19 | BE45: 19 | BF45: 0 | BI45: 0 | BJ45: 3 | BK45: 16 | BL45: 16 | BM45: 0 | BR45: 2 | BS45: 0 | BT45: 18 | BU45: 18 | BV45: 0 | CA45: 0 | CB45: 0 | CC45: =VLOOKUP(C45,[1]TCD!$D:$E,2,0) -> 18 | CD45: 18 | CE45: 0 | CG45: 0 | CH45: 0 | CI45: 18 | CJ45: 18 | CK45: 0 | CM45: 64 | CN45: 0 | CO45: 82 | CP45: 82 | CQ45: 0 | CS45: 0 | CT45: 2 | CU45: 80 | CV45: 80 | CW45: 0
A46: Oui | B46: Snecma | C46: 058-004-301-6 | D46: COUDE EQUIPE | E46: 10 | F46: 0 | G46: 0 | H46: 10 | I46: 10 | J46: 0 | L46: 0 | M46: 0 | N46: 10 | O46: 10 | P46: 0 | V46: 0 | W46: 0 | X46: 10 | Y46: 10 | Z46: 0 | AC46: 1 | AD46: 0 | AE46: 11 | AF46: 11 | AG46: 0 | AJ46: 0 | AK46: 2 | AL46: 9 | AM46: 9 | AN46: 0 | AP46: 0 | AQ46: 0 | AR46: 9 | AS46: 9 | AT46: 0 | AV46: 90 | AW46: 0 | AX46: 99 | AY46: 99 | AZ46: 0 | BB46: 0 | BC46: 0 | BD46: 99 | BE46: 99 | BF46: 0 | BI46: 0 | BJ46: 1 | BK46: 98 | BL46: 98 | BM46: 0 | BR46: 0 | BS46: 0 | BT46: 98 | BU46: 98 | BV46: 0 | CA46: 0 | CB46: 0 | CC46: =VLOOKUP(C46,[1]TCD!$D:$E,2,0) -> 98 | CD46: 98 | CE46: 0 | CG46: 0 | CH46: 0 | CI46: 98 | CJ46: 98 | CK46: 0 | CM46: 0 | CN46: 0 | CO46: 98 | CP46: 98 | CQ46: 0 | CS46: 0 | CT46: 2 | CU46: 96 | CV46: 96 | CW46: 0
A47: Oui | B47: Snecma | C47: 058-004-601-6 | D47: TUBE EQUIPE | E47: 45 | F47: 0 | G47: 0 | H47: 45 | I47: 45 | J47: 0 | L47: 0 | M47: 0 | N47: 45 | O47: 45 | P47: 0 | V47: 0 | W47: 0 | X47: 45 | Y47: 45 | Z47: 0 | AC47: 0 | AD47: 0 | AE47: 45 | AF47: 45 | AG47: 0 | AJ47: 0 | AK47: 3 | AL47: 42 | AM47: 42 | AN47: 0 | AP47: 9 | AQ47: 0 | AR47: 51 | AS47: 51 | AT47: 0 | AV47: 0 | AW47: 0 | AX47: 51 | AY47: 51 | AZ47: 0 | BB47: 0 | BC47: 1 | BD47: 50 | BE47: 50 | BF47: 0 | BI47: 58 | BJ47: 2 | BK47: 106 | BL47: 106 | BM47: 0 | BR47: 0 | BS47: 0 | BT47: 106 | BU47: 106 | BV47: 0 | CA47: 0 | CB47: 0 | CC47: =VLOOKUP(C47,[1]TCD!$D:$E,2,0) -> 106 | CD47: 106 | CE47: 0 | CG47: 0 | CH47: 0 | CI47: 106 | CJ47: 106 | CK47: 0 | CM47: 0 | CN47: 0 | CO47: 106 | CP47: 106 | CQ47: 0 | CS47: 0 | CT47: 2 | CU47: 104 | CV47: 104 | CW47: 0
A48: Oui | B48: Snecma | C48: 058-011-301-0 | E48: 20 | F48: 0 | G48: 0 | H48: 20 | I48: 20 | J48: 0 | L48: 0 | M48: 0 | N48: 20 | O48: 20 | P48: 0 | V48: 0 | W48: 0 | X48: 20 | Y48: 20 | Z48: 0 | AC48: 0 | AD48: 0 | AE48: 20 | AF48: 20 | AG48: 0 | AJ48: 0 | AK48: 0 | AL48: 20 | AM48: 20 | AN48: 0 | AP48: 0 | AQ48: 0 | AR48: 20 | AS48: 20 | AT48: 0 | AV48: 0 | AW48: 0 | AX48: 20 | AY48: 20 | AZ48: 0 | BB48: 0 | BC48: 0 | BD48: 20 | BE48: 20 | BF48: 0 | BI48: 0 | BJ48: 0 | BK48: 20 | BL48: 20 | BM48: 0 | BR48: 0 | BS48: 0 | BT48: 20 | BU48: 20 | BV48: 0 | CA48: 0 | CB48: 0 | CC48: =VLOOKUP(C48,[1]TCD!$D:$E,2,0) -> 20 | CD48: 20 | CE48: 0 | CG48: 0 | CH48: 0 | CI48: 20 | CJ48: 20 | CK48: 0 | CM48: 0 | CN48: 0 | CO48: 20 | CP48: 20 | CQ48: 0 | CS48: 0 | CT48: 0 | CU48: 20 | CV48: 20 | CW48: 0
A49: Oui | C49: 058-011-503-0 | D49: BOL EQUIPE | E49: 0 | F49: 0 | G49: 0 | H49: 0 | I49: 0 | J49: 0 | K49: N'était pas chargée dans la base d'extraction Saphir | L49: 0 | M49: 0 | N49: 0 | O49: 0 | P49: 0 | V49: 0 | W49: 0 | X49: 0 | Y49: 0 | Z49: 0 | AC49: 0 | AD49: 0 | AE49: 0 | AF49: 0 | AG49: 0 | AJ49: 0 | AK49: 0 | AL49: 0 | AM49: 0 | AN49: 0 | AP49: 0 | AQ49: 0 | AR49: 0 | AS49: 0 | AT49: 0 | AV49: 0 | AW49: 0 | AX49: 0 | AY49: 0 | AZ49: 0 | BA49: N'était pas chargée dans la base d'extraction Saphir | BB49: 0 | BC49: 0 | BD49: 23 | BE49: 0 | BF49: 23 | BG49: ecart mesuré | BH49: OK Nouvelle réf | BI49: 0 | BJ49: 0 | BK49: 23 | BL49: 23 | BM49: 0 | BR49: 0 | BS49: 0 | BT49: 23 | BU49: 23 | BV49: 0 | CA49: 0 | CB49: 0 | CC49: =VLOOKUP(C49,[1]TCD!$D:$E,2,0) -> 23 | CD49: 23 | CE49: 0 | CG49: 0 | CH49: 0 | CI49: 23 | CJ49: 23 | CK49: 0 | CM49: 0 | CN49: 0 | CO49: 23 | CP49: 23 | CQ49: 0 | CS49: 0 | CT49: 0 | CU49: 23 | CV49: 23 | CW49: 0
A50: Oui | B50: Snecma | C50: 058-011-607-6 | E50: 0 | F50: 0 | G50: 0 | H50: 0 | I50: 0 | J50: 0 | L50: 0 | M50: 0 | N50: 0 | O50: 0 | P50: 0 | V50: 0 | W50: 0 | X50: 0 | Y50: 0 | Z50: 0 | AC50: 0 | AD50: 0 | AE50: 0 | AF50: 0 | AG50: 0 | AJ50: 0 | AK50: 0 | AL50: 0 | AM50: 0 | AN50: 0 | AP50: 0 | AQ50: 0 | AR50: 0 | AS50: 0 | AT50: 0 | AV50: 0 | AW50: 0 | AX50: 0 | AY50: 0 | AZ50: 0 | BB50: 0 | BC50: 0 | BD50: 0 | BE50: 0 | BF50: 0 | BI50: 0 | BJ50: 0 | BK50: 0 | BL50: 0 | BM50: 0 | BS50: 0 | BT50: 0 | BU50: 0 | BV50: 0 | CA50: 0 | CB50: 0 | CC50: 0 | CD50: 0 | CE50: 0 | CG50: 0 | CH50: 0 | CI50: 0 | CJ50: 0 | CK50: 0 | CM50: 0 | CN50: 0 | CO50: 0 | CP50: 0 | CQ50: 0 | CS50: 0 | CT50: 0 | CU50: 0 | CV50: 0 | CW50: 0
A51: Oui | B51: Snecma | C51: 058-011-608-6 | D51: PAROI EXTER ASSEMBLEE | E51: 0 | F51: 0 | G51: 0 | H51: 0 | I51: 0 | J51: 0 | L51: 0 | M51: 0 | N51: 0 | O51: 0 | P51: 0 | V51: 0 | W51: 0 | X51: 0 | Y51: 0 | Z51: 0 | AC51: 0 | AD51: 0 | AE51: 0 | AF51: 0 | AG51: 0 | AJ51: 0 | AK51: 0 | AL51: 0 | AM51: 0 | AN51: 0 | AP51: 0 | AQ51: 0 | AR51: 0 | AS51: 0 | AT51: 0 | AV51: 0 | AW51: 0 | AX51: 0 | AY51: 0 | AZ51: 0 | BB51: 0 | BC51: 0 | BD51: 0 | BE51: 0 | BF51: 0 | BI51: 0 | BJ51: 0 | BK51: 0 | BL51: 0 | BM51: 0 | BS51: 0 | BT51: 0 | BU51: 0 | BV51: 0 | CA51: 0 | CB51: 0 | CC51: 0 | CD51: 0 | CE51: 0 | CG51: 0 | CH51: 0 | CI51: 0 | CJ51: 0 | CK51: 0 | CM51: 0 | CN51: 0 | CO51: 0 | CP51: 0 | CQ51: 0 | CS51: 0 | CT51: 0 | CU51: 0 | CV51: 0 | CW51: 0
B52: AIA | C52: 058-021-001-6 | E52: 2 | F52: 0 | G52: 0 | H52: 2 | I52: 2 | J52: 0 | L52: 0 | M52: 0 | N52: 2 | O52: 2 | P52: 0 | V52: 0 | W52: 0 | X52: 2 | Y52: 2 | Z52: 0 | AC52: 0 | AD52: 0 | AE52: 2 | AF52: 2 | AG52: 0 | AJ52: 0 | AK52: 0 | AL52: 2 | AM52: 2 | AN52: 0 | AP52: 0 | AQ52: 0 | AR52: 2 | AS52: 2 | AT52: 0 | AV52: 0 | AW52: 0 | AX52: 2 | AY52: 2 | AZ52: 0 | BB52: 0 | BC52: 0 | BD52: 2 | BE52: 2 | BF52: 0 | BI52: 0 | BJ52: 0 | BK52: 2 | BL52: 2 | BM52: 0 | BR52: 0 | BS52: 0 | BT52: 2 | BU52: 2 | BV52: 0 | CA52: 0 | CB52: 0 | CC52: =VLOOKUP(C52,[1]TCD!$D:$E,2,0) -> 2 | CD52: 2 | CE52: 0 | CG52: 0 | CH52: 0 | CI52: 2 | CJ52: 2 | CK52: 0 | CM52: 0 | CN52: 0 | CO52: 2 | CP52: 2 | CQ52: 0 | CS52: 0 | CT52: 0 | CU52: 2 | CV52: 2 | CW52: 0
B53: AIA | C53: 058-021-102-6 | E53: 2 | F53: 0 | G53: 0 | H53: 2 | I53: 2 | J53: 0 | L53: 0 | M53: 0 | N53: 2 | O53: 2 | P53: 0 | V53: 0 | W53: 0 | X53: 2 | Y53: 2 | Z53: 0 | AC53: 0 | AD53: 0 | AE53: 2 | AF53: 2 | AG53: 0 | AJ53: 0 | AK53: 0 | AL53: 2 | AM53: 2 | AN53: 0 | AP53: 0 | AQ53: 0 | AR53: 2 | AS53: 2 | AT53: 0 | AV53: 0 | AW53: 0 | AX53: 2 | AY53: 2 | AZ53: 0 | BB53: 0 | BC53: 0 | BD53: 2 | BE53: 2 | BF53: 0 | BI53: 0 | BJ53: 0 | BK53: 2 | BL53: 2 | BM53: 0 | BR53: 0 | BS53: 0 | BT53: 2 | BU53: 2 | BV53: 0 | CA53: 0 | CB53: 0 | CC53: =VLOOKUP(C53,[1]TCD!$D:$E,2,0) -> 2 | CD53: 2 | CE53: 0 | CG53: 0 | CH53: 0 | CI53: 2 | CJ53: 2 | CK53: 0 | CM53: 0 | CN53: 0 | CO53: 2 | CP53: 2 | CQ53: 0 | CS53: 0 | CT53: 0 | CU53: 2 | CV53: 2 | CW53: 0
A54: Oui | B54: Snecma | C54: 058-600-101-6 | D54: KIT PS23 | E54: 28 | F54: 0 | G54: 0 | H54: 28 | I54: 28 | J54: 0 | L54: 0 | M54: 0 | N54: 28 | O54: 28 | P54: 0 | V54: 0 | W54: 0 | X54: 28 | Y54: 28 | Z54: 0 | AC54: 0 | AD54: 1 | AE54: 27 | AF54: 27 | AG54: 0 | AJ54: 0 | AK54: 1 | AL54: 26 | AM54: 26 | AN54: 0 | AP54: 0 | AQ54: 0 | AR54: 26 | AS54: 26 | AT54: 0 | AV54: 0 | AW54: 0 | AX54: 26 | AY54: 26 | AZ54: 0 | BB54: 0 | BC54: 0 | BD54: 26 | BE54: 26 | BF54: 0 | BI54: 0 | BJ54: 6 | BK54: 20 | BL54: 20 | BM54: 0 | BR54: 0 | BS54: 2 | BT54: 18 | BU54: 18 | BV54: 0 | CA54: 0 | CB54: 1 | CC54: =VLOOKUP(C54,[1]TCD!$D:$E,2,0) -> 17 | CD54: 17 | CE54: 0 | CG54: 0 | CH54: 0 | CI54: 17 | CJ54: 17 | CK54: 0 | CM54: 0 | CN54: 0 | CO54: 17 | CP54: 17 | CQ54: 0 | CS54: 0 | CT54: 0 | CU54: 17 | CV54: 17 | CW54: 0
A55: Oui | B55: Snecma | C55: 093-360-004-0 | E55: 0 | F55: 0 | G55: 0 | H55: 0 | I55: 0 | J55: 0 | L55: 0 | M55: 0 | N55: 0 | O55: 0 | P55: 0 | V55: 0 | W55: 0 | X55: 0 | Y55: 0 | Z55: 0 | AC55: 0 | AD55: 0 | AE55: 0 | AF55: 0 | AG55: 0 | AJ55: 0 | AK55: 0 | AL55: 0 | AM55: 0 | AN55: 0 | AP55: 0 | AQ55: 0 | AR55: 0 | AS55: 0 | AT55: 0 | AV55: 0 | AW55: 0 | AX55: 0 | AY55: 0 | AZ55: 0 | BB55: 0 | BC55: 0 | BD55: 0 | BE55: 0 | BF55: 0 | BI55: 0 | BJ55: 0 | BK55: 0 | BL55: 0 | BM55: 0 | BS55: 0 | BT55: 0 | BU55: 0 | BV55: 0 | CA55: 0 | CB55: 0 | CC55: 0 | CD55: 0 | CE55: 0 | CG55: 0 | CH55: 0 | CI55: 0 | CJ55: 0 | CK55: 0 | CM55: 0 | CN55: 0 | CO55: 0 | CP55: 0 | CQ55: 0 | CS55: 0 | CT55: 0 | CU55: 0 | CV55: 0 | CW55: 0
A56: Oui | B56: Snecma | C56: 093-360-007-0 | E56: 0 | F56: 0 | G56: 0 | H56: 0 | I56: 0 | J56: 0 | L56: 0 | M56: 0 | N56: 0 | O56: 0 | P56: 0 | V56: 0 | W56: 0 | X56: 0 | Y56: 0 | Z56: 0 | AC56: 0 | AD56: 0 | AE56: 0 | AF56: 0 | AG56: 0 | AJ56: 0 | AK56: 0 | AL56: 0 | AM56: 0 | AN56: 0 | AP56: 0 | AQ56: 0 | AR56: 0 | AS56: 0 | AT56: 0 | AV56: 0 | AW56: 0 | AX56: 0 | AY56: 0 | AZ56: 0 | BB56: 0 | BC56: 0 | BD56: 0 | BE56: 0 | BF56: 0 | BI56: 0 | BJ56: 0 | BK56: 0 | BL56: 0 | BM56: 0 | BS56: 0 | BT56: 0 | BU56: 0 | BV56: 0 | CA56: 0 | CB56: 0 | CC56: 0 | CD56: 0 | CE56: 0 | CG56: 0 | CH56: 0 | CI56: 0 | CJ56: 0 | CK56: 0 | CM56: 0 | CN56: 0 | CO56: 0 | CP56: 0 | CQ56: 0 | CS56: 0 | CT56: 0 | CU56: 0 | CV56: 0 | CW56: 0
A57: Oui | B57: Snecma | C57: 093-360-009-0 | E57: 0 | F57: 0 | G57: 0 | H57: 0 | I57: 0 | J57: 0 | L57: 0 | M57: 0 | N57: 0 | O57: 0 | P57: 0 | V57: 0 | W57: 0 | X57: 0 | Y57: 0 | Z57: 0 | AC57: 0 | AD57: 0 | AE57: 0 | AF57: 0 | AG57: 0 | AJ57: 0 | AK57: 0 | AL57: 0 | AM57: 0 | AN57: 0 | AP57: 0 | AQ57: 0 | AR57: 0 | AS57: 0 | AT57: 0 | AV57: 0 | AW57: 0 | AX57: 0 | AY57: 0 | AZ57: 0 | BB57: 0 | BC57: 0 | BD57: 0 | BE57: 0 | BF57: 0 | BI57: 0 | BJ57: 0 | BK57: 0 | BL57: 0 | BM57: 0 | BS57: 0 | BT57: 0 | BU57: 0 | BV57: 0 | CA57: 0 | CB57: 0 | CC57: 0 | CD57: 0 | CE57: 0 | CG57: 0 | CH57: 0 | CI57: 0 | CJ57: 0 | CK57: 0 | CM57: 0 | CN57: 0 | CO57: 0 | CP57: 0 | CQ57: 0 | CS57: 0 | CT57: 0 | CU57: 0 | CV57: 0 | CW57: 0
A58: Oui | B58: Snecma | C58: 093-360-010-0 | E58: 0 | F58: 0 | G58: 0 | H58: 0 | I58: 0 | J58: 0 | L58: 0 | M58: 0 | N58: 0 | O58: 0 | P58: 0 | V58: 0 | W58: 0 | X58: 0 | Y58: 0 | Z58: 0 | AC58: 0 | AD58: 0 | AE58: 0 | AF58: 0 | AG58: 0 | AJ58: 0 | AK58: 0 | AL58: 0 | AM58: 0 | AN58: 0 | AP58: 0 | AQ58: 0 | AR58: 0 | AS58: 0 | AT58: 0 | AV58: 0 | AW58: 0 | AX58: 0 | AY58: 0 | AZ58: 0 | BB58: 0 | BC58: 0 | BD58: 0 | BE58: 0 | BF58: 0 | BI58: 0 | BJ58: 0 | BK58: 0 | BL58: 0 | BM58: 0 | BS58: 0 | BT58: 0 | BU58: 0 | BV58: 0 | CA58: 0 | CB58: 0 | CC58: 0 | CD58: 0 | CE58: 0 | CG58: 0 | CH58: 0 | CI58: 0 | CJ58: 0 | CK58: 0 | CM58: 0 | CN58: 0 | CO58: 0 | CP58: 0 | CQ58: 0 | CS58: 0 | CT58: 0 | CU58: 0 | CV58: 0 | CW58: 0
A59: Oui | B59: Snecma | C59: 093-360-011-0 | E59: 0 | F59: 0 | G59: 0 | H59: 0 | I59: 0 | J59: 0 | L59: 0 | M59: 0 | N59: 0 | O59: 0 | P59: 0 | V59: 0 | W59: 0 | X59: 0 | Y59: 0 | Z59: 0 | AC59: 0 | AD59: 0 | AE59: 0 | AF59: 0 | AG59: 0 | AJ59: 0 | AK59: 0 | AL59: 0 | AM59: 0 | AN59: 0 | AP59: 0 | AQ59: 0 | AR59: 0 | AS59: 0 | AT59: 0 | AV59: 0 | AW59: 0 | AX59: 0 | AY59: 0 | AZ59: 0 | BB59: 0 | BC59: 0 | BD59: 0 | BE59: 0 | BF59: 0 | BI59: 0 | BJ59: 0 | BK59: 0 | BL59: 0 | BM59: 0 | BS59: 0 | BT59: 0 | BU59: 0 | BV59: 0 | CA59: 0 | CB59: 0 | CC59: 0 | CD59: 0 | CE59: 0 | CG59: 0 | CH59: 0 | CI59: 0 | CJ59: 0 | CK59: 0 | CM59: 0 | CN59: 0 | CO59: 0 | CP59: 0 | CQ59: 0 | CS59: 0 | CT59: 0 | CU59: 0 | CV59: 0 | CW59: 0
A60: Oui | B60: Snecma | C60: 093-360-012-0 | E60: 0 | F60: 0 | G60: 0 | H60: 0 | I60: 0 | J60: 0 | L60: 0 | M60: 0 | N60: 0 | O60: 0 | P60: 0 | V60: 0 | W60: 0 | X60: 0 | Y60: 0 | Z60: 0 | AC60: 0 | AD60: 0 | AE60: 0 | AF60: 0 | AG60: 0 | AJ60: 0 | AK60: 0 | AL60: 0 | AM60: 0 | AN60: 0 | AP60: 0 | AQ60: 0 | AR60: 0 | AS60: 0 | AT60: 0 | AV60: 0 | AW60: 0 | AX60: 0 | AY60: 0 | AZ60: 0 | BB60: 0 | BC60: 0 | BD60: 0 | BE60: 0 | BF60: 0 | BI60: 0 | BJ60: 0 | BK60: 0 | BL60: 0 | BM60: 0 | BS60: 0 | BT60: 0 | BU60: 0 | BV60: 0 | CA60: 0 | CB60: 0 | CC60: 0 | CD60: 0 | CE60: 0 | CG60: 0 | CH60: 0 | CI60: 0 | CJ60: 0 | CK60: 0 | CM60: 0 | CN60: 0 | CO60: 0 | CP60: 0 | CQ60: 0 | CS60: 0 | CT60: 0 | CU60: 0 | CV60: 0 | CW60: 0
A61: Oui | B61: Snecma | C61: 093-360-013-0 | E61: 0 | F61: 0 | G61: 0 | H61: 0 | I61: 0 | J61: 0 | L61: 0 | M61: 0 | N61: 0 | O61: 0 | P61: 0 | V61: 0 | W61: 0 | X61: 0 | Y61: 0 | Z61: 0 | AC61: 0 | AD61: 0 | AE61: 0 | AF61: 0 | AG61: 0 | AJ61: 0 | AK61: 0 | AL61: 0 | AM61: 0 | AN61: 0 | AP61: 0 | AQ61: 0 | AR61: 0 | AS61: 0 | AT61: 0 | AV61: 0 | AW61: 0 | AX61: 0 | AY61: 0 | AZ61: 0 | BB61: 0 | BC61: 0 | BD61: 0 | BE61: 0 | BF61: 0 | BI61: 0 | BJ61: 0 | BK61: 0 | BL61: 0 | BM61: 0 | BS61: 0 | BT61: 0 | BU61: 0 | BV61: 0 | CA61: 0 | CB61: 0 | CC61: 0 | CD61: 0 | CE61: 0 | CG61: 0 | CH61: 0 | CI61: 0 | CJ61: 0 | CK61: 0 | CM61: 0 | CN61: 0 | CO61: 0 | CP61: 0 | CQ61: 0 | CS61: 0 | CT61: 0 | CU61: 0 | CV61: 0 | CW61: 0
A62: Oui | B62: Snecma | C62: 093-360-014-0 | E62: 0 | F62: 0 | G62: 0 | H62: 0 | I62: 0 | J62: 0 | L62: 0 | M62: 0 | N62: 0 | O62: 0 | P62: 0 | V62: 0 | W62: 0 | X62: 0 | Y62: 0 | Z62: 0 | AC62: 0 | AD62: 0 | AE62: 0 | AF62: 0 | AG62: 0 | AJ62: 0 | AK62: 0 | AL62: 0 | AM62: 0 | AN62: 0 | AP62: 0 | AQ62: 0 | AR62: 0 | AS62: 0 | AT62: 0 | AV62: 0 | AW62: 0 | AX62: 0 | AY62: 0 | AZ62: 0 | BB62: 0 | BC62: 0 | BD62: 0 | BE62: 0 | BF62: 0 | BI62: 0 | BJ62: 0 | BK62: 0 | BL62: 0 | BM62: 0 | BS62: 0 | BT62: 0 | BU62: 0 | BV62: 0 | CA62: 0 | CB62: 0 | CC62: 0 | CD62: 0 | CE62: 0 | CG62: 0 | CH62: 0 | CI62: 0 | CJ62: 0 | CK62: 0 | CM62: 0 | CN62: 0 | CO62: 0 | CP62: 0 | CQ62: 0 | CS62: 0 | CT62: 0 | CU62: 0 | CV62: 0 | CW62: 0
A63: Oui | B63: Snecma | C63: 093-360-015-0 | E63: 0 | F63: 0 | G63: 0 | H63: 0 | I63: 0 | J63: 0 | L63: 0 | M63: 0 | N63: 0 | O63: 0 | P63: 0 | V63: 0 | W63: 0 | X63: 0 | Y63: 0 | Z63: 0 | AC63: 0 | AD63: 0 | AE63: 0 | AF63: 0 | AG63: 0 | AJ63: 0 | AK63: 0 | AL63: 0 | AM63: 0 | AN63: 0 | AP63: 0 | AQ63: 0 | AR63: 0 | AS63: 0 | AT63: 0 | AV63: 0 | AW63: 0 | AX63: 0 | AY63: 0 | AZ63: 0 | BB63: 0 | BC63: 0 | BD63: 0 | BE63: 0 | BF63: 0 | BI63: 0 | BJ63: 0 | BK63: 0 | BL63: 0 | BM63: 0 | BS63: 0 | BT63: 0 | BU63: 0 | BV63: 0 | CA63: 0 | CB63: 0 | CC63: 0 | CD63: 0 | CE63: 0 | CG63: 0 | CH63: 0 | CI63: 0 | CJ63: 0 | CK63: 0 | CM63: 0 | CN63: 0 | CO63: 0 | CP63: 0 | CQ63: 0 | CS63: 0 | CT63: 0 | CU63: 0 | CV63: 0 | CW63: 0
A64: Oui | B64: Snecma | C64: 093-360-016-0 | E64: 0 | F64: 0 | G64: 0 | H64: 0 | I64: 0 | J64: 0 | L64: 0 | M64: 0 | N64: 0 | O64: 0 | P64: 0 | V64: 0 | W64: 0 | X64: 0 | Y64: 0 | Z64: 0 | AC64: 0 | AD64: 0 | AE64: 0 | AF64: 0 | AG64: 0 | AJ64: 0 | AK64: 0 | AL64: 0 | AM64: 0 | AN64: 0 | AP64: 0 | AQ64: 0 | AR64: 0 | AS64: 0 | AT64: 0 | AV64: 0 | AW64: 0 | AX64: 0 | AY64: 0 | AZ64: 0 | BB64: 0 | BC64: 0 | BD64: 0 | BE64: 0 | BF64: 0 | BI64: 0 | BJ64: 0 | BK64: 0 | BL64: 0 | BM64: 0 | BS64: 0 | BT64: 0 | BU64: 0 | BV64: 0 | CA64: 0 | CB64: 0 | CC64: 0 | CD64: 0 | CE64: 0 | CG64: 0 | CH64: 0 | CI64: 0 | CJ64: 0 | CK64: 0 | CM64: 0 | CN64: 0 | CO64: 0 | CP64: 0 | CQ64: 0 | CS64: 0 | CT64: 0 | CU64: 0 | CV64: 0 | CW64: 0
A65: Oui | B65: Snecma | C65: 093-360-017-0 | E65: 0 | F65: 0 | G65: 0 | H65: 0 | I65: 0 | J65: 0 | L65: 0 | M65: 0 | N65: 0 | O65: 0 | P65: 0 | V65: 0 | W65: 0 | X65: 0 | Y65: 0 | Z65: 0 | AC65: 0 | AD65: 0 | AE65: 0 | AF65: 0 | AG65: 0 | AJ65: 0 | AK65: 0 | AL65: 0 | AM65: 0 | AN65: 0 | AP65: 0 | AQ65: 0 | AR65: 0 | AS65: 0 | AT65: 0 | AV65: 0 | AW65: 0 | AX65: 0 | AY65: 0 | AZ65: 0 | BB65: 0 | BC65: 0 | BD65: 0 | BE65: 0 | BF65: 0 | BI65: 0 | BJ65: 0 | BK65: 0 | BL65: 0 | BM65: 0 | BS65: 0 | BT65: 0 | BU65: 0 | BV65: 0 | CA65: 0 | CB65: 0 | CC65: 0 | CD65: 0 | CE65: 0 | CG65: 0 | CH65: 0 | CI65: 0 | CJ65: 0 | CK65: 0 | CM65: 0 | CN65: 0 | CO65: 0 | CP65: 0 | CQ65: 0 | CS65: 0 | CT65: 0 | CU65: 0 | CV65: 0 | CW65: 0
A66: Oui | B66: Snecma | C66: 093-360-018-0 | E66: 0 | F66: 0 | G66: 0 | H66: 0 | I66: 0 | J66: 0 | L66: 0 | M66: 0 | N66: 0 | O66: 0 | P66: 0 | V66: 0 | W66: 0 | X66: 0 | Y66: 0 | Z66: 0 | AC66: 0 | AD66: 0 | AE66: 0 | AF66: 0 | AG66: 0 | AJ66: 0 | AK66: 0 | AL66: 0 | AM66: 0 | AN66: 0 | AP66: 0 | AQ66: 0 | AR66: 0 | AS66: 0 | AT66: 0 | AV66: 0 | AW66: 0 | AX66: 0 | AY66: 0 | AZ66: 0 | BB66: 0 | BC66: 0 | BD66: 0 | BE66: 0 | BF66: 0 | BI66: 0 | BJ66: 0 | BK66: 0 | BL66: 0 | BM66: 0 | BS66: 0 | BT66: 0 | BU66: 0 | BV66: 0 | CA66: 0 | CB66: 0 | CC66: 0 | CD66: 0 | CE66: 0 | CG66: 0 | CH66: 0 | CI66: 0 | CJ66: 0 | CK66: 0 | CM66: 0 | CN66: 0 | CO66: 0 | CP66: 0 | CQ66: 0 | CS66: 0 | CT66: 0 | CU66: 0 | CV66: 0 | CW66: 0
A67: Oui | B67: Snecma | C67: 093-360-019-0 | E67: 0 | F67: 0 | G67: 0 | H67: 0 | I67: 0 | J67: 0 | L67: 0 | M67: 0 | N67: 0 | O67: 0 | P67: 0 | V67: 0 | W67: 0 | X67: 0 | Y67: 0 | Z67: 0 | AC67: 0 | AD67: 0 | AE67: 0 | AF67: 0 | AG67: 0 | AJ67: 0 | AK67: 0 | AL67: 0 | AM67: 0 | AN67: 0 | AP67: 0 | AQ67: 0 | AR67: 0 | AS67: 0 | AT67: 0 | AV67: 0 | AW67: 0 | AX67: 0 | AY67: 0 | AZ67: 0 | BB67: 0 | BC67: 0 | BD67: 0 | BE67: 0 | BF67: 0 | BI67: 0 | BJ67: 0 | BK67: 0 | BL67: 0 | BM67: 0 | BS67: 0 | BT67: 0 | BU67: 0 | BV67: 0 | CA67: 0 | CB67: 0 | CC67: 0 | CD67: 0 | CE67: 0 | CG67: 0 | CH67: 0 | CI67: 0 | CJ67: 0 | CK67: 0 | CM67: 0 | CN67: 0 | CO67: 0 | CP67: 0 | CQ67: 0 | CS67: 0 | CT67: 0 | CU67: 0 | CV67: 0 | CW67: 0
A68: Oui | B68: Snecma | C68: 093-360-020-0 | E68: 0 | F68: 0 | G68: 0 | H68: 0 | I68: 0 | J68: 0 | L68: 0 | M68: 0 | N68: 0 | O68: 0 | P68: 0 | V68: 0 | W68: 0 | X68: 0 | Y68: 0 | Z68: 0 | AC68: 0 | AD68: 0 | AE68: 0 | AF68: 0 | AG68: 0 | AJ68: 0 | AK68: 0 | AL68: 0 | AM68: 0 | AN68: 0 | AP68: 0 | AQ68: 0 | AR68: 0 | AS68: 0 | AT68: 0 | AV68: 0 | AW68: 0 | AX68: 0 | AY68: 0 | AZ68: 0 | BB68: 0 | BC68: 0 | BD68: 0 | BE68: 0 | BF68: 0 | BI68: 0 | BJ68: 0 | BK68: 0 | BL68: 0 | BM68: 0 | BS68: 0 | BT68: 0 | BU68: 0 | BV68: 0 | CA68: 0 | CB68: 0 | CC68: 0 | CD68: 0 | CE68: 0 | CG68: 0 | CH68: 0 | CI68: 0 | CJ68: 0 | CK68: 0 | CM68: 0 | CN68: 0 | CO68: 0 | CP68: 0 | CQ68: 0 | CS68: 0 | CT68: 0 | CU68: 0 | CV68: 0 | CW68: 0
A69: Oui | B69: Snecma | C69: 093-360-021-0 | E69: 0 | F69: 0 | G69: 0 | H69: 0 | I69: 0 | J69: 0 | L69: 0 | M69: 0 | N69: 0 | O69: 0 | P69: 0 | V69: 0 | W69: 0 | X69: 0 | Y69: 0 | Z69: 0 | AC69: 0 | AD69: 0 | AE69: 0 | AF69: 0 | AG69: 0 | AJ69: 0 | AK69: 0 | AL69: 0 | AM69: 0 | AN69: 0 | AP69: 0 | AQ69: 0 | AR69: 0 | AS69: 0 | AT69: 0 | AV69: 0 | AW69: 0 | AX69: 0 | AY69: 0 | AZ69: 0 | BB69: 0 | BC69: 0 | BD69: 0 | BE69: 0 | BF69: 0 | BI69: 0 | BJ69: 0 | BK69: 0 | BL69: 0 | BM69: 0 | BS69: 0 | BT69: 0 | BU69: 0 | BV69: 0 | CA69: 0 | CB69: 0 | CC69: 0 | CD69: =BT69+CA69-CB69 -> 0 | CE69: =CC69-CD69 -> 0 | CG69: 0 | CH69: 0 | CI69: 0 | CJ69: =CC69+CG69-CH69 -> 0 | CK69: =CI69-CJ69 -> 0 | CM69: 0 | CN69: 0 | CO69: 0 | CP69: =CI69+CM69-CN69 -> 0 | CQ69: =CO69-CP69 -> 0 | CS69: 0 | CT69: 0 | CU69: 0 | CV69: =CO69+CS69-CT69 -> 0 | CW69: =CU69-CV69 -> 0
A70: Oui | B70: Snecma | C70: 093-360-022-0 | E70: 0 | F70: 0 | G70: 0 | H70: 0 | I70: 0 | J70: 0 | L70: 0 | M70: 0 | N70: 0 | O70: 0 | P70: 0 | V70: 0 | W70: 0 | X70: 0 | Y70: 0 | Z70: 0 | AC70: 0 | AD70: 0 | AE70: 0 | AF70: 0 | AG70: 0 | AJ70: 0 | AK70: 0 | AL70: 0 | AM70: 0 | AN70: 0 | AP70: 0 | AQ70: 0 | AR70: 0 | AS70: 0 | AT70: 0 | AV70: 0 | AW70: 0 | AX70: 0 | AY70: 0 | AZ70: 0 | BB70: 0 | BC70: 0 | BD70: 0 | BE70: 0 | BF70: 0 | BI70: 0 | BJ70: 0 | BK70: 0 | BL70: 0 | BM70: 0 | BS70: 0 | BT70: 0 | BU70: 0 | BV70: 0 | CA70: 0 | CB70: 0 | CC70: 0 | CD70: 0 | CE70: 0 | CG70: 0 | CH70: 0 | CI70: 0 | CJ70: 0 | CK70: 0 | CM70: 0 | CN70: 0 | CO70: 0 | CP70: 0 | CQ70: 0 | CS70: 0 | CT70: 0 | CU70: 0 | CV70: 0 | CW70: 0
A71: Oui | B71: Snecma | C71: 093-360-023-0 | E71: 0 | F71: 0 | G71: 0 | H71: 0 | I71: 0 | J71: 0 | L71: 0 | M71: 0 | N71: 0 | O71: 0 | P71: 0 | V71: 0 | W71: 0 | X71: 0 | Y71: 0 | Z71: 0 | AC71: 0 | AD71: 0 | AE71: 0 | AF71: 0 | AG71: 0 | AJ71: 0 | AK71: 0 | AL71: 0 | AM71: 0 | AN71: 0 | AP71: 0 | AQ71: 0 | AR71: 0 | AS71: 0 | AT71: 0 | AV71: 0 | AW71: 0 | AX71: 0 | AY71: 0 | AZ71: 0 | BB71: 0 | BC71: 0 | BD71: 0 | BE71: 0 | BF71: 0 | BI71: 0 | BJ71: 0 | BK71: 0 | BL71: 0 | BM71: 0 | BS71: 0 | BT71: 0 | BU71: 0 | BV71: 0 | CA71: 0 | CB71: 0 | CC71: 0 | CD71: 0 | CE71: 0 | CG71: 0 | CH71: 0 | CI71: 0 | CJ71: 0 | CK71: 0 | CM71: 0 | CN71: 0 | CO71: 0 | CP71: 0 | CQ71: 0 | CS71: 0 | CT71: 0 | CU71: 0 | CV71: 0 | CW71: 0
A72: Oui | B72: Snecma | C72: 093-360-024-0 | E72: 0 | F72: 0 | G72: 0 | H72: 0 | I72: 0 | J72: 0 | L72: 0 | M72: 0 | N72: 0 | O72: 0 | P72: 0 | V72: 0 | W72: 0 | X72: 0 | Y72: 0 | Z72: 0 | AC72: 0 | AD72: 0 | AE72: 0 | AF72: 0 | AG72: 0 | AJ72: 0 | AK72: 0 | AL72: 0 | AM72: 0 | AN72: 0 | AP72: 0 | AQ72: 0 | AR72: 0 | AS72: 0 | AT72: 0 | AV72: 0 | AW72: 0 | AX72: 0 | AY72: 0 | AZ72: 0 | BB72: 0 | BC72: 0 | BD72: 0 | BE72: 0 | BF72: 0 | BI72: 0 | BJ72: 0 | BK72: 0 | BL72: 0 | BM72: 0 | BS72: 0 | BT72: 0 | BU72: 0 | BV72: 0 | CA72: 0 | CB72: 0 | CC72: 0 | CD72: 0 | CE72: 0 | CG72: 0 | CH72: 0 | CI72: 0 | CJ72: 0 | CK72: 0 | CM72: 0 | CN72: 0 | CO72: 0 | CP72: 0 | CQ72: 0 | CS72: 0 | CT72: 0 | CU72: 0 | CV72: 0 | CW72: 0
A73: Oui | B73: Snecma | C73: 093-360-025-0 | E73: 0 | F73: 0 | G73: 0 | H73: 0 | I73: 0 | J73: 0 | L73: 0 | M73: 0 | N73: 0 | O73: 0 | P73: 0 | V73: 0 | W73: 0 | X73: 0 | Y73: 0 | Z73: 0 | AC73: 0 | AD73: 0 | AE73: 0 | AF73: 0 | AG73: 0 | AJ73: 0 | AK73: 0 | AL73: 0 | AM73: 0 | AN73: 0 | AP73: 0 | AQ73: 0 | AR73: 0 | AS73: 0 | AT73: 0 | AV73: 0 | AW73: 0 | AX73: 0 | AY73: 0 | AZ73: 0 | BB73: 0 | BC73: 0 | BD73: 0 | BE73: 0 | BF73: 0 | BI73: 0 | BJ73: 0 | BK73: 0 | BL73: 0 | BM73: 0 | BS73: 0 | BT73: 0 | BU73: 0 | BV73: 0 | CA73: 0 | CB73: 0 | CC73: 0 | CD73: 0 | CE73: 0 | CG73: 0 | CH73: 0 | CI73: 0 | CJ73: 0 | CK73: 0 | CM73: 0 | CN73: 0 | CO73: 0 | CP73: 0 | CQ73: 0 | CS73: 0 | CT73: 0 | CU73: 0 | CV73: 0 | CW73: 0
A74: Oui | B74: Snecma | C74: 093-360-026-0 | E74: 0 | F74: 0 | G74: 0 | H74: 0 | I74: 0 | J74: 0 | L74: 0 | M74: 0 | N74: 0 | O74: 0 | P74: 0 | V74: 0 | W74: 0 | X74: 0 | Y74: 0 | Z74: 0 | AC74: 0 | AD74: 0 | AE74: 0 | AF74: 0 | AG74: 0 | AJ74: 0 | AK74: 0 | AL74: 0 | AM74: 0 | AN74: 0 | AP74: 0 | AQ74: 0 | AR74: 0 | AS74: 0 | AT74: 0 | AV74: 0 | AW74: 0 | AX74: 0 | AY74: 0 | AZ74: 0 | BB74: 0 | BC74: 0 | BD74: 0 | BE74: 0 | BF74: 0 | BI74: 0 | BJ74: 0 | BK74: 0 | BL74: 0 | BM74: 0 | BS74: 0 | BT74: 0 | BU74: 0 | BV74: 0 | CA74: 0 | CB74: 0 | CC74: 0 | CD74: 0 | CE74: 0 | CG74: 0 | CH74: 0 | CI74: 0 | CJ74: 0 | CK74: 0 | CM74: 0 | CN74: 0 | CO74: 0 | CP74: 0 | CQ74: 0 | CS74: 0 | CT74: 0 | CU74: 0 | CV74: 0 | CW74: 0
A75: Oui | B75: Snecma | C75: 093-360-027-0 | E75: 0 | F75: 0 | G75: 0 | H75: 0 | I75: 0 | J75: 0 | L75: 0 | M75: 0 | N75: 0 | O75: 0 | P75: 0 | V75: 0 | W75: 0 | X75: 0 | Y75: 0 | Z75: 0 | AC75: 0 | AD75: 0 | AE75: 0 | AF75: 0 | AG75: 0 | AJ75: 0 | AK75: 0 | AL75: 0 | AM75: 0 | AN75: 0 | AP75: 0 | AQ75: 0 | AR75: 0 | AS75: 0 | AT75: 0 | AV75: 0 | AW75: 0 | AX75: 0 | AY75: 0 | AZ75: 0 | BB75: 0 | BC75: 0 | BD75: 0 | BE75: 0 | BF75: 0 | BI75: 0 | BJ75: 0 | BK75: 0 | BL75: 0 | BM75: 0 | BS75: 0 | BT75: 0 | BU75: 0 | BV75: 0 | CA75: 0 | CB75: 0 | CC75: 0 | CD75: 0 | CE75: 0 | CG75: 0 | CH75: 0 | CI75: 0 | CJ75: 0 | CK75: 0 | CM75: 0 | CN75: 0 | CO75: 0 | CP75: 0 | CQ75: 0 | CS75: 0 | CT75: 0 | CU75: 0 | CV75: 0 | CW75: 0
A76: Oui | B76: Snecma | C76: 093-360-028-0 | E76: 0 | F76: 0 | G76: 0 | H76: 0 | I76: 0 | J76: 0 | L76: 0 | M76: 0 | N76: 0 | O76: 0 | P76: 0 | V76: 0 | W76: 0 | X76: 0 | Y76: 0 | Z76: 0 | AC76: 0 | AD76: 0 | AE76: 0 | AF76: 0 | AG76: 0 | AJ76: 0 | AK76: 0 | AL76: 0 | AM76: 0 | AN76: 0 | AP76: 0 | AQ76: 0 | AR76: 0 | AS76: 0 | AT76: 0 | AV76: 0 | AW76: 0 | AX76: 0 | AY76: 0 | AZ76: 0 | BB76: 0 | BC76: 0 | BD76: 0 | BE76: 0 | BF76: 0 | BI76: 0 | BJ76: 0 | BK76: 0 | BL76: 0 | BM76: 0 | BS76: 0 | BT76: 0 | BU76: 0 | BV76: 0 | CA76: 0 | CB76: 0 | CC76: 0 | CD76: 0 | CE76: 0 | CG76: 0 | CH76: 0 | CI76: 0 | CJ76: 0 | CK76: 0 | CM76: 0 | CN76: 0 | CO76: 0 | CP76: 0 | CQ76: 0 | CS76: 0 | CT76: 0 | CU76: 0 | CV76: 0 | CW76: 0
A77: Oui | B77: Snecma | C77: 093-360-029-0 | E77: 0 | F77: 0 | G77: 0 | H77: 0 | I77: 0 | J77: 0 | L77: 0 | M77: 0 | N77: 0 | O77: 0 | P77: 0 | V77: 0 | W77: 0 | X77: 0 | Y77: 0 | Z77: 0 | AC77: 0 | AD77: 0 | AE77: 0 | AF77: 0 | AG77: 0 | AJ77: 0 | AK77: 0 | AL77: 0 | AM77: 0 | AN77: 0 | AP77: 0 | AQ77: 0 | AR77: 0 | AS77: 0 | AT77: 0 | AV77: 0 | AW77: 0 | AX77: 0 | AY77: 0 | AZ77: 0 | BB77: 0 | BC77: 0 | BD77: 0 | BE77: 0 | BF77: 0 | BI77: 0 | BJ77: 0 | BK77: 0 | BL77: 0 | BM77: 0 | BS77: 0 | BT77: 0 | BU77: 0 | BV77: 0 | CA77: 0 | CB77: 0 | CC77: 0 | CD77: 0 | CE77: 0 | CG77: 0 | CH77: 0 | CI77: 0 | CJ77: 0 | CK77: 0 | CM77: 0 | CN77: 0 | CO77: 0 | CP77: 0 | CQ77: 0 | CS77: 0 | CT77: 0 | CU77: 0 | CV77: 0 | CW77: 0
A78: Oui | B78: Snecma | C78: 093-360-030-0 | E78: 0 | F78: 0 | G78: 0 | H78: 0 | I78: 0 | J78: 0 | L78: 0 | M78: 0 | N78: 0 | O78: 0 | P78: 0 | V78: 0 | W78: 0 | X78: 0 | Y78: 0 | Z78: 0 | AC78: 0 | AD78: 0 | AE78: 0 | AF78: 0 | AG78: 0 | AJ78: 0 | AK78: 0 | AL78: 0 | AM78: 0 | AN78: 0 | AP78: 0 | AQ78: 0 | AR78: 0 | AS78: 0 | AT78: 0 | AV78: 0 | AW78: 0 | AX78: 0 | AY78: 0 | AZ78: 0 | BB78: 0 | BC78: 0 | BD78: 0 | BE78: 0 | BF78: 0 | BI78: 0 | BJ78: 0 | BK78: 0 | BL78: 0 | BM78: 0 | BS78: 0 | BT78: 0 | BU78: 0 | BV78: 0 | CA78: 0 | CB78: 0 | CC78: 0 | CD78: 0 | CE78: 0 | CG78: 0 | CH78: 0 | CI78: 0 | CJ78: 0 | CK78: 0 | CM78: 0 | CN78: 0 | CO78: 0 | CP78: 0 | CQ78: 0 | CS78: 0 | CT78: 0 | CU78: 0 | CV78: 0 | CW78: 0
A79: Oui | B79: Snecma | C79: 093-360-031-0 | E79: 0 | F79: 0 | G79: 0 | H79: 0 | I79: 0 | J79: 0 | L79: 0 | M79: 0 | N79: 0 | O79: 0 | P79: 0 | V79: 0 | W79: 0 | X79: 0 | Y79: 0 | Z79: 0 | AC79: 0 | AD79: 0 | AE79: 0 | AF79: 0 | AG79: 0 | AJ79: 0 | AK79: 0 | AL79: 0 | AM79: 0 | AN79: 0 | AP79: 0 | AQ79: 0 | AR79: 0 | AS79: 0 | AT79: 0 | AV79: 0 | AW79: 0 | AX79: 0 | AY79: 0 | AZ79: 0 | BB79: 0 | BC79: 0 | BD79: 0 | BE79: 0 | BF79: 0 | BI79: 0 | BJ79: 0 | BK79: 0 | BL79: 0 | BM79: 0 | BS79: 0 | BT79: 0 | BU79: 0 | BV79: 0 | CA79: 0 | CB79: 0 | CC79: 0 | CD79: 0 | CE79: 0 | CG79: 0 | CH79: 0 | CI79: 0 | CJ79: 0 | CK79: 0 | CM79: 0 | CN79: 0 | CO79: 0 | CP79: 0 | CQ79: 0 | CS79: 0 | CT79: 0 | CU79: 0 | CV79: 0 | CW79: 0
A80: Oui | B80: Snecma | C80: 093-360-033-0 | E80: 0 | F80: 0 | G80: 0 | H80: 0 | I80: 0 | J80: 0 | L80: 0 | M80: 0 | N80: 0 | O80: 0 | P80: 0 | V80: 0 | W80: 0 | X80: 0 | Y80: 0 | Z80: 0 | AC80: 0 | AD80: 0 | AE80: 0 | AF80: 0 | AG80: 0 | AJ80: 0 | AK80: 0 | AL80: 0 | AM80: 0 | AN80: 0 | AP80: 0 | AQ80: 0 | AR80: 0 | AS80: 0 | AT80: 0 | AV80: 0 | AW80: 0 | AX80: 0 | AY80: 0 | AZ80: 0 | BB80: 0 | BC80: 0 | BD80: 0 | BE80: 0 | BF80: 0 | BI80: 0 | BJ80: 0 | BK80: 0 | BL80: 0 | BM80: 0 | BS80: 0 | BT80: 0 | BU80: 0 | BV80: 0 | CA80: 0 | CB80: 0 | CC80: 0 | CD80: 0 | CE80: 0 | CG80: 0 | CH80: 0 | CI80: 0 | CJ80: 0 | CK80: 0 | CM80: 0 | CN80: 0 | CO80: 0 | CP80: 0 | CQ80: 0 | CS80: 0 | CT80: 0 | CU80: 0 | CV80: 0 | CW80: 0
A81: Oui | B81: Snecma | C81: 093-360-034-0 | E81: 0 | F81: 0 | G81: 0 | H81: 0 | I81: 0 | J81: 0 | L81: 0 | M81: 0 | N81: 0 | O81: 0 | P81: 0 | V81: 0 | W81: 0 | X81: 0 | Y81: 0 | Z81: 0 | AC81: 0 | AD81: 0 | AE81: 0 | AF81: 0 | AG81: 0 | AJ81: 0 | AK81: 0 | AL81: 0 | AM81: 0 | AN81: 0 | AP81: 0 | AQ81: 0 | AR81: 0 | AS81: 0 | AT81: 0 | AV81: 0 | AW81: 0 | AX81: 0 | AY81: 0 | AZ81: 0 | BB81: 0 | BC81: 0 | BD81: 0 | BE81: 0 | BF81: 0 | BI81: 0 | BJ81: 0 | BK81: 0 | BL81: 0 | BM81: 0 | BS81: 0 | BT81: 0 | BU81: 0 | BV81: 0 | CA81: 0 | CB81: 0 | CC81: 0 | CD81: 0 | CE81: 0 | CG81: 0 | CH81: 0 | CI81: 0 | CJ81: 0 | CK81: 0 | CM81: 0 | CN81: 0 | CO81: 0 | CP81: 0 | CQ81: 0 | CS81: 0 | CT81: 0 | CU81: 0 | CV81: 0 | CW81: 0
A82: Oui | B82: Snecma | C82: 093-360-035-0 | E82: 0 | F82: 0 | G82: 0 | H82: 0 | I82: 0 | J82: 0 | L82: 0 | M82: 0 | N82: 0 | O82: 0 | P82: 0 | V82: 0 | W82: 0 | X82: 0 | Y82: 0 | Z82: 0 | AC82: 0 | AD82: 0 | AE82: 0 | AF82: 0 | AG82: 0 | AJ82: 0 | AK82: 0 | AL82: 0 | AM82: 0 | AN82: 0 | AP82: 0 | AQ82: 0 | AR82: 0 | AS82: 0 | AT82: 0 | AV82: 0 | AW82: 0 | AX82: 0 | AY82: 0 | AZ82: 0 | BB82: 0 | BC82: 0 | BD82: 0 | BE82: 0 | BF82: 0 | BI82: 0 | BJ82: 0 | BK82: 0 | BL82: 0 | BM82: 0 | BS82: 0 | BT82: 0 | BU82: 0 | BV82: 0 | CA82: 0 | CB82: 0 | CC82: 0 | CD82: 0 | CE82: 0 | CG82: 0 | CH82: 0 | CI82: 0 | CJ82: 0 | CK82: 0 | CM82: 0 | CN82: 0 | CO82: 0 | CP82: 0 | CQ82: 0 | CS82: 0 | CT82: 0 | CU82: 0 | CV82: 0 | CW82: 0
A83: Oui | B83: Snecma | C83: 093-360-036-0 | E83: 0 | F83: 0 | G83: 0 | H83: 0 | I83: 0 | J83: 0 | L83: 0 | M83: 0 | N83: 0 | O83: 0 | P83: 0 | V83: 0 | W83: 0 | X83: 0 | Y83: 0 | Z83: 0 | AC83: 0 | AD83: 0 | AE83: 0 | AF83: 0 | AG83: 0 | AJ83: 0 | AK83: 0 | AL83: 0 | AM83: 0 | AN83: 0 | AP83: 0 | AQ83: 0 | AR83: 0 | AS83: 0 | AT83: 0 | AV83: 0 | AW83: 0 | AX83: 0 | AY83: 0 | AZ83: 0 | BB83: 0 | BC83: 0 | BD83: 0 | BE83: 0 | BF83: 0 | BI83: 0 | BJ83: 0 | BK83: 0 | BL83: 0 | BM83: 0 | BS83: 0 | BT83: 0 | BU83: 0 | BV83: 0 | CA83: 0 | CB83: 0 | CC83: 0 | CD83: 0 | CE83: 0 | CG83: 0 | CH83: 0 | CI83: 0 | CJ83: 0 | CK83: 0 | CM83: 0 | CN83: 0 | CO83: 0 | CP83: 0 | CQ83: 0 | CS83: 0 | CT83: 0 | CU83: 0 | CV83: 0 | CW83: 0
A84: Oui | B84: Snecma | C84: 093-360-037-0 | E84: 0 | F84: 0 | G84: 0 | H84: 0 | I84: 0 | J84: 0 | L84: 0 | M84: 0 | N84: 0 | O84: 0 | P84: 0 | V84: 0 | W84: 0 | X84: 0 | Y84: 0 | Z84: 0 | AC84: 0 | AD84: 0 | AE84: 0 | AF84: 0 | AG84: 0 | AJ84: 0 | AK84: 0 | AL84: 0 | AM84: 0 | AN84: 0 | AP84: 0 | AQ84: 0 | AR84: 0 | AS84: 0 | AT84: 0 | AV84: 0 | AW84: 0 | AX84: 0 | AY84: 0 | AZ84: 0 | BB84: 0 | BC84: 0 | BD84: 0 | BE84: 0 | BF84: 0 | BI84: 0 | BJ84: 0 | BK84: 0 | BL84: 0 | BM84: 0 | BS84: 0 | BT84: 0 | BU84: 0 | BV84: 0 | CA84: 0 | CB84: 0 | CC84: 0 | CD84: 0 | CE84: 0 | CG84: 0 | CH84: 0 | CI84: 0 | CJ84: 0 | CK84: 0 | CM84: 0 | CN84: 0 | CO84: 0 | CP84: 0 | CQ84: 0 | CS84: 0 | CT84: 0 | CU84: 0 | CV84: 0 | CW84: 0
A85: Oui | B85: Snecma | C85: 093-360-038-0 | E85: 0 | F85: 0 | G85: 0 | H85: 0 | I85: 0 | J85: 0 | L85: 0 | M85: 0 | N85: 0 | O85: 0 | P85: 0 | V85: 0 | W85: 0 | X85: 0 | Y85: 0 | Z85: 0 | AC85: 0 | AD85: 0 | AE85: 0 | AF85: 0 | AG85: 0 | AJ85: 0 | AK85: 0 | AL85: 0 | AM85: 0 | AN85: 0 | AP85: 0 | AQ85: 0 | AR85: 0 | AS85: 0 | AT85: 0 | AV85: 0 | AW85: 0 | AX85: 0 | AY85: 0 | AZ85: 0 | BB85: 0 | BC85: 0 | BD85: 0 | BE85: 0 | BF85: 0 | BI85: 0 | BJ85: 0 | BK85: 0 | BL85: 0 | BM85: 0 | BS85: 0 | BT85: 0 | BU85: 0 | BV85: 0 | CA85: 0 | CB85: 0 | CC85: 0 | CD85: 0 | CE85: 0 | CG85: 0 | CH85: 0 | CI85: 0 | CJ85: 0 | CK85: 0 | CM85: 0 | CN85: 0 | CO85: 0 | CP85: 0 | CQ85: 0 | CS85: 0 | CT85: 0 | CU85: 0 | CV85: 0 | CW85: 0
A86: Oui | B86: Snecma | C86: 093-360-039-0 | E86: 0 | F86: 0 | G86: 0 | H86: 0 | I86: 0 | J86: 0 | L86: 0 | M86: 0 | N86: 0 | O86: 0 | P86: 0 | V86: 0 | W86: 0 | X86: 0 | Y86: 0 | Z86: 0 | AC86: 0 | AD86: 0 | AE86: 0 | AF86: 0 | AG86: 0 | AJ86: 0 | AK86: 0 | AL86: 0 | AM86: 0 | AN86: 0 | AP86: 0 | AQ86: 0 | AR86: 0 | AS86: 0 | AT86: 0 | AV86: 0 | AW86: 0 | AX86: 0 | AY86: 0 | AZ86: 0 | BB86: 0 | BC86: 0 | BD86: 0 | BE86: 0 | BF86: 0 | BI86: 0 | BJ86: 0 | BK86: 0 | BL86: 0 | BM86: 0 | BS86: 0 | BT86: 0 | BU86: 0 | BV86: 0 | CA86: 0 | CB86: 0 | CC86: 0 | CD86: 0 | CE86: 0 | CG86: 0 | CH86: 0 | CI86: 0 | CJ86: 0 | CK86: 0 | CM86: 0 | CN86: 0 | CO86: 0 | CP86: 0 | CQ86: 0 | CS86: 0 | CT86: 0 | CU86: 0 | CV86: 0 | CW86: 0
A87: Oui | B87: Snecma | C87: 093-360-070-0 | D87: AIGUILLE | E87: 964 | F87: 0 | G87: 0 | H87: 964 | I87: 964 | J87: 0 | L87: 0 | M87: 0 | N87: 964 | O87: 964 | P87: 0 | V87: 0 | W87: 0 | X87: 964 | Y87: 964 | Z87: 0 | AC87: 0 | AD87: 0 | AE87: 964 | AF87: 964 | AG87: 0 | AJ87: 0 | AK87: 0 | AL87: 964 | AM87: 964 | AN87: 0 | AP87: 0 | AQ87: 0 | AR87: 964 | AS87: 964 | AT87: 0 | AV87: 0 | AW87: 0 | AX87: 964 | AY87: 964 | AZ87: 0 | BB87: 0 | BC87: 0 | BD87: 964 | BE87: 964 | BF87: 0 | BI87: 0 | BJ87: 0 | BK87: 964 | BL87: 964 | BM87: 0 | BR87: 0 | BS87: 0 | BT87: 964 | BU87: 964 | BV87: 0 | CA87: 0 | CB87: 0 | CC87: =VLOOKUP(C87,[1]TCD!$D:$E,2,0) -> 964 | CD87: 964 | CE87: 0 | CG87: 0 | CH87: 0 | CI87: 964 | CJ87: 964 | CK87: 0 | CM87: 0 | CN87: 0 | CO87: 964 | CP87: 964 | CQ87: 0 | CS87: 0 | CT87: 0 | CU87: 964 | CV87: 964 | CW87: 0
A88: Oui | B88: Snecma | C88: 093-360-072-0 | D88: BUTEE EQUIPEE | E88: 77 | F88: 0 | G88: 0 | H88: 77 | I88: 77 | J88: 0 | L88: 0 | M88: 0 | N88: 77 | O88: 77 | P88: 0 | V88: 0 | W88: 0 | X88: 77 | Y88: 77 | Z88: 0 | AC88: 0 | AD88: 0 | AE88: 77 | AF88: 77 | AG88: 0 | AJ88: 0 | AK88: 0 | AL88: 77 | AM88: 77 | AN88: 0 | AP88: 0 | AQ88: 0 | AR88: 77 | AS88: 77 | AT88: 0 | AV88: 0 | AW88: 0 | AX88: 77 | AY88: 77 | AZ88: 0 | BB88: 0 | BC88: 0 | BD88: 77 | BE88: 77 | BF88: 0 | BI88: 0 | BJ88: 0 | BK88: 77 | BL88: 77 | BM88: 0 | BR88: 0 | BS88: 0 | BT88: 77 | BU88: 77 | BV88: 0 | CA88: 0 | CB88: 0 | CC88: =VLOOKUP(C88,[1]TCD!$D:$E,2,0) -> 77 | CD88: 77 | CE88: 0 | CG88: 0 | CH88: 0 | CI88: 77 | CJ88: 77 | CK88: 0 | CM88: 0 | CN88: 0 | CO88: 77 | CP88: 77 | CQ88: 0 | CS88: 0 | CT88: 0 | CU88: 77 | CV88: 77 | CW88: 0
A89: Oui | B89: Snecma | C89: 093-360-084-0 | E89: 0 | F89: 0 | G89: 0 | H89: 0 | I89: 0 | J89: 0 | L89: 0 | M89: 0 | N89: 0 | O89: 0 | P89: 0 | V89: 0 | W89: 0 | X89: 0 | Y89: 0 | Z89: 0 | AC89: 0 | AD89: 0 | AE89: 0 | AF89: 0 | AG89: 0 | AJ89: 0 | AK89: 0 | AL89: 0 | AM89: 0 | AN89: 0 | AP89: 0 | AQ89: 0 | AR89: 0 | AS89: 0 | AT89: 0 | AV89: 0 | AW89: 0 | AX89: 0 | AY89: 0 | AZ89: 0 | BB89: 0 | BC89: 0 | BD89: 0 | BE89: 0 | BF89: 0 | BI89: 0 | BJ89: 0 | BK89: 0 | BL89: 0 | BM89: 0 | BS89: 0 | BT89: 0 | BU89: 0 | BV89: 0 | CA89: 0 | CB89: 0 | CC89: 0 | CD89: 0 | CE89: 0 | CG89: 0 | CH89: 0 | CI89: 0 | CJ89: 0 | CK89: 0 | CM89: 0 | CN89: 0 | CO89: 0 | CP89: 0 | CQ89: 0 | CS89: 0 | CT89: 0 | CU89: 0 | CV89: 0 | CW89: 0
A90: Oui | B90: Snecma | C90: 093-360-085-0 | E90: 400 | F90: 0 | G90: 0 | H90: 400 | I90: 400 | J90: 0 | L90: 0 | M90: 0 | N90: 400 | O90: 400 | P90: 0 | V90: 0 | W90: 0 | X90: 400 | Y90: 400 | Z90: 0 | AC90: 0 | AD90: 0 | AE90: 400 | AF90: 400 | AG90: 0 | AJ90: 0 | AK90: 0 | AL90: 400 | AM90: 400 | AN90: 0 | AP90: 0 | AQ90: 0 | AR90: 400 | AS90: 400 | AT90: 0 | AV90: 0 | AW90: 0 | AX90: 400 | AY90: 400 | AZ90: 0 | BB90: 0 | BC90: 0 | BD90: 400 | BE90: 400 | BF90: 0 | BI90: 0 | BJ90: 0 | BK90: 400 | BL90: 400 | BM90: 0 | BR90: 0 | BS90: 0 | BT90: 400 | BU90: 400 | BV90: 0 | CA90: 0 | CB90: 0 | CC90: =VLOOKUP(C90,[1]TCD!$D:$E,2,0) -> 400 | CD90: 400 | CE90: 0 | CG90: 0 | CH90: 0 | CI90: 400 | CJ90: 400 | CK90: 0 | CM90: 0 | CN90: 0 | CO90: 400 | CP90: 400 | CQ90: 0 | CS90: 0 | CT90: 0 | CU90: 400 | CV90: 400 | CW90: 0
A91: Oui | B91: AIA | C91: 093-360-087-0 | E91: 990 | F91: 0 | G91: 0 | H91: 990 | I91: 990 | J91: 0 | L91: 0 | M91: 0 | N91: 990 | O91: 990 | P91: 0 | V91: 0 | W91: 0 | X91: 990 | Y91: 990 | Z91: 0 | AC91: 0 | AD91: 0 | AE91: 990 | AF91: 990 | AG91: 0 | AJ91: 0 | AK91: 0 | AL91: 990 | AM91: 990 | AN91: 0 | AP91: 0 | AQ91: 0 | AR91: 990 | AS91: 990 | AT91: 0 | AV91: 0 | AW91: 0 | AX91: 990 | AY91: 990 | AZ91: 0 | BB91: 0 | BC91: 0 | BD91: 990 | BE91: 990 | BF91: 0 | BI91: 0 | BJ91: 0 | BK91: 990 | BL91: 990 | BM91: 0 | BR91: 0 | BS91: 0 | BT91: 990 | BU91: 990 | BV91: 0 | CA91: 0 | CB91: 0 | CC91: =VLOOKUP(C91,[1]TCD!$D:$E,2,0) -> 990 | CD91: 990 | CE91: 0 | CG91: 0 | CH91: 0 | CI91: 990 | CJ91: 990 | CK91: 0 | CM91: 0 | CN91: 0 | CO91: 990 | CP91: 990 | CQ91: 0 | CS91: 0 | CT91: 0 | CU91: 990 | CV91: 990 | CW91: 0
A92: Oui | B92: Snecma | C92: 093-410-000-0 | E92: 0 | F92: 0 | G92: 0 | H92: 0 | I92: 0 | J92: 0 | L92: 0 | M92: 0 | N92: 0 | O92: 0 | P92: 0 | V92: 0 | W92: 0 | X92: 0 | Y92: 0 | Z92: 0 | AC92: 0 | AD92: 0 | AE92: 0 | AF92: 0 | AG92: 0 | AJ92: 0 | AK92: 0 | AL92: 0 | AM92: 0 | AN92: 0 | AP92: 0 | AQ92: 0 | AR92: 0 | AS92: 0 | AT92: 0 | AV92: 0 | AW92: 0 | AX92: 0 | AY92: 0 | AZ92: 0 | BB92: 0 | BC92: 0 | BD92: 0 | BE92: 0 | BF92: 0 | BI92: 0 | BJ92: 0 | BK92: 0 | BL92: 0 | BM92: 0 | BS92: 0 | BT92: 0 | BU92: 0 | BV92: 0 | CA92: 0 | CB92: 0 | CC92: 0 | CD92: 0 | CE92: 0 | CG92: 0 | CH92: 0 | CI92: 0 | CJ92: 0 | CK92: 0 | CM92: 0 | CN92: 0 | CO92: 0 | CP92: 0 | CQ92: 0 | CS92: 0 | CT92: 0 | CU92: 0 | CV92: 0 | CW92: 0
A93: Oui | B93: Snecma | C93: 093-410-054-0 | E93: 0 | F93: 0 | G93: 0 | H93: 0 | I93: 0 | J93: 0 | L93: 0 | M93: 0 | N93: 0 | O93: 0 | P93: 0 | V93: 0 | W93: 0 | X93: 0 | Y93: 0 | Z93: 0 | AC93: 0 | AD93: 0 | AE93: 0 | AF93: 0 | AG93: 0 | AJ93: 0 | AK93: 0 | AL93: 0 | AM93: 0 | AN93: 0 | AP93: 0 | AQ93: 0 | AR93: 0 | AS93: 0 | AT93: 0 | AV93: 0 | AW93: 0 | AX93: 0 | AY93: 0 | AZ93: 0 | BB93: 0 | BC93: 0 | BD93: 0 | BE93: 0 | BF93: 0 | BI93: 0 | BJ93: 0 | BK93: 0 | BL93: 0 | BM93: 0 | BS93: 0 | BT93: 0 | BU93: 0 | BV93: 0 | CA93: 0 | CB93: 0 | CC93: 0 | CD93: 0 | CE93: 0 | CG93: 0 | CH93: 0 | CI93: 0 | CJ93: 0 | CK93: 0 | CM93: 0 | CN93: 0 | CO93: 0 | CP93: 0 | CQ93: 0 | CS93: 0 | CT93: 0 | CU93: 0 | CV93: 0 | CW93: 0
A94: Oui | B94: Snecma | C94: 093-410-138-0 | D94: GAINE ISOLANTE ELECTRIQUE | E94: 4 | F94: 0 | G94: 0 | H94: 4 | I94: 4 | J94: 0 | L94: 0 | M94: 0 | N94: 4 | O94: 4 | P94: 0 | V94: 0 | W94: 0 | X94: 4 | Y94: 4 | Z94: 0 | AC94: 0 | AD94: 0 | AE94: 4 | AF94: 4 | AG94: 0 | AJ94: 0 | AK94: 0 | AL94: 4 | AM94: 4 | AN94: 0 | AP94: 0 | AQ94: 0 | AR94: 4 | AS94: 4 | AT94: 0 | AV94: 0 | AW94: 0 | AX94: 4 | AY94: 4 | AZ94: 0 | BB94: 0 | BC94: 0 | BD94: 4 | BE94: 4 | BF94: 0 | BI94: 0 | BJ94: 0 | BK94: 4 | BL94: 4 | BM94: 0 | BR94: 0 | BS94: 0 | BT94: 4 | BU94: 4 | BV94: 0 | CA94: 0 | CB94: 0 | CC94: =VLOOKUP(C94,[1]TCD!$D:$E,2,0) -> 4 | CD94: 4 | CE94: 0 | CG94: 0 | CH94: 0 | CI94: 4 | CJ94: 4 | CK94: 0 | CM94: 0 | CN94: 0 | CO94: 4 | CP94: 4 | CQ94: 0 | CS94: 0 | CT94: 0 | CU94: 4 | CV94: 4 | CW94: 0
A95: Oui | B95: Snecma | C95: 093-998-041-0 | E95: 0 | F95: 0 | G95: 0 | H95: 0 | I95: 0 | J95: 0 | L95: 0 | M95: 0 | N95: 0 | O95: 0 | P95: 0 | V95: 0 | W95: 0 | X95: 0 | Y95: 0 | Z95: 0 | AC95: 0 | AD95: 0 | AE95: 0 | AF95: 0 | AG95: 0 | AJ95: 0 | AK95: 0 | AL95: 0 | AM95: 0 | AN95: 0 | AP95: 0 | AQ95: 0 | AR95: 0 | AS95: 0 | AT95: 0 | AV95: 0 | AW95: 0 | AX95: 0 | AY95: 0 | AZ95: 0 | BB95: 0 | BC95: 0 | BD95: 0 | BE95: 0 | BF95: 0 | BI95: 0 | BJ95: 0 | BK95: 0 | BL95: 0 | BM95: 0 | BS95: 0 | BT95: 0 | BU95: 0 | BV95: 0 | CA95: 0 | CB95: 0 | CC95: 0 | CD95: 0 | CE95: 0 | CG95: 0 | CH95: 0 | CI95: 0 | CJ95: 0 | CK95: 0 | CM95: 0 | CN95: 0 | CO95: 0 | CP95: 0 | CQ95: 0 | CS95: 0 | CT95: 0 | CU95: 0 | CV95: 0 | CW95: 0
A96: Oui | B96: Snecma | C96: 093-998-097-0 | E96: 0 | F96: 0 | G96: 0 | H96: 0 | I96: 0 | J96: 0 | L96: 0 | M96: 0 | N96: 0 | O96: 0 | P96: 0 | V96: 0 | W96: 0 | X96: 0 | Y96: 0 | Z96: 0 | AC96: 0 | AD96: 0 | AE96: 0 | AF96: 0 | AG96: 0 | AJ96: 0 | AK96: 0 | AL96: 0 | AM96: 0 | AN96: 0 | AP96: 0 | AQ96: 0 | AR96: 0 | AS96: 0 | AT96: 0 | AV96: 0 | AW96: 0 | AX96: 0 | AY96: 0 | AZ96: 0 | BB96: 0 | BC96: 0 | BD96: 0 | BE96: 0 | BF96: 0 | BI96: 0 | BJ96: 0 | BK96: 0 | BL96: 0 | BM96: 0 | BS96: 0 | BT96: 0 | BU96: 0 | BV96: 0 | CA96: 0 | CB96: 0 | CC96: 0 | CD96: 0 | CE96: 0 | CG96: 0 | CH96: 0 | CI96: 0 | CJ96: 0 | CK96: 0 | CM96: 0 | CN96: 0 | CO96: 0 | CP96: 0 | CQ96: 0 | CS96: 0 | CT96: 0 | CU96: 0 | CV96: 0 | CW96: 0
A97: Oui | B97: Snecma | C97: 093-998-189-0 | E97: 0 | F97: 0 | G97: 0 | H97: 0 | I97: 0 | J97: 0 | L97: 0 | M97: 0 | N97: 0 | O97: 0 | P97: 0 | V97: 0 | W97: 0 | X97: 0 | Y97: 0 | Z97: 0 | AC97: 0 | AD97: 0 | AE97: 0 | AF97: 0 | AG97: 0 | AJ97: 0 | AK97: 0 | AL97: 0 | AM97: 0 | AN97: 0 | AP97: 0 | AQ97: 0 | AR97: 0 | AS97: 0 | AT97: 0 | AV97: 0 | AW97: 0 | AX97: 0 | AY97: 0 | AZ97: 0 | BB97: 0 | BC97: 0 | BD97: 0 | BE97: 0 | BF97: 0 | BI97: 0 | BJ97: 0 | BK97: 0 | BL97: 0 | BM97: 0 | BS97: 0 | BT97: 0 | BU97: 0 | BV97: 0 | CA97: 0 | CB97: 0 | CC97: 0 | CD97: 0 | CE97: 0 | CG97: 0 | CH97: 0 | CI97: 0 | CJ97: 0 | CK97: 0 | CM97: 0 | CN97: 0 | CO97: 0 | CP97: 0 | CQ97: 0 | CS97: 0 | CT97: 0 | CU97: 0 | CV97: 0 | CW97: 0
A98: Oui | B98: Snecma | C98: 097-0140-20 | D98: CLOSURE,CONTACTOR T20 260C | E98: 135 | F98: 0 | G98: 0 | H98: 135 | I98: 135 | J98: 0 | L98: 0 | M98: 8 | N98: 127 | O98: 127 | P98: 0 | V98: 0 | W98: 0 | X98: 127 | Y98: 127 | Z98: 0 | AC98: 0 | AD98: 0 | AE98: 127 | AF98: 127 | AG98: 0 | AJ98: 0 | AK98: 0 | AL98: 127 | AM98: 127 | AN98: 0 | AP98: 0 | AQ98: 0 | AR98: 127 | AS98: 127 | AT98: 0 | AV98: 0 | AW98: 0 | AX98: 127 | AY98: 127 | AZ98: 0 | BB98: 0 | BC98: 0 | BD98: 127 | BE98: 127 | BF98: 0 | BI98: 0 | BJ98: 0 | BK98: 127 | BL98: 127 | BM98: 0 | BR98: 0 | BS98: 0 | BT98: 127 | BU98: 127 | BV98: 0 | CA98: 0 | CB98: 0 | CC98: =VLOOKUP(C98,[1]TCD!$D:$E,2,0) -> 127 | CD98: 127 | CE98: 0 | CG98: 0 | CH98: 0 | CI98: 127 | CJ98: 127 | CK98: 0 | CM98: 0 | CN98: 0 | CO98: 127 | CP98: 127 | CQ98: 0 | CS98: 0 | CT98: 0 | CU98: 127 | CV98: 127 | CW98: 0
A99: Oui | B99: Snecma | C99: 11-10058-4 | D99: OBTURATEUR VRILLE | E99: 263 | F99: 0 | G99: 0 | H99: 263 | I99: 263 | J99: 0 | L99: 0 | M99: 0 | N99: 263 | O99: 263 | P99: 0 | V99: 0 | W99: 0 | X99: 263 | Y99: 263 | Z99: 0 | AC99: 0 | AD99: 0 | AE99: 263 | AF99: 263 | AG99: 0 | AJ99: 0 | AK99: 0 | AL99: 263 | AM99: 263 | AN99: 0 | AP99: 0 | AQ99: 0 | AR99: 263 | AS99: 263 | AT99: 0 | AV99: 0 | AW99: 0 | AX99: 263 | AY99: 263 | AZ99: 0 | BB99: 0 | BC99: 0 | BD99: 263 | BE99: 263 | BF99: 0 | BI99: 0 | BJ99: 0 | BK99: 263 | BL99: 263 | BM99: 0 | BR99: 0 | BS99: 0 | BT99: 263 | BU99: 263 | BV99: 0 | CA99: 0 | CB99: 0 | CC99: =VLOOKUP(C99,[1]TCD!$D:$E,2,0) -> 263 | CD99: 263 | CE99: 0 | CG99: 0 | CH99: 0 | CI99: 263 | CJ99: 263 | CK99: 0 | CM99: 0 | CN99: 0 | CO99: 263 | CP99: 263 | CQ99: 0 | CS99: 0 | CT99: 0 | CU99: 263 | CV99: 263 | CW99: 0
A100: Oui | B100: Snecma | C100: 11-10296-4 | D100: PLAQUE OBTURATION | E100: 211 | F100: 0 | G100: 0 | H100: 211 | I100: 211 | J100: 0 | L100: 0 | M100: 0 | N100: 211 | O100: 211 | P100: 0 | V100: 0 | W100: 0 | X100: 211 | Y100: 211 | Z100: 0 | AC100: 0 | AD100: 0 | AE100: 211 | AF100: 211 | AG100: 0 | AJ100: 0 | AK100: 0 | AL100: 211 | AM100: 211 | AN100: 0 | AP100: 0 | AQ100: 0 | AR100: 211 | AS100: 211 | AT100: 0 | AV100: 0 | AW100: 0 | AX100: 211 | AY100: 211 | AZ100: 0 | BB100: 0 | BC100: 0 | BD100: 211 | BE100: 211 | BF100: 0 | BI100: 0 | BJ100: 0 | BK100: 211 | BL100: 211 | BM100: 0 | BR100: 0 | BS100: 0 | BT100: 211 | BU100: 211 | BV100: 0 | CA100: 0 | CB100: 0 | CC100: =VLOOKUP(C100,[1]TCD!$D:$E,2,0) -> 211 | CD100: 211 | CE100: 0 | CG100: 0 | CH100: 0 | CI100: 211 | CJ100: 211 | CK100: 0 | CM100: 0 | CN100: 0 | CO100: 211 | CP100: 211 | CQ100: 0 | CS100: 0 | CT100: 0 | CU100: 211 | CV100: 211 | CW100: 0
A101: Oui | B101: Snecma | C101: 11-10297-4 | D101: OBTURATEUR ENTREE | E101: 460 | F101: 0 | G101: 0 | H101: 460 | I101: 460 | J101: 0 | L101: 0 | M101: 0 | N101: 460 | O101: 460 | P101: 0 | V101: 0 | W101: 0 | X101: 460 | Y101: 460 | Z101: 0 | AC101: 0 | AD101: 0 | AE101: 460 | AF101: 460 | AG101: 0 | AJ101: 0 | AK101: 0 | AL101: 460 | AM101: 460 | AN101: 0 | AP101: 0 | AQ101: 0 | AR101: 460 | AS101: 460 | AT101: 0 | AV101: 0 | AW101: 0 | AX101: 460 | AY101: 460 | AZ101: 0 | BB101: 0 | BC101: 0 | BD101: 460 | BE101: 460 | BF101: 0 | BI101: 0 | BJ101: 0 | BK101: 460 | BL101: 460 | BM101: 0 | BR101: 0 | BS101: 0 | BT101: 460 | BU101: 460 | BV101: 0 | CA101: 0 | CB101: 1 | CC101: =VLOOKUP(C101,[1]TCD!$D:$E,2,0) -> 459 | CD101: 459 | CE101: 0 | CG101: 0 | CH101: 0 | CI101: 459 | CJ101: 459 | CK101: 0 | CM101: 0 | CN101: 1 | CO101: 458 | CP101: 458 | CQ101: 0 | CS101: 0 | CT101: 0 | CU101: 458 | CV101: 458 | CW101: 0
A102: Oui | B102: Snecma | C102: 11-10298-3 | D102: OBTURATEUR POMPE | E102: 245 | F102: 0 | G102: 0 | H102: 245 | I102: 245 | J102: 0 | L102: 0 | M102: 0 | N102: 245 | O102: 245 | P102: 0 | V102: 0 | W102: 0 | X102: 245 | Y102: 245 | Z102: 0 | AC102: 0 | AD102: 0 | AE102: 245 | AF102: 245 | AG102: 0 | AJ102: 0 | AK102: 0 | AL102: 245 | AM102: 245 | AN102: 0 | AP102: 0 | AQ102: 0 | AR102: 245 | AS102: 245 | AT102: 0 | AV102: 0 | AW102: 0 | AX102: 245 | AY102: 245 | AZ102: 0 | BB102: 0 | BC102: 0 | BD102: 245 | BE102: 245 | BF102: 0 | BI102: 0 | BJ102: 0 | BK102: 245 | BL102: 245 | BM102: 0 | BR102: 0 | BS102: 0 | BT102: 245 | BU102: 245 | BV102: 0 | CA102: 0 | CB102: 0 | CC102: =VLOOKUP(C102,[1]TCD!$D:$E,2,0) -> 245 | CD102: 245 | CE102: 0 | CG102: 0 | CH102: 0 | CI102: 245 | CJ102: 245 | CK102: 0 | CM102: 0 | CN102: 0 | CO102: 245 | CP102: 245 | CQ102: 0 | CS102: 0 | CT102: 0 | CU102: 245 | CV102: 245 | CW102: 0
A103: Oui | B103: Snecma | C103: 11-10299-3 | D103: PROTECTEUR | E103: 464 | F103: 0 | G103: 0 | H103: 464 | I103: 464 | J103: 0 | L103: 0 | M103: 0 | N103: 464 | O103: 464 | P103: 0 | V103: 0 | W103: 0 | X103: 464 | Y103: 464 | Z103: 0 | AC103: 0 | AD103: 0 | AE103: 464 | AF103: 464 | AG103: 0 | AJ103: 0 | AK103: 0 | AL103: 464 | AM103: 464 | AN103: 0 | AP103: 0 | AQ103: 0 | AR103: 464 | AS103: 464 | AT103: 0 | AV103: 0 | AW103: 0 | AX103: 464 | AY103: 464 | AZ103: 0 | BB103: 0 | BC103: 0 | BD103: 464 | BE103: 464 | BF103: 0 | BI103: 0 | BJ103: 0 | BK103: 464 | BL103: 464 | BM103: 0 | BR103: 0 | BS103: 0 | BT103: 464 | BU103: 464 | BV103: 0 | CA103: 0 | CB103: 0 | CC103: =VLOOKUP(C103,[1]TCD!$D:$E,2,0) -> 464 | CD103: 464 | CE103: 0 | CG103: 0 | CH103: 0 | CI103: 464 | CJ103: 464 | CK103: 0 | CM103: 0 | CN103: 0 | CO103: 464 | CP103: 464 | CQ103: 0 | CS103: 0 | CT103: 0 | CU103: 464 | CV103: 464 | CW103: 0
A104: Oui | B104: Snecma | C104: 11-10300-3 | D104: PROTECTEUR | E104: 457 | F104: 0 | G104: 0 | H104: 457 | I104: 457 | J104: 0 | L104: 0 | M104: 0 | N104: 457 | O104: 457 | P104: 0 | V104: 0 | W104: 0 | X104: 457 | Y104: 457 | Z104: 0 | AC104: 0 | AD104: 0 | AE104: 457 | AF104: 457 | AG104: 0 | AJ104: 0 | AK104: 0 | AL104: 457 | AM104: 457 | AN104: 0 | AP104: 0 | AQ104: 0 | AR104: 457 | AS104: 457 | AT104: 0 | AV104: 0 | AW104: 0 | AX104: 457 | AY104: 457 | AZ104: 0 | BB104: 0 | BC104: 0 | BD104: 457 | BE104: 457 | BF104: 0 | BI104: 0 | BJ104: 0 | BK104: 457 | BL104: 457 | BM104: 0 | BR104: 0 | BS104: 0 | BT104: 457 | BU104: 457 | BV104: 0 | CA104: 0 | CB104: 0 | CC104: =VLOOKUP(C104,[1]TCD!$D:$E,2,0) -> 457 | CD104: 457 | CE104: 0 | CG104: 0 | CH104: 0 | CI104: 457 | CJ104: 457 | CK104: 0 | CM104: 0 | CN104: 0 | CO104: 457 | CP104: 457 | CQ104: 0 | CS104: 0 | CT104: 0 | CU104: 457 | CV104: 457 | CW104: 0
A105: Oui | B105: Snecma | C105: 11-11347-3 | D105: OBTURATEUR | E105: 506 | F105: 0 | G105: 0 | H105: 506 | I105: 506 | J105: 0 | L105: 0 | M105: 0 | N105: 506 | O105: 506 | P105: 0 | V105: 0 | W105: 0 | X105: 506 | Y105: 506 | Z105: 0 | AC105: 0 | AD105: 1 | AE105: 505 | AF105: 505 | AG105: 0 | AJ105: 0 | AK105: 0 | AL105: 505 | AM105: 505 | AN105: 0 | AP105: 0 | AQ105: 0 | AR105: 505 | AS105: 505 | AT105: 0 | AV105: 0 | AW105: 0 | AX105: 505 | AY105: 505 | AZ105: 0 | BB105: 0 | BC105: 0 | BD105: 505 | BE105: 505 | BF105: 0 | BI105: 0 | BJ105: 1 | BK105: 504 | BL105: 504 | BM105: 0 | BR105: 0 | BS105: 0 | BT105: 504 | BU105: 504 | BV105: 0 | CA105: 0 | CB105: 1 | CC105: =VLOOKUP(C105,[1]TCD!$D:$E,2,0) -> 503 | CD105: 503 | CE105: 0 | CG105: 0 | CH105: 0 | CI105: 503 | CJ105: 503 | CK105: 0 | CM105: 0 | CN105: 0 | CO105: 503 | CP105: 503 | CQ105: 0 | CS105: 0 | CT105: 0 | CU105: 503 | CV105: 503 | CW105: 0
A106: Oui | B106: Snecma | C106: 11-11348-3 | D106: OBTURATEUR | E106: 702 | F106: 0 | G106: 0 | H106: 702 | I106: 702 | J106: 0 | L106: 0 | M106: 0 | N106: 702 | O106: 702 | P106: 0 | V106: 0 | W106: 0 | X106: 702 | Y106: 702 | Z106: 0 | AC106: 0 | AD106: 1 | AE106: 701 | AF106: 701 | AG106: 0 | AJ106: 0 | AK106: 0 | AL106: 701 | AM106: 701 | AN106: 0 | AP106: 0 | AQ106: 0 | AR106: 701 | AS106: 701 | AT106: 0 | AV106: 0 | AW106: 0 | AX106: 701 | AY106: 701 | AZ106: 0 | BB106: 0 | BC106: 0 | BD106: 701 | BE106: 701 | BF106: 0 | BI106: 0 | BJ106: 1 | BK106: 700 | BL106: 700 | BM106: 0 | BR106: 1 | BS106: 0 | BT106: 701 | BU106: 701 | BV106: 0 | CA106: 0 | CB106: 1 | CC106: =VLOOKUP(C106,[1]TCD!$D:$E,2,0) -> 700 | CD106: 700 | CE106: 0 | CG106: 0 | CH106: 0 | CI106: 700 | CJ106: 700 | CK106: 0 | CM106: 0 | CN106: 0 | CO106: 700 | CP106: 700 | CQ106: 0 | CS106: 0 | CT106: 0 | CU106: 700 | CV106: 700 | CW106: 0
B107: Snecma | C107: 1163-100 | D107: ROTOR ALTERNATEUR | E107: 29 | F107: 0 | G107: 0 | H107: 29 | I107: 29 | J107: 0 | L107: 0 | M107: 0 | N107: 29 | O107: 29 | P107: 0 | V107: 0 | W107: 0 | X107: 29 | Y107: 29 | Z107: 0 | AC107: 0 | AD107: 0 | AE107: 29 | AF107: 29 | AG107: 0 | AJ107: 0 | AK107: 0 | AL107: 29 | AM107: 29 | AN107: 0 | AP107: 0 | AQ107: 0 | AR107: 29 | AS107: 29 | AT107: 0 | AV107: 3 | AW107: 0 | AX107: 32 | AY107: 32 | AZ107: 0 | BB107: 0 | BC107: 0 | BD107: 32 | BE107: 32 | BF107: 0 | BI107: 0 | BJ107: 0 | BK107: 32 | BL107: 32 | BM107: 0 | BR107: 0 | BS107: 0 | BT107: 32 | BU107: 32 | BV107: 0 | CA107: 0 | CB107: 0 | CC107: =VLOOKUP(C107,[1]TCD!$D:$E,2,0) -> 32 | CD107: 32 | CE107: 0 | CG107: 0 | CH107: 0 | CI107: 32 | CJ107: 32 | CK107: 0 | CM107: 0 | CN107: 0 | CO107: 32 | CP107: 32 | CQ107: 0 | CS107: 0 | CT107: 0 | CU107: 32 | CV107: 32 | CW107: 0
A108: Oui | B108: Snecma | C108: 1163-300 | D108: STATOR D'ALTERNATEUR | E108: 13 | F108: 0 | G108: 0 | H108: 13 | I108: 13 | J108: 0 | L108: 0 | M108: 0 | N108: 13 | O108: 13 | P108: 0 | V108: 0 | W108: 0 | X108: 13 | Y108: 13 | Z108: 0 | AC108: 0 | AD108: 0 | AE108: 13 | AF108: 13 | AG108: 0 | AJ108: 0 | AK108: 0 | AL108: 13 | AM108: 13 | AN108: 0 | AP108: 0 | AQ108: 0 | AR108: 13 | AS108: 13 | AT108: 0 | AV108: 0 | AW108: 0 | AX108: 13 | AY108: 13 | AZ108: 0 | BB108: 0 | BC108: 0 | BD108: 13 | BE108: 13 | BF108: 0 | BI108: 0 | BJ108: 0 | BK108: 13 | BL108: 13 | BM108: 0 | BR108: 0 | BS108: 0 | BT108: 13 | BU108: 13 | BV108: 0 | CA108: 0 | CB108: 0 | CC108: =VLOOKUP(C108,[1]TCD!$D:$E,2,0) -> 13 | CD108: 13 | CE108: 0 | CG108: 0 | CH108: 0 | CI108: 13 | CJ108: 13 | CK108: 0 | CM108: 0 | CN108: 0 | CO108: 13 | CP108: 13 | CQ108: 0 | CS108: 0 | CT108: 0 | CU108: 13 | CV108: 13 | CW108: 0
A109: Oui | B109: Snecma | C109: 11-841651-3 | D109: ECHANGEUR HUILE CARBURANT | E109: 11 | F109: 0 | G109: 0 | H109: 11 | I109: 11 | J109: 0 | L109: 0 | M109: 0 | N109: 11 | O109: 11 | P109: 0 | V109: 0 | W109: 0 | X109: 11 | Y109: 11 | Z109: 0 | AC109: 0 | AD109: 0 | AE109: 11 | AF109: 11 | AG109: 0 | AJ109: 0 | AK109: 0 | AL109: 11 | AM109: 11 | AN109: 0 | AP109: 0 | AQ109: 0 | AR109: 11 | AS109: 11 | AT109: 0 | AV109: 0 | AW109: 0 | AX109: 11 | AY109: 11 | AZ109: 0 | BB109: 0 | BC109: 0 | BD109: 11 | BE109: 11 | BF109: 0 | BI109: 0 | BJ109: 0 | BK109: 11 | BL109: 11 | BM109: 0 | BR109: 0 | BS109: 0 | BT109: 11 | BU109: 11 | BV109: 0 | CA109: 0 | CB109: 0 | CC109: =VLOOKUP(C109,[1]TCD!$D:$E,2,0) -> 11 | CD109: 11 | CE109: 0 | CG109: 0 | CH109: 0 | CI109: 11 | CJ109: 11 | CK109: 0 | CM109: 0 | CN109: 0 | CO109: 11 | CP109: 11 | CQ109: 0 | CS109: 0 | CT109: 0 | CU109: 11 | CV109: 11 | CW109: 0
A110: Oui | B110: Snecma | C110: 1338T18-23-1 | D110: BOUCHON D'OBTURATION | E110: 0 | F110: 0 | G110: 0 | H110: 0 | I110: 0 | J110: 0 | L110: 0 | M110: 0 | N110: 0 | O110: 0 | P110: 0 | V110: 0 | W110: 0 | X110: 0 | Y110: 0 | Z110: 0 | AC110: 0 | AD110: 0 | AE110: 0 | AF110: 0 | AG110: 0 | AJ110: 0 | AK110: 0 | AL110: 0 | AM110: 0 | AN110: 0 | AP110: 0 | AQ110: 0 | AR110: 0 | AS110: 0 | AT110: 0 | AV110: 0 | AW110: 0 | AX110: 0 | AY110: 0 | AZ110: 0 | BB110: 0 | BC110: 0 | BD110: 0 | BE110: 0 | BF110: 0 | BI110: 0 | BJ110: 0 | BK110: 0 | BL110: 0 | BM110: 0 | BS110: 0 | BT110: 0 | BU110: 0 | BV110: 0 | CA110: 0 | CB110: 0 | CC110: 0 | CD110: 0 | CE110: 0 | CG110: 0 | CH110: 0 | CI110: 0 | CJ110: 0 | CK110: 0 | CM110: 0 | CN110: 0 | CO110: 0 | CP110: 0 | CQ110: 0 | CS110: 0 | CT110: 0 | CU110: 0 | CV110: 0 | CW110: 0
A111: Oui | B111: Snecma | C111: 1338T24-29-1 | D111: PLUG,BLANKING | E111: 0 | F111: 0 | G111: 0 | H111: 0 | I111: 0 | J111: 0 | L111: 0 | M111: 0 | N111: 0 | O111: 0 | P111: 0 | V111: 0 | W111: 0 | X111: 0 | Y111: 0 | Z111: 0 | AC111: 0 | AD111: 0 | AE111: 0 | AF111: 0 | AG111: 0 | AJ111: 0 | AK111: 0 | AL111: 0 | AM111: 0 | AN111: 0 | AP111: 0 | AQ111: 0 | AR111: 0 | AS111: 0 | AT111: 0 | AV111: 0 | AW111: 0 | AX111: 0 | AY111: 0 | AZ111: 0 | BB111: 0 | BC111: 0 | BD111: 0 | BE111: 0 | BF111: 0 | BI111: 0 | BJ111: 0 | BK111: 0 | BL111: 0 | BM111: 0 | BS111: 0 | BT111: 0 | BU111: 0 | BV111: 0 | CA111: 0 | CB111: 0 | CC111: 0 | CD111: 0 | CE111: 0 | CG111: 0 | CH111: 0 | CI111: 0 | CJ111: 0 | CK111: 0 | CM111: 0 | CN111: 0 | CO111: 0 | CP111: 0 | CQ111: 0 | CS111: 0 | CT111: 0 | CU111: 0 | CV111: 0 | CW111: 0
A112: Oui | B112: Snecma | C112: 1338T30.37-1 | D112: PLUG,BLANKING | E112: 0 | F112: 0 | G112: 0 | H112: 0 | I112: 0 | J112: 0 | L112: 0 | M112: 0 | N112: 0 | O112: 0 | P112: 0 | V112: 0 | W112: 0 | X112: 0 | Y112: 0 | Z112: 0 | AC112: 0 | AD112: 0 | AE112: 0 | AF112: 0 | AG112: 0 | AJ112: 0 | AK112: 0 | AL112: 0 | AM112: 0 | AN112: 0 | AP112: 0 | AQ112: 0 | AR112: 0 | AS112: 0 | AT112: 0 | AV112: 0 | AW112: 0 | AX112: 0 | AY112: 0 | AZ112: 0 | BB112: 0 | BC112: 0 | BD112: 0 | BE112: 0 | BF112: 0 | BI112: 0 | BJ112: 0 | BK112: 0 | BL112: 0 | BM112: 0 | BS112: 0 | BT112: 0 | BU112: 0 | BV112: 0 | CA112: 0 | CB112: 0 | CC112: 0 | CD112: 0 | CE112: 0 | CG112: 0 | CH112: 0 | CI112: 0 | CJ112: 0 | CK112: 0 | CM112: 0 | CN112: 0 | CO112: 0 | CP112: 0 | CQ112: 0 | CS112: 0 | CT112: 0 | CU112: 0 | CV112: 0 | CW112: 0
A113: Oui | B113: Snecma | C113: 1338T30-37-1 | E113: 0 | F113: 0 | G113: 0 | H113: 0 | I113: 0 | J113: 0 | L113: 0 | M113: 0 | N113: 0 | O113: 0 | P113: 0 | V113: 0 | W113: 0 | X113: 0 | Y113: 0 | Z113: 0 | AC113: 0 | AD113: 0 | AE113: 0 | AF113: 0 | AG113: 0 | AJ113: 0 | AK113: 0 | AL113: 0 | AM113: 0 | AN113: 0 | AP113: 0 | AQ113: 0 | AR113: 0 | AS113: 0 | AT113: 0 | AV113: 0 | AW113: 0 | AX113: 0 | AY113: 0 | AZ113: 0 | BB113: 0 | BC113: 0 | BD113: 0 | BE113: 0 | BF113: 0 | BI113: 0 | BJ113: 0 | BK113: 0 | BL113: 0 | BM113: 0 | BS113: 0 | BT113: 0 | BU113: 0 | BV113: 0 | CA113: 0 | CB113: 0 | CC113: 0 | CD113: 0 | CE113: 0 | CG113: 0 | CH113: 0 | CI113: 0 | CJ113: 0 | CK113: 0 | CM113: 0 | CN113: 0 | CO113: 0 | CP113: 0 | CQ113: 0 | CS113: 0 | CT113: 0 | CU113: 0 | CV113: 0 | CW113: 0
A114: Oui | B114: Snecma | C114: 1338T38.45-1 | D114: OBTURATEUR | E114: 0 | F114: 0 | G114: 0 | H114: 0 | I114: 0 | J114: 0 | L114: 0 | M114: 0 | N114: 0 | O114: 0 | P114: 0 | V114: 0 | W114: 0 | X114: 0 | Y114: 0 | Z114: 0 | AC114: 0 | AD114: 0 | AE114: 0 | AF114: 0 | AG114: 0 | AJ114: 0 | AK114: 0 | AL114: 0 | AM114: 0 | AN114: 0 | AP114: 0 | AQ114: 0 | AR114: 0 | AS114: 0 | AT114: 0 | AV114: 0 | AW114: 0 | AX114: 0 | AY114: 0 | AZ114: 0 | BB114: 0 | BC114: 0 | BD114: 0 | BE114: 0 | BF114: 0 | BI114: 0 | BJ114: 0 | BK114: 0 | BL114: 0 | BM114: 0 | BS114: 0 | BT114: 0 | BU114: 0 | BV114: 0 | CA114: 0 | CB114: 0 | CC114: 0 | CD114: 0 | CE114: 0 | CG114: 0 | CH114: 0 | CI114: 0 | CJ114: 0 | CK114: 0 | CM114: 0 | CN114: 0 | CO114: 0 | CP114: 0 | CQ114: 0 | CS114: 0 | CT114: 0 | CU114: 0 | CV114: 0 | CW114: 0
A115: Oui | B115: Snecma | C115: 1338T38-45-1 | E115: 0 | F115: 0 | G115: 0 | H115: 0 | I115: 0 | J115: 0 | L115: 0 | M115: 0 | N115: 0 | O115: 0 | P115: 0 | V115: 0 | W115: 0 | X115: 0 | Y115: 0 | Z115: 0 | AC115: 0 | AD115: 0 | AE115: 0 | AF115: 0 | AG115: 0 | AJ115: 0 | AK115: 0 | AL115: 0 | AM115: 0 | AN115: 0 | AP115: 0 | AQ115: 0 | AR115: 0 | AS115: 0 | AT115: 0 | AV115: 0 | AW115: 0 | AX115: 0 | AY115: 0 | AZ115: 0 | BB115: 0 | BC115: 0 | BD115: 0 | BE115: 0 | BF115: 0 | BI115: 0 | BJ115: 0 | BK115: 0 | BL115: 0 | BM115: 0 | BS115: 0 | BT115: 0 | BU115: 0 | BV115: 0 | CA115: 0 | CB115: 0 | CC115: 0 | CD115: 0 | CE115: 0 | CG115: 0 | CH115: 0 | CI115: 0 | CJ115: 0 | CK115: 0 | CM115: 0 | CN115: 0 | CO115: 0 | CP115: 0 | CQ115: 0 | CS115: 0 | CT115: 0 | CU115: 0 | CV115: 0 | CW115: 0
A116: Oui | B116: Snecma | C116: 1348-400 | D116: MANO CONTACT D HUILE | E116: 20 | F116: 0 | G116: 0 | H116: 20 | I116: 20 | J116: 0 | L116: 0 | M116: 0 | N116: 20 | O116: 20 | P116: 0 | V116: 0 | W116: 0 | X116: 20 | Y116: 20 | Z116: 0 | AC116: 0 | AD116: 0 | AE116: 20 | AF116: 20 | AG116: 0 | AJ116: 0 | AK116: 0 | AL116: 20 | AM116: 20 | AN116: 0 | AP116: 0 | AQ116: 0 | AR116: 20 | AS116: 20 | AT116: 0 | AV116: 0 | AW116: 0 | AX116: 20 | AY116: 20 | AZ116: 0 | BB116: 20 | BC116: 0 | BD116: 40 | BE116: 40 | BF116: 0 | BI116: 0 | BJ116: 0 | BK116: 40 | BL116: 40 | BM116: 0 | BR116: 0 | BS116: 0 | BT116: 40 | BU116: 40 | BV116: 0 | CA116: 0 | CB116: 0 | CC116: =VLOOKUP(C116,[1]TCD!$D:$E,2,0) -> 40 | CD116: 40 | CE116: 0 | CG116: 0 | CH116: 0 | CI116: 40 | CJ116: 40 | CK116: 0 | CM116: 0 | CN116: 0 | CO116: 40 | CP116: 40 | CQ116: 0 | CS116: 0 | CT116: 0 | CU116: 40 | CV116: 40 | CW116: 0
A117: Oui | B117: Snecma | C117: 135D14C | D117: CORPS CAPTEUR DOSEUR | E117: 0 | F117: 0 | G117: 0 | H117: 0 | I117: 0 | J117: 0 | L117: 0 | M117: 0 | N117: 0 | O117: 0 | P117: 0 | V117: 0 | W117: 0 | X117: 0 | Y117: 0 | Z117: 0 | AC117: 0 | AD117: 0 | AE117: 0 | AF117: 0 | AG117: 0 | AJ117: 0 | AK117: 0 | AL117: 0 | AM117: 0 | AN117: 0 | AP117: 0 | AQ117: 0 | AR117: 0 | AS117: 0 | AT117: 0 | AV117: 0 | AW117: 0 | AX117: 0 | AY117: 0 | AZ117: 0 | BB117: 0 | BC117: 0 | BD117: 0 | BE117: 0 | BF117: 0 | BI117: 0 | BJ117: 0 | BK117: 0 | BL117: 0 | BM117: 0 | BS117: 0 | BT117: 0 | BU117: 0 | BV117: 0 | CA117: 0 | CB117: 0 | CC117: 0 | CD117: 0 | CE117: 0 | CG117: 0 | CH117: 0 | CI117: 0 | CJ117: 0 | CK117: 0 | CM117: 0 | CN117: 0 | CO117: 0 | CP117: 0 | CQ117: 0 | CS117: 0 | CT117: 0 | CU117: 0 | CV117: 0 | CW117: 0
A118: Oui | B118: Snecma | C118: 135D14C001 | D118: CORPS CAPTEUR DOSEUR | E118: 18 | F118: 0 | G118: 0 | H118: 18 | I118: 18 | J118: 0 | L118: 0 | M118: 0 | N118: 18 | O118: 18 | P118: 0 | V118: 0 | W118: 0 | X118: 18 | Y118: 18 | Z118: 0 | AC118: 2 | AD118: 0 | AE118: 18 | AF118: 20 | AG118: -2 | AH118: 2 pièces en cours de transfert magasin indisponible (EMG 10) | AI118: intégrer EMG10= indisponibles | AJ118: 0 | AK118: 0 | AL118: 18 | AM118: 18 | AN118: 0 | AP118: 0 | AQ118: 0 | AR118: 18 | AS118: 18 | AT118: 0 | AV118: 0 | AW118: 0 | AX118: 18 | AY118: 18 | AZ118: 0 | BB118: 26 | BC118: 0 | BD118: 44 | BE118: 44 | BF118: 0 | BI118: 0 | BJ118: 1 | BK118: 43 | BL118: 43 | BM118: 0 | BR118: 0 | BS118: 0 | BT118: 43 | BU118: 43 | BV118: 0 | CA118: 0 | CB118: 2 | CC118: =VLOOKUP(C118,[1]TCD!$D:$E,2,0) -> 41 | CD118: 41 | CE118: 0 | CG118: 0 | CH118: 0 | CI118: 41 | CJ118: 41 | CK118: 0 | CM118: 0 | CN118: 0 | CO118: 41 | CP118: 41 | CQ118: 0 | CS118: 0 | CT118: 2 | CU118: 39 | CV118: 39 | CW118: 0
A119: Oui | B119: Snecma | C119: 135D14T | D119: TIGE,CAPTEUR DOSEUR | E119: 9 | F119: 0 | G119: 0 | H119: 9 | I119: 9 | J119: 0 | L119: 0 | M119: 0 | N119: 9 | O119: 9 | P119: 0 | V119: 0 | W119: 0 | X119: 9 | Y119: 9 | Z119: 0 | AC119: 0 | AD119: 0 | AE119: 9 | AF119: 9 | AG119: 0 | AJ119: 0 | AK119: 0 | AL119: 9 | AM119: 9 | AN119: 0 | AP119: 0 | AQ119: 0 | AR119: 9 | AS119: 9 | AT119: 0 | AV119: 0 | AW119: 0 | AX119: 9 | AY119: 9 | AZ119: 0 | BB119: 0 | BC119: 0 | BD119: 9 | BE119: 9 | BF119: 0 | BI119: 0 | BJ119: 0 | BK119: 9 | BL119: 9 | BM119: 0 | BR119: 2 | BS119: 0 | BT119: 11 | BU119: 11 | BV119: 0 | CA119: 0 | CB119: 0 | CC119: =VLOOKUP(C119,[1]TCD!$D:$E,2,0) -> 11 | CD119: 11 | CE119: 0 | CG119: 0 | CH119: 0 | CI119: 11 | CJ119: 11 | CK119: 0 | CM119: 0 | CN119: 0 | CO119: 11 | CP119: 11 | CQ119: 0 | CS119: 0 | CT119: 0 | CU119: 11 | CV119: 11 | CW119: 0
A120: Oui | B120: Snecma | C120: 135D54C | D120: CORPS,CAPTEUR TUYERE | E120: 16 | F120: 0 | G120: 0 | H120: 16 | I120: 16 | J120: 0 | L120: 0 | M120: 0 | N120: 16 | O120: 16 | P120: 0 | V120: 0 | W120: 0 | X120: 16 | Y120: 16 | Z120: 0 | AC120: 0 | AD120: 0 | AE120: 16 | AF120: 16 | AG120: 0 | AJ120: 0 | AK120: 0 | AL120: 16 | AM120: 16 | AN120: 0 | AP120: 0 | AQ120: 0 | AR120: 16 | AS120: 16 | AT120: 0 | AV120: 0 | AW120: 0 | AX120: 16 | AY120: 16 | AZ120: 0 | BB120: 0 | BC120: 0 | BD120: 16 | BE120: 16 | BF120: 0 | BI120: 0 | BJ120: 0 | BK120: 16 | BL120: 16 | BM120: 0 | BR120: 0 | BS120: 0 | BT120: 16 | BU120: 16 | BV120: 0 | CA120: 0 | CB120: 0 | CC120: =VLOOKUP(C120,[1]TCD!$D:$E,2,0) -> 16 | CD120: 16 | CE120: 0 | CG120: 0 | CH120: 0 | CI120: 16 | CJ120: 16 | CK120: 0 | CM120: 0 | CN120: 0 | CO120: 16 | CP120: 16 | CQ120: 0 | CS120: 0 | CT120: 0 | CU120: 16 | CV120: 16 | CW120: 0
A121: Oui | B121: Snecma | C121: 135D54T | D121: TIGE, CAPTEUR TUYERE | E121: 51 | F121: 0 | G121: 0 | H121: 51 | I121: 51 | J121: 0 | L121: 0 | M121: 0 | N121: 51 | O121: 51 | P121: 0 | V121: 0 | W121: 0 | X121: 51 | Y121: 51 | Z121: 0 | AC121: 0 | AD121: 0 | AE121: 51 | AF121: 51 | AG121: 0 | AJ121: 0 | AK121: 0 | AL121: 51 | AM121: 51 | AN121: 0 | AP121: 0 | AQ121: 0 | AR121: 51 | AS121: 51 | AT121: 0 | AV121: 0 | AW121: 0 | AX121: 51 | AY121: 51 | AZ121: 0 | BB121: 0 | BC121: 0 | BD121: 51 | BE121: 51 | BF121: 0 | BI121: 0 | BJ121: 0 | BK121: 51 | BL121: 51 | BM121: 0 | BR121: 0 | BS121: 0 | BT121: 51 | BU121: 51 | BV121: 0 | CA121: 0 | CB121: 0 | CC121: =VLOOKUP(C121,[1]TCD!$D:$E,2,0) -> 51 | CD121: 51 | CE121: 0 | CG121: 0 | CH121: 0 | CI121: 51 | CJ121: 51 | CK121: 0 | CM121: 0 | CN121: 0 | CO121: 51 | CP121: 51 | CQ121: 0 | CS121: 0 | CT121: 0 | CU121: 51 | CV121: 51 | CW121: 0
A122: Oui | B122: Snecma | C122: 135K80 | D122: CAPTEUR DOUBLE CALAGE | E122: 0 | F122: 0 | G122: 0 | H122: 0 | I122: 0 | J122: 0 | L122: 0 | M122: 0 | N122: 0 | O122: 0 | P122: 0 | V122: 0 | W122: 0 | X122: 0 | Y122: 0 | Z122: 0 | AC122: 0 | AD122: 0 | AE122: 0 | AF122: 0 | AG122: 0 | AJ122: 0 | AK122: 0 | AL122: 0 | AM122: 0 | AN122: 0 | AP122: 0 | AQ122: 0 | AR122: 0 | AS122: 0 | AT122: 0 | AV122: 0 | AW122: 0 | AX122: 0 | AY122: 0 | AZ122: 0 | BB122: 0 | BC122: 0 | BD122: 0 | BE122: 0 | BF122: 0 | BI122: 0 | BJ122: 0 | BK122: 0 | BL122: 0 | BM122: 0 | BS122: 0 | BT122: 0 | BU122: 0 | BV122: 0 | CA122: 0 | CB122: 0 | CC122: 0 | CD122: 0 | CE122: 0 | CG122: 0 | CH122: 0 | CI122: 0 | CJ122: 0 | CK122: 0 | CM122: 0 | CN122: 0 | CO122: 0 | CP122: 0 | CQ122: 0 | CS122: 0 | CT122: 0 | CU122: 0 | CV122: 0 | CW122: 0
A123: Oui | B123: Snecma | C123: 135K80001 | D123: CAPTEUR DOUBLE CALAGE | E123: 15 | F123: 0 | G123: 0 | H123: 15 | I123: 15 | J123: 0 | L123: 0 | M123: 1 | N123: 14 | O123: 14 | P123: 0 | V123: 0 | W123: 0 | X123: 14 | Y123: 14 | Z123: 0 | AC123: 0 | AD123: 0 | AE123: 14 | AF123: 14 | AG123: 0 | AJ123: 0 | AK123: 1 | AL123: 13 | AM123: 13 | AN123: 0 | AP123: 0 | AQ123: 0 | AR123: 13 | AS123: 13 | AT123: 0 | AV123: 0 | AW123: 1 | AX123: 12 | AY123: 12 | AZ123: 0 | BB123: 0 | BC123: 0 | BD123: 12 | BE123: 12 | BF123: 0 | BI123: 0 | BJ123: 0 | BK123: 12 | BL123: 12 | BM123: 0 | BR123: 0 | BS123: 0 | BT123: 12 | BU123: 12 | BV123: 0 | CA123: 0 | CB123: 0 | CC123: =VLOOKUP(C123,[1]TCD!$D:$E,2,0) -> 12 | CD123: 12 | CE123: 0 | CG123: 0 | CH123: 0 | CI123: 12 | CJ123: 12 | CK123: 0 | CM123: 0 | CN123: 0 | CO123: 12 | CP123: 12 | CQ123: 0 | CS123: 0 | CT123: 0 | CU123: 12 | CV123: 12 | CW123: 0
A124: Oui | B124: Snecma | C124: 144-408-000-121 | D124: CAPTEUR VIBRATION MOTEUR | E124: 23 | F124: 0 | G124: 0 | H124: 23 | I124: 23 | J124: 0 | L124: 0 | M124: 0 | N124: 23 | O124: 23 | P124: 0 | V124: 0 | W124: 0 | X124: 23 | Y124: 23 | Z124: 0 | AC124: 0 | AD124: 0 | AE124: 23 | AF124: 23 | AG124: 0 | AJ124: 0 | AK124: 0 | AL124: 23 | AM124: 23 | AN124: 0 | AP124: 0 | AQ124: 0 | AR124: 23 | AS124: 23 | AT124: 0 | AV124: 0 | AW124: 0 | AX124: 23 | AY124: 23 | AZ124: 0 | BB124: 0 | BC124: 0 | BD124: 23 | BE124: 23 | BF124: 0 | BI124: 0 | BJ124: 0 | BK124: 23 | BL124: 23 | BM124: 0 | BR124: 0 | BS124: 0 | BT124: 23 | BU124: 23 | BV124: 0 | CA124: 0 | CB124: 0 | CC124: =VLOOKUP(C124,[1]TCD!$D:$E,2,0) -> 23 | CD124: 23 | CE124: 0 | CG124: 0 | CH124: 0 | CI124: 23 | CJ124: 23 | CK124: 0 | CM124: 0 | CN124: 0 | CO124: 23 | CP124: 23 | CQ124: 0 | CS124: 0 | CT124: 0 | CU124: 23 | CV124: 23 | CW124: 0
A125: Oui | B125: Snecma | C125: 144-408-000-122 | D125: CAPTEUR VIBRATION MOTEUR | E125: 20 | F125: 0 | G125: 0 | H125: 20 | I125: 20 | J125: 0 | L125: 0 | M125: 0 | N125: 20 | O125: 20 | P125: 0 | V125: 0 | W125: 0 | X125: 20 | Y125: 20 | Z125: 0 | AC125: 0 | AD125: 0 | AE125: 20 | AF125: 20 | AG125: 0 | AJ125: 0 | AK125: 0 | AL125: 20 | AM125: 20 | AN125: 0 | AP125: 0 | AQ125: 0 | AR125: 20 | AS125: 20 | AT125: 0 | AV125: 0 | AW125: 0 | AX125: 20 | AY125: 20 | AZ125: 0 | BB125: 0 | BC125: 0 | BD125: 20 | BE125: 20 | BF125: 0 | BI125: 0 | BJ125: 0 | BK125: 20 | BL125: 20 | BM125: 0 | BR125: 0 | BS125: 0 | BT125: 20 | BU125: 20 | BV125: 0 | CA125: 0 | CB125: 0 | CC125: =VLOOKUP(C125,[1]TCD!$D:$E,2,0) -> 20 | CD125: 20 | CE125: 0 | CG125: 0 | CH125: 0 | CI125: 20 | CJ125: 20 | CK125: 0 | CM125: 0 | CN125: 0 | CO125: 20 | CP125: 20 | CQ125: 0 | CS125: 0 | CT125: 0 | CU125: 20 | CV125: 20 | CW125: 0
A126: Oui | B126: Snecma | C126: 1465-400 | D126: DETECTEUR,COLMATAGE HUILE | E126: 0 | F126: 0 | G126: 0 | H126: 0 | I126: 0 | J126: 0 | L126: 0 | M126: 0 | N126: 0 | O126: 0 | P126: 0 | V126: 0 | W126: 0 | X126: 0 | Y126: 0 | Z126: 0 | AC126: 0 | AD126: 0 | AE126: 0 | AF126: 0 | AG126: 0 | AJ126: 0 | AK126: 0 | AL126: 0 | AM126: 0 | AN126: 0 | AP126: 0 | AQ126: 0 | AR126: 0 | AS126: 0 | AT126: 0 | AV126: 0 | AW126: 0 | AX126: 0 | AY126: 0 | AZ126: 0 | BB126: 0 | BC126: 0 | BD126: 0 | BE126: 0 | BF126: 0 | BI126: 0 | BJ126: 0 | BK126: 0 | BL126: 0 | BM126: 0 | BS126: 0 | BT126: 0 | BU126: 0 | BV126: 0 | CA126: 0 | CB126: 0 | CC126: 0 | CD126: 0 | CE126: 0 | CG126: 0 | CH126: 0 | CI126: 0 | CJ126: 0 | CK126: 0 | CM126: 0 | CN126: 0 | CO126: 0 | CP126: 0 | CQ126: 0 | CS126: 0 | CT126: 0 | CU126: 0 | CV126: 0 | CW126: 0
A127: Oui | B127: Snecma | C127: 1465-500 | D127: DETECTEUR COLMATAGE HUILE | E127: 6 | F127: 0 | G127: 0 | H127: 6 | I127: 6 | J127: 0 | L127: 0 | M127: 0 | N127: 6 | O127: 6 | P127: 0 | V127: 0 | W127: 0 | X127: 6 | Y127: 6 | Z127: 0 | AC127: 0 | AD127: 0 | AE127: 6 | AF127: 6 | AG127: 0 | AJ127: 0 | AK127: 0 | AL127: 6 | AM127: 6 | AN127: 0 | AP127: 0 | AQ127: 0 | AR127: 6 | AS127: 6 | AT127: 0 | AV127: 0 | AW127: 0 | AX127: 6 | AY127: 6 | AZ127: 0 | BB127: 0 | BC127: 0 | BD127: 6 | BE127: 6 | BF127: 0 | BI127: 0 | BJ127: 0 | BK127: 6 | BL127: 6 | BM127: 0 | BR127: 0 | BS127: 0 | BT127: 6 | BU127: 6 | BV127: 0 | CA127: 0 | CB127: 0 | CC127: =VLOOKUP(C127,[1]TCD!$D:$E,2,0) -> 6 | CD127: 6 | CE127: 0 | CG127: 0 | CH127: 0 | CI127: 6 | CJ127: 6 | CK127: 0 | CM127: 0 | CN127: 0 | CO127: 6 | CP127: 6 | CQ127: 0 | CS127: 0 | CT127: 0 | CU127: 6 | CV127: 6 | CW127: 0
A128: Oui | B128: Snecma | C128: 1466-400 | D128: DETECTEUR, COLMATAGE CARBURANT | E128: 24 | F128: 0 | G128: 0 | H128: 24 | I128: 24 | J128: 0 | L128: 0 | M128: 0 | N128: 24 | O128: 24 | P128: 0 | V128: 0 | W128: 1 | X128: 23 | Y128: 23 | Z128: 0 | AC128: 0 | AD128: 0 | AE128: 23 | AF128: 23 | AG128: 0 | AJ128: 0 | AK128: 0 | AL128: 23 | AM128: 23 | AN128: 0 | AP128: 0 | AQ128: 0 | AR128: 23 | AS128: 23 | AT128: 0 | AV128: 0 | AW128: 0 | AX128: 23 | AY128: 23 | AZ128: 0 | BB128: 0 | BC128: 0 | BD128: 23 | BE128: 23 | BF128: 0 | BI128: 0 | BJ128: 0 | BK128: 23 | BL128: 23 | BM128: 0 | BR128: 0 | BS128: 0 | BT128: 23 | BU128: 23 | BV128: 0 | CA128: 0 | CB128: 0 | CC128: =VLOOKUP(C128,[1]TCD!$D:$E,2,0) -> 23 | CD128: 23 | CE128: 0 | CG128: 0 | CH128: 0 | CI128: 23 | CJ128: 23 | CK128: 0 | CM128: 0 | CN128: 0 | CO128: 23 | CP128: 23 | CQ128: 0 | CS128: 0 | CT128: 0 | CU128: 23 | CV128: 23 | CW128: 0
A129: Oui | B129: Snecma | C129: 1567100-03 | D129: SERVO-VALVE MONO ETAGE | E129: 74 | F129: 0 | G129: 0 | H129: 74 | I129: 74 | J129: 0 | L129: 0 | M129: 0 | N129: 74 | O129: 74 | P129: 0 | V129: 0 | W129: 0 | X129: 74 | Y129: 74 | Z129: 0 | AC129: 0 | AD129: 0 | AE129: 74 | AF129: 74 | AG129: 0 | AJ129: 0 | AK129: 0 | AL129: 74 | AM129: 74 | AN129: 0 | AP129: 0 | AQ129: 0 | AR129: 74 | AS129: 74 | AT129: 0 | AV129: 0 | AW129: 0 | AX129: 74 | AY129: 74 | AZ129: 0 | BB129: 0 | BC129: 0 | BD129: 74 | BE129: 74 | BF129: 0 | BI129: 0 | BJ129: 0 | BK129: 74 | BL129: 74 | BM129: 0 | BR129: 0 | BS129: 0 | BT129: 74 | BU129: 74 | BV129: 0 | CA129: 0 | CB129: 0 | CC129: =VLOOKUP(C129,[1]TCD!$D:$E,2,0) -> 74 | CD129: 74 | CE129: 0 | CG129: 0 | CH129: 0 | CI129: 74 | CJ129: 74 | CK129: 0 | CM129: 0 | CN129: 0 | CO129: 74 | CP129: 74 | CQ129: 0 | CS129: 0 | CT129: 0 | CU129: 74 | CV129: 74 | CW129: 0
A130: Oui | B130: Snecma | C130: 1567100-04 | D130: SERVO-VALVE MONO ETAGE | E130: 36 | F130: 0 | G130: 0 | H130: 36 | I130: 36 | J130: 0 | L130: 0 | M130: 1 | N130: 35 | O130: 35 | P130: 0 | V130: 0 | W130: 0 | X130: 35 | Y130: 35 | Z130: 0 | AC130: 0 | AD130: 0 | AE130: 35 | AF130: 35 | AG130: 0 | AJ130: 0 | AK130: 0 | AL130: 35 | AM130: 35 | AN130: 0 | AP130: 17 | AQ130: 0 | AR130: 52 | AS130: 52 | AT130: 0 | AV130: 0 | AW130: 3 | AX130: 49 | AY130: 49 | AZ130: 0 | BB130: 0 | BC130: 1 | BD130: 48 | BE130: 48 | BF130: 0 | BI130: 0 | BJ130: 2 | BK130: 46 | BL130: 46 | BM130: 0 | BR130: 49 | BS130: 1 | BT130: 94 | BU130: 94 | BV130: 0 | CA130: 0 | CB130: 1 | CC130: =VLOOKUP(C130,[1]TCD!$D:$E,2,0) -> 93 | CD130: 93 | CE130: 0 | CG130: 0 | CH130: 0 | CI130: 93 | CJ130: 93 | CK130: 0 | CM130: 0 | CN130: 1 | CO130: 92 | CP130: 92 | CQ130: 0 | CS130: 0 | CT130: 1 | CU130: 91 | CV130: 91 | CW130: 0
A131: Oui | B131: Snecma | C131: 1567200-03 | D131: SERVO VALVE DOUBLE ETAGE | E131: 0 | F131: 0 | G131: 0 | H131: 0 | I131: 0 | J131: 0 | L131: 0 | M131: 0 | N131: 0 | O131: 0 | P131: 0 | V131: 0 | W131: 0 | X131: 0 | Y131: 0 | Z131: 0 | AC131: 0 | AD131: 0 | AE131: 0 | AF131: 0 | AG131: 0 | AJ131: 0 | AK131: 0 | AL131: 0 | AM131: 0 | AN131: 0 | AP131: 0 | AQ131: 0 | AR131: 0 | AS131: 0 | AT131: 0 | AV131: 0 | AW131: 0 | AX131: 0 | AY131: 0 | AZ131: 0 | BB131: 0 | BC131: 0 | BD131: 0 | BE131: 0 | BF131: 0 | BI131: 0 | BJ131: 0 | BK131: 0 | BL131: 0 | BM131: 0 | BS131: 0 | BT131: 0 | BU131: 0 | BV131: 0 | CA131: 0 | CB131: 0 | CC131: 0 | CD131: 0 | CE131: 0 | CG131: 0 | CH131: 0 | CI131: 0 | CJ131: 0 | CK131: 0 | CM131: 0 | CN131: 0 | CO131: 0 | CP131: 0 | CQ131: 0 | CS131: 0 | CT131: 0 | CU131: 0 | CV131: 0 | CW131: 0
A132: Oui | B132: Snecma | C132: 1567200-04 | D132: SERVO VALVE DOUBLE ETAGE | E132: 13 | F132: 0 | G132: 0 | H132: 13 | I132: 13 | J132: 0 | L132: 0 | M132: 0 | N132: 13 | O132: 13 | P132: 0 | V132: 0 | W132: 0 | X132: 13 | Y132: 13 | Z132: 0 | AC132: 0 | AD132: 0 | AE132: 13 | AF132: 13 | AG132: 0 | AJ132: 0 | AK132: 1 | AL132: 12 | AM132: 12 | AN132: 0 | AP132: 0 | AQ132: 0 | AR132: 12 | AS132: 12 | AT132: 0 | AV132: 0 | AW132: 0 | AX132: 12 | AY132: 12 | AZ132: 0 | BB132: 0 | BC132: 0 | BD132: 12 | BE132: 12 | BF132: 0 | BI132: 0 | BJ132: 0 | BK132: 12 | BL132: 12 | BM132: 0 | BR132: 0 | BS132: 0 | BT132: 12 | BU132: 12 | BV132: 0 | CA132: 6 | CB132: 1 | CC132: =VLOOKUP(C132,[1]TCD!$D:$E,2,0) -> 17 | CD132: 17 | CE132: 0 | CG132: 0 | CH132: 0 | CI132: 17 | CJ132: 17 | CK132: 0 | CM132: 0 | CN132: 0 | CO132: 17 | CP132: 17 | CQ132: 0 | CS132: 0 | CT132: 0 | CU132: 17 | CV132: 17 | CW132: 0
A133: Oui | B133: Snecma | C133: 1567300-03 | E133: 0 | F133: 0 | G133: 0 | H133: 0 | I133: 0 | J133: 0 | L133: 0 | M133: 0 | N133: 0 | O133: 0 | P133: 0 | V133: 0 | W133: 0 | X133: 0 | Y133: 0 | Z133: 0 | AC133: 0 | AD133: 0 | AE133: 0 | AF133: 0 | AG133: 0 | AJ133: 0 | AK133: 0 | AL133: 0 | AM133: 0 | AN133: 0 | AP133: 0 | AQ133: 0 | AR133: 0 | AS133: 0 | AT133: 0 | AV133: 0 | AW133: 0 | AX133: 0 | AY133: 0 | AZ133: 0 | BB133: 0 | BC133: 0 | BD133: 0 | BE133: 0 | BF133: 0 | BI133: 0 | BJ133: 0 | BK133: 0 | BL133: 0 | BM133: 0 | BS133: 0 | BT133: 0 | BU133: 0 | BV133: 0 | CA133: 0 | CB133: 0 | CC133: 0 | CD133: =BT133+CA133-CB133 -> 0 | CE133: =CC133-CD133 -> 0 | CG133: 0 | CH133: 0 | CI133: 0 | CJ133: =CC133+CG133-CH133 -> 0 | CK133: =CI133-CJ133 -> 0 | CM133: 0 | CN133: 0 | CO133: 0 | CP133: =CI133+CM133-CN133 -> 0 | CQ133: =CO133-CP133 -> 0 | CS133: 0 | CT133: 0 | CU133: 0 | CV133: =CO133+CS133-CT133 -> 0 | CW133: =CU133-CV133 -> 0
A134: Oui | B134: Snecma | C134: 1567300-04 | D134: SERVO-VALVE 2 ETAGES-TUYERE | E134: 0 | F134: 0 | G134: 0 | H134: 0 | I134: 0 | J134: 0 | L134: 0 | M134: 0 | N134: 0 | O134: 0 | P134: 0 | V134: 0 | W134: 0 | X134: 0 | Y134: 0 | Z134: 0 | AC134: 0 | AD134: 0 | AE134: 0 | AF134: 0 | AG134: 0 | AJ134: 0 | AK134: 0 | AL134: 0 | AM134: 0 | AN134: 0 | AP134: 0 | AQ134: 0 | AR134: 0 | AS134: 0 | AT134: 0 | AV134: 0 | AW134: 0 | AX134: 0 | AY134: 0 | AZ134: 0 | BB134: 0 | BC134: 0 | BD134: 0 | BE134: 0 | BF134: 0 | BI134: 0 | BJ134: 0 | BK134: 0 | BL134: 0 | BM134: 0 | BS134: 0 | BT134: 0 | BU134: 0 | BV134: 0 | CA134: 0 | CB134: 0 | CC134: 0 | CD134: 0 | CE134: 0 | CG134: 0 | CH134: 0 | CI134: 0 | CJ134: 0 | CK134: 0 | CM134: 0 | CN134: 0 | CO134: 0 | CP134: 0 | CQ134: 0 | CS134: 0 | CT134: 0 | CU134: 0 | CV134: 0 | CW134: 0
A135: Oui | B135: Snecma | C135: 1567300-05 | D135: SERVO-VALVE 2 ETAGES-TUYERE | E135: 34 | F135: 0 | G135: 0 | H135: 34 | I135: 34 | J135: 0 | L135: 0 | M135: 0 | N135: 34 | O135: 34 | P135: 0 | V135: 0 | W135: 0 | X135: 34 | Y135: 34 | Z135: 0 | AC135: 0 | AD135: 0 | AE135: 34 | AF135: 34 | AG135: 0 | AJ135: 0 | AK135: 0 | AL135: 34 | AM135: 34 | AN135: 0 | AP135: 0 | AQ135: 0 | AR135: 34 | AS135: 34 | AT135: 0 | AV135: 0 | AW135: 0 | AX135: 34 | AY135: 34 | AZ135: 0 | BB135: 0 | BC135: 1 | BD135: 33 | BE135: 33 | BF135: 0 | BI135: 0 | BJ135: 0 | BK135: 33 | BL135: 33 | BM135: 0 | BR135: 0 | BS135: 0 | BT135: 33 | BU135: 33 | BV135: 0 | CA135: 0 | CB135: 1 | CC135: =VLOOKUP(C135,[1]TCD!$D:$E,2,0) -> 32 | CD135: 32 | CE135: 0 | CG135: 0 | CH135: 0 | CI135: 32 | CJ135: 32 | CK135: 0 | CM135: 0 | CN135: 1 | CO135: 31 | CP135: 31 | CQ135: 0 | CS135: 0 | CT135: 0 | CU135: 31 | CV135: 31 | CW135: 0
A136: Oui | B136: Snecma | C136: 15-841651 | D136: FAISCEAU EQUIPE | E136: 26 | F136: 0 | G136: 0 | H136: 26 | I136: 26 | J136: 0 | L136: 0 | M136: 0 | N136: 26 | O136: 26 | P136: 0 | V136: 0 | W136: 0 | X136: 26 | Y136: 26 | Z136: 0 | AC136: 0 | AD136: 0 | AE136: 26 | AF136: 26 | AG136: 0 | AJ136: 0 | AK136: 0 | AL136: 26 | AM136: 26 | AN136: 0 | AP136: 0 | AQ136: 0 | AR136: 26 | AS136: 26 | AT136: 0 | AV136: 0 | AW136: 0 | AX136: 26 | AY136: 26 | AZ136: 0 | BB136: 0 | BC136: 0 | BD136: 26 | BE136: 26 | BF136: 0 | BI136: 0 | BJ136: 0 | BK136: 26 | BL136: 26 | BM136: 0 | BR136: 0 | BS136: 0 | BT136: 26 | BU136: 26 | BV136: 0 | CA136: 0 | CB136: 0 | CC136: =VLOOKUP(C136,[1]TCD!$D:$E,2,0) -> 26 | CD136: 26 | CE136: 0 | CG136: 0 | CH136: 0 | CI136: 26 | CJ136: 26 | CK136: 0 | CM136: 0 | CN136: 0 | CO136: 26 | CP136: 26 | CQ136: 0 | CS136: 0 | CT136: 0 | CU136: 26 | CV136: 26 | CW136: 0
A137: Oui | B137: Snecma | C137: 17,00X2,65-64C8 | E137: 0 | F137: 0 | G137: 0 | H137: 0 | I137: 0 | J137: 0 | L137: 0 | M137: 0 | N137: 0 | O137: 0 | P137: 0 | V137: 0 | W137: 0 | X137: 0 | Y137: 0 | Z137: 0 | AC137: 0 | AD137: 0 | AE137: 0 | AF137: 0 | AG137: 0 | AJ137: 0 | AK137: 0 | AL137: 0 | AM137: 0 | AN137: 0 | AP137: 0 | AQ137: 0 | AR137: 0 | AS137: 0 | AT137: 0 | AV137: 0 | AW137: 0 | AX137: 0 | AY137: 0 | AZ137: 0 | BB137: 0 | BC137: 0 | BD137: 0 | BE137: 0 | BF137: 0 | BI137: 0 | BJ137: 0 | BK137: 0 | BL137: 0 | BM137: 0 | BS137: 0 | BT137: 0 | BU137: 0 | BV137: 0 | CA137: 0 | CB137: 0 | CC137: 0 | CD137: 0 | CE137: 0 | CG137: 0 | CH137: 0 | CI137: 0 | CJ137: 0 | CK137: 0 | CM137: 0 | CN137: 0 | CO137: 0 | CP137: 0 | CQ137: 0 | CS137: 0 | CT137: 0 | CU137: 0 | CV137: 0 | CW137: 0
A138: Oui | B138: Snecma | C138: 1851-00 | D138: FILTRE,CONIQUE | E138: 1065 | F138: 0 | G138: 0 | H138: 1065 | I138: 1065 | J138: 0 | L138: 0 | M138: 0 | N138: 1065 | O138: 1065 | P138: 0 | V138: 0 | W138: 0 | X138: 1065 | Y138: 1065 | Z138: 0 | AC138: 0 | AD138: 0 | AE138: 1065 | AF138: 1065 | AG138: 0 | AJ138: 0 | AK138: 0 | AL138: 1065 | AM138: 1065 | AN138: 0 | AP138: 0 | AQ138: 0 | AR138: 1065 | AS138: 1065 | AT138: 0 | AV138: 0 | AW138: 6 | AX138: 1059 | AY138: 1059 | AZ138: 0 | BB138: 0 | BC138: 6 | BD138: 1053 | BE138: 1053 | BF138: 0 | BI138: 0 | BJ138: 1 | BK138: 1052 | BL138: 1052 | BM138: 0 | BR138: 0 | BS138: 3 | BT138: 1049 | BU138: 1049 | BV138: 0 | CA138: 0 | CB138: 4 | CC138: =VLOOKUP(C138,[1]TCD!$D:$E,2,0) -> 1045 | CD138: 1045 | CE138: 0 | CG138: 0 | CH138: 1 | CI138: 1044 | CJ138: 1044 | CK138: 0 | CM138: 0 | CN138: 0 | CO138: 1044 | CP138: 1044 | CQ138: 0 | CS138: 0 | CT138: 0 | CU138: 1044 | CV138: 1044 | CW138: 0
A139: Oui | B139: Snecma | C139: 200Z5X13 | D139: DOUILLE DE PROTECTION | E139: 101 | F139: 0 | G139: 0 | H139: 101 | I139: 101 | J139: 0 | L139: 0 | M139: 0 | N139: 101 | O139: 101 | P139: 0 | V139: 0 | W139: 0 | X139: 101 | Y139: 101 | Z139: 0 | AC139: 0 | AD139: 0 | AE139: 101 | AF139: 101 | AG139: 0 | AJ139: 0 | AK139: 0 | AL139: 101 | AM139: 101 | AN139: 0 | AP139: 0 | AQ139: 0 | AR139: 101 | AS139: 101 | AT139: 0 | AV139: 0 | AW139: 0 | AX139: 101 | AY139: 101 | AZ139: 0 | BB139: 0 | BC139: 0 | BD139: 101 | BE139: 101 | BF139: 0 | BI139: 0 | BJ139: 0 | BK139: 101 | BL139: 101 | BM139: 0 | BR139: 0 | BS139: 0 | BT139: 101 | BU139: 101 | BV139: 0 | CA139: 0 | CB139: 0 | CC139: =VLOOKUP(C139,[1]TCD!$D:$E,2,0) -> 101 | CD139: 101 | CE139: 0 | CG139: 0 | CH139: 0 | CI139: 101 | CJ139: 101 | CK139: 0 | CM139: 0 | CN139: 0 | CO139: 101 | CP139: 101 | CQ139: 0 | CS139: 0 | CT139: 0 | CU139: 101 | CV139: 101 | CW139: 0
A140: Oui | B140: AIA | C140: 202A132-25-0 | E140: 15 | F140: 0 | G140: 0 | H140: 15 | I140: 15 | J140: 0 | L140: 0 | M140: 0 | N140: 15 | O140: 15 | P140: 0 | V140: 0 | W140: 0 | X140: 15 | Y140: 15 | Z140: 0 | AC140: 0 | AD140: 0 | AE140: 15 | AF140: 15 | AG140: 0 | AJ140: 0 | AK140: 0 | AL140: 15 | AM140: 15 | AN140: 0 | AP140: 0 | AQ140: 0 | AR140: 15 | AS140: 15 | AT140: 0 | AV140: 0 | AW140: 0 | AX140: 15 | AY140: 15 | AZ140: 0 | BB140: 0 | BC140: 0 | BD140: 15 | BE140: 15 | BF140: 0 | BI140: 0 | BJ140: 0 | BK140: 15 | BL140: 15 | BM140: 0 | BR140: 0 | BS140: 0 | BT140: 15 | BU140: 15 | BV140: 0 | CA140: 0 | CB140: 0 | CC140: =VLOOKUP(C140,[1]TCD!$D:$E,2,0) -> 15 | CD140: 15 | CE140: 0 | CG140: 0 | CH140: 0 | CI140: 15 | CJ140: 15 | CK140: 0 | CM140: 0 | CN140: 0 | CO140: 15 | CP140: 15 | CQ140: 0 | CS140: 0 | CT140: 0 | CU140: 15 | CV140: 15 | CW140: 0
A141: Oui | B141: Snecma | C141: 202K132-25 | E141: 130 | F141: 0 | G141: 0 | H141: 130 | I141: 130 | J141: 0 | L141: 0 | M141: 0 | N141: 130 | O141: 130 | P141: 0 | V141: 0 | W141: 0 | X141: 130 | Y141: 130 | Z141: 0 | AC141: 0 | AD141: 0 | AE141: 130 | AF141: 130 | AG141: 0 | AJ141: 0 | AK141: 0 | AL141: 130 | AM141: 130 | AN141: 0 | AP141: 0 | AQ141: 0 | AR141: 130 | AS141: 130 | AT141: 0 | AV141: 0 | AW141: 0 | AX141: 130 | AY141: 130 | AZ141: 0 | BB141: 0 | BC141: 0 | BD141: 130 | BE141: 130 | BF141: 0 | BI141: 0 | BJ141: 0 | BK141: 130 | BL141: 130 | BM141: 0 | BR141: 0 | BS141: 0 | BT141: 130 | BU141: 130 | BV141: 0 | CA141: 0 | CB141: 0 | CC141: =VLOOKUP(C141,[1]TCD!$D:$E,2,0) -> 130 | CD141: 130 | CE141: 0 | CG141: 0 | CH141: 0 | CI141: 130 | CJ141: 130 | CK141: 0 | CM141: 0 | CN141: 0 | CO141: 130 | CP141: 130 | CQ141: 0 | CS141: 0 | CT141: 0 | CU141: 130 | CV141: 130 | CW141: 0
A142: Oui | B142: Snecma | C142: 202K132-25-0 | D142: EMBOUT THERMORETRACTABLE DROIT | E142: 7 | F142: 0 | G142: 0 | H142: 7 | I142: 7 | J142: 0 | L142: 0 | M142: 0 | N142: 7 | O142: 7 | P142: 0 | V142: 0 | W142: 0 | X142: 7 | Y142: 7 | Z142: 0 | AC142: 0 | AD142: 0 | AE142: 7 | AF142: 7 | AG142: 0 | AJ142: 0 | AK142: 0 | AL142: 7 | AM142: 7 | AN142: 0 | AP142: 0 | AQ142: 0 | AR142: 7 | AS142: 7 | AT142: 0 | AV142: 0 | AW142: 0 | AX142: 7 | AY142: 7 | AZ142: 0 | BB142: 0 | BC142: 0 | BD142: 7 | BE142: 7 | BF142: 0 | BI142: 0 | BJ142: 0 | BK142: 7 | BL142: 7 | BM142: 0 | BR142: 0 | BS142: 0 | BT142: 7 | BU142: 7 | BV142: 0 | CA142: 0 | CB142: 0 | CC142: =VLOOKUP(C142,[1]TCD!$D:$E,2,0) -> 7 | CD142: 7 | CE142: 0 | CG142: 0 | CH142: 0 | CI142: 7 | CJ142: 7 | CK142: 0 | CM142: 0 | CN142: 0 | CO142: 7 | CP142: 7 | CQ142: 0 | CS142: 0 | CT142: 0 | CU142: 7 | CV142: 7 | CW142: 0
A143: Oui | B143: Snecma | C143: 202K132-25-01-0 | D143: EMBOUT THERMORETRACTABLE DROIT | E143: 60 | F143: 0 | G143: 0 | H143: 60 | I143: 60 | J143: 0 | L143: 0 | M143: 0 | N143: 60 | O143: 60 | P143: 0 | V143: 0 | W143: 0 | X143: 60 | Y143: 60 | Z143: 0 | AC143: 0 | AD143: 0 | AE143: 60 | AF143: 60 | AG143: 0 | AJ143: 0 | AK143: 0 | AL143: 60 | AM143: 60 | AN143: 0 | AP143: 0 | AQ143: 0 | AR143: 60 | AS143: 60 | AT143: 0 | AV143: 0 | AW143: 0 | AX143: 60 | AY143: 60 | AZ143: 0 | BB143: 0 | BC143: 0 | BD143: 60 | BE143: 60 | BF143: 0 | BI143: 0 | BJ143: 0 | BK143: 60 | BL143: 60 | BM143: 0 | BR143: 0 | BS143: 0 | BT143: 60 | BU143: 60 | BV143: 0 | CA143: 0 | CB143: 0 | CC143: =VLOOKUP(C143,[1]TCD!$D:$E,2,0) -> 60 | CD143: 60 | CE143: 0 | CG143: 0 | CH143: 0 | CI143: 60 | CJ143: 60 | CK143: 0 | CM143: 0 | CN143: 0 | CO143: 60 | CP143: 60 | CQ143: 0 | CS143: 0 | CT143: 0 | CU143: 60 | CV143: 60 | CW143: 0
A144: Oui | B144: Snecma | C144: 202K142-25-01 | D144: SLEEVE | E144: 127 | F144: 0 | G144: 0 | H144: 127 | I144: 127 | J144: 0 | L144: 0 | M144: 0 | N144: 127 | O144: 127 | P144: 0 | V144: 0 | W144: 0 | X144: 127 | Y144: 127 | Z144: 0 | AC144: 0 | AD144: 0 | AE144: 127 | AF144: 127 | AG144: 0 | AJ144: 0 | AK144: 0 | AL144: 127 | AM144: 127 | AN144: 0 | AP144: 0 | AQ144: 0 | AR144: 127 | AS144: 127 | AT144: 0 | AV144: 0 | AW144: 0 | AX144: 127 | AY144: 127 | AZ144: 0 | BB144: 0 | BC144: 0 | BD144: 127 | BE144: 127 | BF144: 0 | BI144: 0 | BJ144: 0 | BK144: 127 | BL144: 127 | BM144: 0 | BR144: 0 | BS144: 0 | BT144: 127 | BU144: 127 | BV144: 0 | CA144: 0 | CB144: 0 | CC144: =VLOOKUP(C144,[1]TCD!$D:$E,2,0) -> 127 | CD144: 127 | CE144: 0 | CG144: 0 | CH144: 0 | CI144: 127 | CJ144: 127 | CK144: 0 | CM144: 0 | CN144: 0 | CO144: 127 | CP144: 127 | CQ144: 0 | CS144: 0 | CT144: 0 | CU144: 127 | CV144: 127 | CW144: 0
A145: Oui | B145: Snecma | C145: 202K153-25 | D145: FITTING,TRTT DROIT 150C | E145: 175 | F145: 0 | G145: 0 | H145: 175 | I145: 175 | J145: 0 | L145: 0 | M145: 0 | N145: 175 | O145: 175 | P145: 0 | V145: 0 | W145: 0 | X145: 175 | Y145: 175 | Z145: 0 | AC145: 0 | AD145: 0 | AE145: 175 | AF145: 175 | AG145: 0 | AJ145: 0 | AK145: 0 | AL145: 175 | AM145: 175 | AN145: 0 | AP145: 0 | AQ145: 0 | AR145: 175 | AS145: 175 | AT145: 0 | AV145: 0 | AW145: 0 | AX145: 175 | AY145: 175 | AZ145: 0 | BB145: 0 | BC145: 0 | BD145: 175 | BE145: 175 | BF145: 0 | BI145: 0 | BJ145: 0 | BK145: 175 | BL145: 175 | BM145: 0 | BR145: 0 | BS145: 0 | BT145: 175 | BU145: 175 | BV145: 0 | CA145: 0 | CB145: 0 | CC145: =VLOOKUP(C145,[1]TCD!$D:$E,2,0) -> 175 | CD145: 175 | CE145: 0 | CG145: 0 | CH145: 0 | CI145: 175 | CJ145: 175 | CK145: 0 | CM145: 0 | CN145: 0 | CO145: 175 | CP145: 175 | CQ145: 0 | CS145: 0 | CT145: 0 | CU145: 175 | CV145: 175 | CW145: 0
A146: Oui | B146: AIA | C146: 202K153-25-0 | E146: 12 | F146: 0 | G146: 0 | H146: 12 | I146: 12 | J146: 0 | L146: 0 | M146: 0 | N146: 12 | O146: 12 | P146: 0 | V146: 0 | W146: 0 | X146: 12 | Y146: 12 | Z146: 0 | AC146: 0 | AD146: 0 | AE146: 12 | AF146: 12 | AG146: 0 | AJ146: 0 | AK146: 0 | AL146: 12 | AM146: 12 | AN146: 0 | AP146: 0 | AQ146: 0 | AR146: 12 | AS146: 12 | AT146: 0 | AV146: 0 | AW146: 0 | AX146: 12 | AY146: 12 | AZ146: 0 | BB146: 0 | BC146: 0 | BD146: 12 | BE146: 12 | BF146: 0 | BI146: 0 | BJ146: 0 | BK146: 12 | BL146: 12 | BM146: 0 | BR146: 0 | BS146: 0 | BT146: 12 | BU146: 12 | BV146: 0 | CA146: 0 | CB146: 0 | CC146: =VLOOKUP(C146,[1]TCD!$D:$E,2,0) -> 12 | CD146: 12 | CE146: 0 | CG146: 0 | CH146: 0 | CI146: 12 | CJ146: 12 | CK146: 0 | CM146: 0 | CN146: 0 | CO146: 12 | CP146: 12 | CQ146: 0 | CS146: 0 | CT146: 0 | CU146: 12 | CV146: 12 | CW146: 0
A147: Oui | B147: Snecma | C147: 202K163-25 | E147: 0 | F147: 0 | G147: 0 | H147: 0 | I147: 0 | J147: 0 | L147: 0 | M147: 0 | N147: 0 | O147: 0 | P147: 0 | V147: 0 | W147: 0 | X147: 0 | Y147: 0 | Z147: 0 | AC147: 0 | AD147: 0 | AE147: 0 | AF147: 0 | AG147: 0 | AJ147: 0 | AK147: 0 | AL147: 0 | AM147: 0 | AN147: 0 | AP147: 0 | AQ147: 0 | AR147: 0 | AS147: 0 | AT147: 0 | AV147: 0 | AW147: 0 | AX147: 0 | AY147: 0 | AZ147: 0 | BB147: 0 | BC147: 0 | BD147: 0 | BE147: 0 | BF147: 0 | BI147: 0 | BJ147: 0 | BK147: 0 | BL147: 0 | BM147: 0 | BS147: 0 | BT147: 0 | BU147: 0 | BV147: 0 | CA147: 0 | CB147: 0 | CC147: 0 | CD147: 0 | CE147: 0 | CG147: 0 | CH147: 0 | CI147: 0 | CJ147: 0 | CK147: 0 | CM147: 0 | CN147: 0 | CO147: 0 | CP147: 0 | CQ147: 0 | CS147: 0 | CT147: 0 | CU147: 0 | CV147: 0 | CW147: 0
A148: Oui | B148: AIA | C148: 202K163-25-0 | E148: 19 | F148: 0 | G148: 0 | H148: 19 | I148: 19 | J148: 0 | L148: 0 | M148: 0 | N148: 19 | O148: 19 | P148: 0 | V148: 0 | W148: 0 | X148: 19 | Y148: 19 | Z148: 0 | AC148: 0 | AD148: 0 | AE148: 19 | AF148: 19 | AG148: 0 | AJ148: 0 | AK148: 0 | AL148: 19 | AM148: 19 | AN148: 0 | AP148: 0 | AQ148: 0 | AR148: 19 | AS148: 19 | AT148: 0 | AV148: 0 | AW148: 0 | AX148: 19 | AY148: 19 | AZ148: 0 | BB148: 0 | BC148: 0 | BD148: 19 | BE148: 19 | BF148: 0 | BI148: 0 | BJ148: 0 | BK148: 19 | BL148: 19 | BM148: 0 | BR148: 0 | BS148: 0 | BT148: 19 | BU148: 19 | BV148: 0 | CA148: 0 | CB148: 0 | CC148: =VLOOKUP(C148,[1]TCD!$D:$E,2,0) -> 19 | CD148: 19 | CE148: 0 | CG148: 0 | CH148: 0 | CI148: 19 | CJ148: 19 | CK148: 0 | CM148: 0 | CN148: 0 | CO148: 19 | CP148: 19 | CQ148: 0 | CS148: 0 | CT148: 0 | CU148: 19 | CV148: 19 | CW148: 0
A149: Oui | B149: Snecma | C149: 202K163-25-02 | D149: EMBOUT | E149: 48 | F149: 0 | G149: 0 | H149: 48 | I149: 48 | J149: 0 | L149: 0 | M149: 0 | N149: 48 | O149: 48 | P149: 0 | V149: 0 | W149: 0 | X149: 48 | Y149: 48 | Z149: 0 | AC149: 0 | AD149: 0 | AE149: 48 | AF149: 48 | AG149: 0 | AJ149: 0 | AK149: 0 | AL149: 48 | AM149: 48 | AN149: 0 | AP149: 0 | AQ149: 0 | AR149: 48 | AS149: 48 | AT149: 0 | AV149: 0 | AW149: 0 | AX149: 48 | AY149: 48 | AZ149: 0 | BB149: 0 | BC149: 0 | BD149: 48 | BE149: 48 | BF149: 0 | BI149: 0 | BJ149: 0 | BK149: 48 | BL149: 48 | BM149: 0 | BR149: 0 | BS149: 0 | BT149: 48 | BU149: 48 | BV149: 0 | CA149: 0 | CB149: 0 | CC149: =VLOOKUP(C149,[1]TCD!$D:$E,2,0) -> 48 | CD149: 48 | CE149: 0 | CG149: 0 | CH149: 0 | CI149: 48 | CJ149: 48 | CK149: 0 | CM149: 0 | CN149: 0 | CO149: 48 | CP149: 48 | CQ149: 0 | CS149: 0 | CT149: 0 | CU149: 48 | CV149: 48 | CW149: 0
A150: Oui | B150: Snecma | C150: 21215CA3207 | D150: RIVET, UNIVERSAL HEAD | E150: 351 | F150: 0 | G150: 0 | H150: 1350 | I150: 351 | J150: 999 | K150: Pas d' Entrées et pas de Sorties mais différence de Stock! | L150: 0 | M150: 0 | N150: 1350 | O150: 1350 | P150: 0 | V150: 0 | W150: 0 | X150: 1350 | Y150: 1350 | Z150: 0 | AC150: 0 | AD150: 0 | AE150: 1350 | AF150: 1350 | AG150: 0 | AJ150: 0 | AK150: 0 | AL150: 1350 | AM150: 1350 | AN150: 0 | AP150: 0 | AQ150: 0 | AR150: 1350 | AS150: 1350 | AT150: 0 | AV150: 0 | AW150: 0 | AX150: 1350 | AY150: 1350 | AZ150: 0 | BB150: 0 | BC150: 0 | BD150: 1350 | BE150: 1350 | BF150: 0 | BI150: 0 | BJ150: 0 | BK150: 1350 | BL150: 1350 | BM150: 0 | BR150: 0 | BS150: 0 | BT150: 1350 | BU150: 1350 | BV150: 0 | CA150: 0 | CB150: 0 | CC150: =VLOOKUP(C150,[1]TCD!$D:$E,2,0) -> 1350 | CD150: 1350 | CE150: 0 | CG150: 0 | CH150: 0 | CI150: 1350 | CJ150: 1350 | CK150: 0 | CM150: 0 | CN150: 0 | CO150: 1350 | CP150: 1350 | CQ150: 0 | CS150: 0 | CT150: 0 | CU150: 1350 | CV150: 1350 | CW150: 0
A151: Oui | B151: Snecma | C151: 21215CA3209 | D151: RIVET, UNIVERSAL HEAD | E151: 912 | F151: 0 | G151: 0 | H151: 912 | I151: 912 | J151: 0 | L151: 0 | M151: 0 | N151: 912 | O151: 912 | P151: 0 | V151: 0 | W151: 0 | X151: 912 | Y151: 912 | Z151: 0 | AC151: 0 | AD151: 0 | AE151: 912 | AF151: 912 | AG151: 0 | AJ151: 0 | AK151: 0 | AL151: 912 | AM151: 912 | AN151: 0 | AP151: 0 | AQ151: 0 | AR151: 912 | AS151: 912 | AT151: 0 | AV151: 0 | AW151: 0 | AX151: 912 | AY151: 912 | AZ151: 0 | BB151: 0 | BC151: 0 | BD151: 912 | BE151: 912 | BF151: 0 | BI151: 0 | BJ151: 0 | BK151: 912 | BL151: 912 | BM151: 0 | BR151: 0 | BS151: 0 | BT151: 912 | BU151: 912 | BV151: 0 | CA151: 0 | CB151: 0 | CC151: =VLOOKUP(C151,[1]TCD!$D:$E,2,0) -> 912 | CD151: 912 | CE151: 0 | CG151: 0 | CH151: 0 | CI151: 912 | CJ151: 912 | CK151: 0 | CM151: 0 | CN151: 0 | CO151: 912 | CP151: 912 | CQ151: 0 | CS151: 0 | CT151: 0 | CU151: 912 | CV151: 912 | CW151: 0
A152: Oui | B152: Snecma | C152: 21215CA3210 | D152: RIVET, UNIVERSAL HEAD | E152: 575 | F152: 0 | G152: 0 | H152: 575 | I152: 575 | J152: 0 | L152: 0 | M152: 0 | N152: 575 | O152: 575 | P152: 0 | V152: 0 | W152: 0 | X152: 575 | Y152: 575 | Z152: 0 | AC152: 0 | AD152: 0 | AE152: 575 | AF152: 575 | AG152: 0 | AJ152: 0 | AK152: 0 | AL152: 575 | AM152: 575 | AN152: 0 | AP152: 0 | AQ152: 0 | AR152: 575 | AS152: 575 | AT152: 0 | AV152: 0 | AW152: 0 | AX152: 575 | AY152: 575 | AZ152: 0 | BB152: 0 | BC152: 0 | BD152: 575 | BE152: 575 | BF152: 0 | BI152: 0 | BJ152: 0 | BK152: 575 | BL152: 575 | BM152: 0 | BR152: 0 | BS152: 0 | BT152: 575 | BU152: 575 | BV152: 0 | CA152: 0 | CB152: 0 | CC152: =VLOOKUP(C152,[1]TCD!$D:$E,2,0) -> 575 | CD152: 575 | CE152: 0 | CG152: 0 | CH152: 0 | CI152: 575 | CJ152: 575 | CK152: 0 | CM152: 0 | CN152: 0 | CO152: 575 | CP152: 575 | CQ152: 0 | CS152: 0 | CT152: 0 | CU152: 575 | CV152: 575 | CW152: 0
A153: Oui | B153: Snecma | C153: 21215CM3208 | D153: RIVET | E153: 0 | F153: 0 | G153: 0 | H153: 0 | I153: 0 | J153: 0 | L153: 0 | M153: 0 | N153: 0 | O153: 0 | P153: 0 | V153: 0 | W153: 0 | X153: 0 | Y153: 0 | Z153: 0 | AC153: 0 | AD153: 0 | AE153: 0 | AF153: 0 | AG153: 0 | AJ153: 0 | AK153: 0 | AL153: 0 | AM153: 0 | AN153: 0 | AP153: 0 | AQ153: 0 | AR153: 0 | AS153: 0 | AT153: 0 | AV153: 0 | AW153: 0 | AX153: 0 | AY153: 0 | AZ153: 0 | BB153: 0 | BC153: 0 | BD153: 200 | BE153: 0 | BF153: 200 | BG153: ecart mesuré | BH153: OK Nouvelle réf | BI153: 0 | BJ153: 0 | BK153: 200 | BL153: 200 | BM153: 0 | BR153: 0 | BS153: 0 | BT153: 200 | BU153: 200 | BV153: 0 | CA153: 0 | CB153: 0 | CC153: =VLOOKUP(C153,[1]TCD!$D:$E,2,0) -> 200 | CD153: 200 | CE153: 0 | CG153: 0 | CH153: 0 | CI153: 200 | CJ153: 200 | CK153: 0 | CM153: 0 | CN153: 0 | CO153: 200 | CP153: 200 | CQ153: 0 | CS153: 0 | CT153: 0 | CU153: 200 | CV153: 200 | CW153: 0
A154: Oui | B154: Snecma | C154: 21215CM4008 | D154: RIVET, | E154: 234 | F154: 0 | G154: 0 | H154: 234 | I154: 234 | J154: 0 | L154: 0 | M154: 10 | N154: 224 | O154: 224 | P154: 0 | V154: 0 | W154: 0 | X154: 224 | Y154: 224 | Z154: 0 | AC154: 0 | AD154: 0 | AE154: 224 | AF154: 224 | AG154: 0 | AJ154: 0 | AK154: 0 | AL154: 224 | AM154: 224 | AN154: 0 | AP154: 0 | AQ154: 0 | AR154: 224 | AS154: 224 | AT154: 0 | AV154: 0 | AW154: 0 | AX154: 224 | AY154: 224 | AZ154: 0 | BB154: 0 | BC154: 0 | BD154: 224 | BE154: 224 | BF154: 0 | BI154: 0 | BJ154: 0 | BK154: 224 | BL154: 224 | BM154: 0 | BR154: 0 | BS154: 0 | BT154: 224 | BU154: 224 | BV154: 0 | CA154: 0 | CB154: 0 | CC154: =VLOOKUP(C154,[1]TCD!$D:$E,2,0) -> 224 | CD154: 224 | CE154: 0 | CG154: 0 | CH154: 0 | CI154: 224 | CJ154: 224 | CK154: 0 | CM154: 0 | CN154: 0 | CO154: 224 | CP154: 224 | CQ154: 0 | CS154: 0 | CT154: 0 | CU154: 224 | CV154: 224 | CW154: 0
A155: Oui | B155: Snecma | C155: 21215TC1605 | E155: 700 | F155: 0 | G155: 0 | H155: 700 | I155: 700 | J155: 0 | L155: 16 | M155: 0 | N155: 700 | O155: 716 | P155: -16 | V155: 0 | W155: 0 | X155: 700 | Y155: 700 | Z155: 0 | AC155: 0 | AD155: 0 | AE155: 700 | AF155: 700 | AG155: 0 | AJ155: 0 | AK155: 0 | AL155: 700 | AM155: 700 | AN155: 0 | AP155: 0 | AQ155: 0 | AR155: 700 | AS155: 700 | AT155: 0 | AV155: 0 | AW155: 0 | AX155: 700 | AY155: 700 | AZ155: 0 | BB155: 0 | BC155: 0 | BD155: 700 | BE155: 700 | BF155: 0 | BI155: 0 | BJ155: 0 | BK155: 700 | BL155: 700 | BM155: 0 | BR155: 0 | BS155: 0 | BT155: 700 | BU155: 700 | BV155: 0 | CA155: 0 | CB155: 0 | CC155: =VLOOKUP(C155,[1]TCD!$D:$E,2,0) -> 700 | CD155: 700 | CE155: 0 | CG155: 0 | CH155: 0 | CI155: 700 | CJ155: 700 | CK155: 0 | CM155: 0 | CN155: 0 | CO155: 700 | CP155: 700 | CQ155: 0 | CS155: 0 | CT155: 0 | CU155: 700 | CV155: 700 | CW155: 0
A156: Oui | B156: Snecma | C156: 21215TC2407 | D156: RIVET | E156: 0 | F156: 0 | G156: 0 | H156: 0 | I156: 0 | J156: 0 | L156: 0 | M156: 0 | N156: 0 | O156: 0 | P156: 0 | V156: 0 | W156: 0 | X156: 0 | Y156: 0 | Z156: 0 | AC156: 0 | AD156: 0 | AE156: 0 | AF156: 0 | AG156: 0 | AJ156: 0 | AK156: 0 | AL156: 0 | AM156: 0 | AN156: 0 | AP156: 0 | AQ156: 0 | AR156: 0 | AS156: 0 | AT156: 0 | AV156: 0 | AW156: 0 | AX156: 0 | AY156: 0 | AZ156: 0 | BB156: 0 | BC156: 0 | BD156: 0 | BE156: 0 | BF156: 0 | BI156: 0 | BJ156: 0 | BK156: 0 | BL156: 0 | BM156: 0 | BS156: 0 | BT156: 0 | BU156: 0 | BV156: 0 | CA156: 0 | CB156: 0 | CC156: 0 | CD156: 0 | CE156: 0 | CG156: 0 | CH156: 0 | CI156: 0 | CJ156: 0 | CK156: 0 | CM156: 0 | CN156: 0 | CO156: 0 | CP156: 0 | CQ156: 0 | CS156: 0 | CT156: 0 | CU156: 0 | CV156: 0 | CW156: 0
A157: Oui | B157: Snecma | C157: 21215TC3206 | D157: RIVET | E157: 760 | F157: 0 | G157: 0 | H157: 760 | I157: 760 | J157: 0 | L157: 0 | M157: 0 | N157: 760 | O157: 760 | P157: 0 | V157: 0 | W157: 0 | X157: 760 | Y157: 760 | Z157: 0 | AC157: 0 | AD157: 0 | AE157: 760 | AF157: 760 | AG157: 0 | AJ157: 0 | AK157: 0 | AL157: 760 | AM157: 760 | AN157: 0 | AP157: 0 | AQ157: 0 | AR157: 760 | AS157: 760 | AT157: 0 | AV157: 0 | AW157: 0 | AX157: 760 | AY157: 760 | AZ157: 0 | BB157: 0 | BC157: 0 | BD157: 760 | BE157: 760 | BF157: 0 | BI157: 0 | BJ157: 0 | BK157: 760 | BL157: 760 | BM157: 0 | BR157: 0 | BS157: 0 | BT157: 760 | BU157: 760 | BV157: 0 | CA157: 0 | CB157: 0 | CC157: =VLOOKUP(C157,[1]TCD!$D:$E,2,0) -> 760 | CD157: 760 | CE157: 0 | CG157: 0 | CH157: 0 | CI157: 760 | CJ157: 760 | CK157: 0 | CM157: 0 | CN157: 0 | CO157: 760 | CP157: 760 | CQ157: 0 | CS157: 0 | CT157: 0 | CU157: 760 | CV157: 760 | CW157: 0
B158: Snecma | C158: 21215TC3207 | D158: RIVET | E158: 420 | F158: 0 | G158: 0 | H158: 420 | I158: 420 | J158: 0 | L158: 0 | M158: 0 | N158: 420 | O158: 420 | P158: 0 | V158: 0 | W158: 0 | X158: 420 | Y158: 420 | Z158: 0 | AC158: 0 | AD158: 0 | AE158: 420 | AF158: 420 | AG158: 0 | AJ158: 0 | AK158: 0 | AL158: 420 | AM158: 420 | AN158: 0 | AP158: 0 | AQ158: 0 | AR158: 420 | AS158: 420 | AT158: 0 | AV158: 0 | AW158: 0 | AX158: 420 | AY158: 420 | AZ158: 0 | BB158: 0 | BC158: 0 | BD158: 420 | BE158: 420 | BF158: 0 | BI158: 0 | BJ158: 0 | BK158: 420 | BL158: 420 | BM158: 0 | BR158: 0 | BS158: 0 | BT158: 420 | BU158: 420 | BV158: 0 | CA158: 0 | CB158: 0 | CC158: =VLOOKUP(C158,[1]TCD!$D:$E,2,0) -> 420 | CD158: 420 | CE158: 0 | CG158: 0 | CH158: 0 | CI158: 420 | CJ158: 420 | CK158: 0 | CM158: 0 | CN158: 0 | CO158: 420 | CP158: 420 | CQ158: 0 | CS158: 0 | CT158: 0 | CU158: 420 | CV158: 420 | CW158: 0
A159: Oui | B159: Snecma | C159: 21215TC3208 | D159: RIVET | E159: 384 | F159: 0 | G159: 0 | H159: 384 | I159: 384 | J159: 0 | L159: 0 | M159: 0 | N159: 384 | O159: 384 | P159: 0 | V159: 0 | W159: 0 | X159: 384 | Y159: 384 | Z159: 0 | AC159: 0 | AD159: 0 | AE159: 384 | AF159: 384 | AG159: 0 | AJ159: 0 | AK159: 0 | AL159: 384 | AM159: 384 | AN159: 0 | AP159: 0 | AQ159: 0 | AR159: 384 | AS159: 384 | AT159: 0 | AV159: 0 | AW159: 0 | AX159: 384 | AY159: 384 | AZ159: 0 | BB159: 0 | BC159: 0 | BD159: 384 | BE159: 384 | BF159: 0 | BI159: 0 | BJ159: 0 | BK159: 384 | BL159: 384 | BM159: 0 | BR159: 0 | BS159: 0 | BT159: 384 | BU159: 384 | BV159: 0 | CA159: 0 | CB159: 0 | CC159: =VLOOKUP(C159,[1]TCD!$D:$E,2,0) -> 384 | CD159: 384 | CE159: 0 | CG159: 0 | CH159: 0 | CI159: 384 | CJ159: 384 | CK159: 0 | CM159: 0 | CN159: 0 | CO159: 384 | CP159: 384 | CQ159: 0 | CS159: 0 | CT159: 0 | CU159: 384 | CV159: 384 | CW159: 0
A160: Oui | B160: Snecma | C160: 21215TC3607 | D160: RIVET | E160: 480 | F160: 0 | G160: 0 | H160: 480 | I160: 480 | J160: 0 | L160: 0 | M160: 0 | N160: 480 | O160: 480 | P160: 0 | V160: 0 | W160: 0 | X160: 480 | Y160: 480 | Z160: 0 | AC160: 0 | AD160: 0 | AE160: 480 | AF160: 480 | AG160: 0 | AJ160: 0 | AK160: 0 | AL160: 480 | AM160: 480 | AN160: 0 | AP160: 0 | AQ160: 0 | AR160: 480 | AS160: 480 | AT160: 0 | AV160: 0 | AW160: 0 | AX160: 480 | AY160: 480 | AZ160: 0 | BB160: 0 | BC160: 0 | BD160: 480 | BE160: 480 | BF160: 0 | BI160: 0 | BJ160: 0 | BK160: 480 | BL160: 480 | BM160: 0 | BR160: 0 | BS160: 0 | BT160: 480 | BU160: 480 | BV160: 0 | CA160: 0 | CB160: 0 | CC160: =VLOOKUP(C160,[1]TCD!$D:$E,2,0) -> 480 | CD160: 480 | CE160: 0 | CG160: 0 | CH160: 0 | CI160: 480 | CJ160: 480 | CK160: 0 | CM160: 0 | CN160: 0 | CO160: 480 | CP160: 480 | CQ160: 0 | CS160: 0 | CT160: 0 | CU160: 480 | CV160: 480 | CW160: 0
A161: Oui | B161: Snecma | C161: 21215TC3608 | D161: RIVET | E161: 809 | F161: 0 | G161: 0 | H161: 809 | I161: 809 | J161: 0 | L161: 0 | M161: 0 | N161: 809 | O161: 809 | P161: 0 | V161: 0 | W161: 0 | X161: 809 | Y161: 809 | Z161: 0 | AC161: 0 | AD161: 0 | AE161: 809 | AF161: 809 | AG161: 0 | AJ161: 0 | AK161: 0 | AL161: 809 | AM161: 809 | AN161: 0 | AP161: 0 | AQ161: 0 | AR161: 809 | AS161: 809 | AT161: 0 | AV161: 0 | AW161: 0 | AX161: 809 | AY161: 809 | AZ161: 0 | BB161: 0 | BC161: 0 | BD161: 809 | BE161: 809 | BF161: 0 | BI161: 0 | BJ161: 0 | BK161: 809 | BL161: 809 | BM161: 0 | BR161: 0 | BS161: 0 | BT161: 809 | BU161: 809 | BV161: 0 | CA161: 0 | CB161: 0 | CC161: =VLOOKUP(C161,[1]TCD!$D:$E,2,0) -> 809 | CD161: 809 | CE161: 0 | CG161: 0 | CH161: 0 | CI161: 809 | CJ161: 809 | CK161: 0 | CM161: 0 | CN161: 0 | CO161: 809 | CP161: 809 | CQ161: 0 | CS161: 0 | CT161: 0 | CU161: 809 | CV161: 809 | CW161: 0
A162: Oui | B162: Snecma | C162: 21215TS3208 | D162: RIVET, SOLID | E162: 1127 | F162: 0 | G162: 0 | H162: 1127 | I162: 1127 | J162: 0 | L162: 0 | M162: 0 | N162: 1127 | O162: 1127 | P162: 0 | V162: 0 | W162: 0 | X162: 1127 | Y162: 1127 | Z162: 0 | AC162: 0 | AD162: 0 | AE162: 1127 | AF162: 1127 | AG162: 0 | AJ162: 0 | AK162: 0 | AL162: 1127 | AM162: 1127 | AN162: 0 | AP162: 46 | AQ162: 0 | AR162: 1173 | AS162: 1173 | AT162: 0 | AV162: 0 | AW162: 26 | AX162: 1147 | AY162: 1147 | AZ162: 0 | BB162: 0 | BC162: 0 | BD162: 1147 | BE162: 1147 | BF162: 0 | BI162: 0 | BJ162: 0 | BK162: 1147 | BL162: 1147 | BM162: 0 | BR162: 0 | BS162: 0 | BT162: 1147 | BU162: 1147 | BV162: 0 | CA162: 0 | CB162: 0 | CC162: =VLOOKUP(C162,[1]TCD!$D:$E,2,0) -> 1147 | CD162: 1147 | CE162: 0 | CG162: 0 | CH162: 0 | CI162: 1147 | CJ162: 1147 | CK162: 0 | CM162: 0 | CN162: 0 | CO162: 1147 | CP162: 1147 | CQ162: 0 | CS162: 0 | CT162: 0 | CU162: 1147 | CV162: 1147 | CW162: 0
A163: Oui | B163: Snecma | C163: 21215TS3209 | D163: RIVET, SOLID | E163: 611 | F163: 0 | G163: 0 | H163: 611 | I163: 611 | J163: 0 | L163: 0 | M163: 0 | N163: 611 | O163: 611 | P163: 0 | V163: 0 | W163: 0 | X163: 611 | Y163: 611 | Z163: 0 | AC163: 0 | AD163: 0 | AE163: 611 | AF163: 611 | AG163: 0 | AJ163: 0 | AK163: 0 | AL163: 611 | AM163: 611 | AN163: 0 | AP163: 0 | AQ163: 0 | AR163: 611 | AS163: 611 | AT163: 0 | AV163: 0 | AW163: 0 | AX163: 611 | AY163: 611 | AZ163: 0 | BB163: 0 | BC163: 0 | BD163: 611 | BE163: 611 | BF163: 0 | BI163: 0 | BJ163: 0 | BK163: 611 | BL163: 611 | BM163: 0 | BR163: 0 | BS163: 0 | BT163: 611 | BU163: 611 | BV163: 0 | CA163: 0 | CB163: 0 | CC163: =VLOOKUP(C163,[1]TCD!$D:$E,2,0) -> 611 | CD163: 611 | CE163: 0 | CG163: 0 | CH163: 0 | CI163: 611 | CJ163: 611 | CK163: 0 | CM163: 0 | CN163: 0 | CO163: 611 | CP163: 611 | CQ163: 0 | CS163: 0 | CT163: 0 | CU163: 611 | CV163: 611 | CW163: 0
A164: Oui | B164: Snecma | C164: 21215TS3608 | D164: RIVET, SOLID | E164: 289 | F164: 0 | G164: 0 | H164: 289 | I164: 289 | J164: 0 | L164: 0 | M164: 0 | N164: 289 | O164: 289 | P164: 0 | V164: 0 | W164: 0 | X164: 289 | Y164: 289 | Z164: 0 | AC164: 0 | AD164: 0 | AE164: 289 | AF164: 289 | AG164: 0 | AJ164: 0 | AK164: 0 | AL164: 289 | AM164: 289 | AN164: 0 | AP164: 0 | AQ164: 0 | AR164: 289 | AS164: 289 | AT164: 0 | AV164: 0 | AW164: 0 | AX164: 289 | AY164: 289 | AZ164: 0 | BB164: 0 | BC164: 0 | BD164: 289 | BE164: 289 | BF164: 0 | BI164: 0 | BJ164: 0 | BK164: 289 | BL164: 289 | BM164: 0 | BR164: 0 | BS164: 0 | BT164: 289 | BU164: 289 | BV164: 0 | CA164: 0 | CB164: 0 | CC164: =VLOOKUP(C164,[1]TCD!$D:$E,2,0) -> 289 | CD164: 289 | CE164: 0 | CG164: 0 | CH164: 0 | CI164: 289 | CJ164: 289 | CK164: 0 | CM164: 0 | CN164: 0 | CO164: 289 | CP164: 289 | CQ164: 0 | CS164: 0 | CT164: 0 | CU164: 289 | CV164: 289 | CW164: 0
A165: Oui | B165: Snecma | C165: 21215TS3609 | D165: RIVET | E165: 0 | F165: 0 | G165: 0 | H165: 0 | I165: 0 | J165: 0 | L165: 0 | M165: 0 | N165: 0 | O165: 0 | P165: 0 | V165: 0 | W165: 0 | X165: 0 | Y165: 0 | Z165: 0 | AC165: 0 | AD165: 0 | AE165: 0 | AF165: 0 | AG165: 0 | AJ165: 0 | AK165: 0 | AL165: 0 | AM165: 0 | AN165: 0 | AP165: 0 | AQ165: 0 | AR165: 0 | AS165: 0 | AT165: 0 | AV165: 0 | AW165: 0 | AX165: 0 | AY165: 0 | AZ165: 0 | BB165: 0 | BC165: 0 | BD165: 0 | BE165: 0 | BF165: 0 | BI165: 0 | BJ165: 0 | BK165: 0 | BL165: 0 | BM165: 0 | BS165: 0 | BT165: 0 | BU165: 0 | BV165: 0 | CA165: 0 | CB165: 0 | CC165: 0 | CD165: 0 | CE165: 0 | CG165: 0 | CH165: 0 | CI165: 0 | CJ165: 0 | CK165: 0 | CM165: 0 | CN165: 0 | CO165: 0 | CP165: 0 | CQ165: 0 | CS165: 0 | CT165: 0 | CU165: 0 | CV165: 0 | CW165: 0
A166: Oui | B166: Snecma | C166: 21217CA3207 | D166: COUNTERSUNK HEAD-RIVET | E166: 919 | F166: 0 | G166: 0 | H166: 919 | I166: 919 | J166: 0 | L166: 0 | M166: 0 | N166: 919 | O166: 919 | P166: 0 | V166: 0 | W166: 0 | X166: 919 | Y166: 919 | Z166: 0 | AC166: 0 | AD166: 0 | AE166: 919 | AF166: 919 | AG166: 0 | AJ166: 0 | AK166: 0 | AL166: 919 | AM166: 919 | AN166: 0 | AP166: 0 | AQ166: 0 | AR166: 919 | AS166: 919 | AT166: 0 | AV166: 0 | AW166: 0 | AX166: 919 | AY166: 919 | AZ166: 0 | BB166: 0 | BC166: 0 | BD166: 919 | BE166: 919 | BF166: 0 | BI166: 0 | BJ166: 0 | BK166: 919 | BL166: 919 | BM166: 0 | BR166: 0 | BS166: 0 | BT166: 919 | BU166: 919 | BV166: 0 | CA166: 0 | CB166: 0 | CC166: =VLOOKUP(C166,[1]TCD!$D:$E,2,0) -> 919 | CD166: 919 | CE166: 0 | CG166: 0 | CH166: 0 | CI166: 919 | CJ166: 919 | CK166: 0 | CM166: 0 | CN166: 0 | CO166: 919 | CP166: 919 | CQ166: 0 | CS166: 0 | CT166: 0 | CU166: 919 | CV166: 919 | CW166: 0
A167: Oui | B167: Snecma | C167: 21217CA3208 | D167: COUNTERSUNK HEAD-RIVET | E167: 91 | F167: 0 | G167: 6 | H167: 85 | I167: 85 | J167: 0 | L167: 0 | M167: 12 | N167: 73 | O167: 73 | P167: 0 | V167: 0 | W167: 6 | X167: 67 | Y167: 67 | Z167: 0 | AC167: 0 | AD167: 6 | AE167: 61 | AF167: 61 | AG167: 0 | AJ167: 0 | AK167: 0 | AL167: 61 | AM167: 61 | AN167: 0 | AP167: 0 | AQ167: 0 | AR167: 61 | AS167: 61 | AT167: 0 | AV167: 6 | AW167: 18 | AX167: 49 | AY167: 49 | AZ167: 0 | BB167: 0 | BC167: 0 | BD167: 49 | BE167: 49 | BF167: 0 | BI167: 0 | BJ167: 0 | BK167: 49 | BL167: 49 | BM167: 0 | BR167: 0 | BS167: 0 | BT167: 49 | BU167: 49 | BV167: 0 | CA167: 0 | CB167: 0 | CC167: =VLOOKUP(C167,[1]TCD!$D:$E,2,0) -> 49 | CD167: 49 | CE167: 0 | CG167: 0 | CH167: 0 | CI167: 49 | CJ167: 49 | CK167: 0 | CM167: 0 | CN167: 12 | CO167: 37 | CP167: 37 | CQ167: 0 | CS167: 0 | CT167: 0 | CU167: 37 | CV167: 37 | CW167: 0
A168: Oui | B168: Snecma | C168: 21217CA3209 | D168: COUNTERSUNK HEAD-RIVET | E168: 74 | F168: 0 | G168: 0 | H168: 74 | I168: 74 | J168: 0 | L168: 0 | M168: 0 | N168: 74 | O168: 74 | P168: 0 | V168: 0 | W168: 0 | X168: 74 | Y168: 74 | Z168: 0 | AC168: 0 | AD168: 0 | AE168: 74 | AF168: 74 | AG168: 0 | AJ168: 0 | AK168: 0 | AL168: 74 | AM168: 74 | AN168: 0 | AP168: 0 | AQ168: 0 | AR168: 74 | AS168: 74 | AT168: 0 | AV168: 0 | AW168: 0 | AX168: 74 | AY168: 74 | AZ168: 0 | BB168: 0 | BC168: 0 | BD168: 74 | BE168: 74 | BF168: 0 | BI168: 0 | BJ168: 0 | BK168: 74 | BL168: 74 | BM168: 0 | BR168: 0 | BS168: 0 | BT168: 74 | BU168: 74 | BV168: 0 | CA168: 0 | CB168: 0 | CC168: =VLOOKUP(C168,[1]TCD!$D:$E,2,0) -> 74 | CD168: 74 | CE168: 0 | CG168: 0 | CH168: 0 | CI168: 74 | CJ168: 74 | CK168: 0 | CM168: 0 | CN168: 0 | CO168: 74 | CP168: 74 | CQ168: 0 | CS168: 0 | CT168: 0 | CU168: 74 | CV168: 74 | CW168: 0
A169: Oui | B169: Snecma | C169: 21217CA3210 | D169: COUNTERSUNK HEAD-RIVET | E169: 606 | F169: 0 | G169: 0 | H169: 606 | I169: 606 | J169: 0 | L169: 0 | M169: 0 | N169: 606 | O169: 606 | P169: 0 | V169: 0 | W169: 0 | X169: 606 | Y169: 606 | Z169: 0 | AC169: 0 | AD169: 0 | AE169: 606 | AF169: 606 | AG169: 0 | AJ169: 0 | AK169: 0 | AL169: 606 | AM169: 606 | AN169: 0 | AP169: 0 | AQ169: 0 | AR169: 606 | AS169: 606 | AT169: 0 | AV169: 0 | AW169: 0 | AX169: 606 | AY169: 606 | AZ169: 0 | BB169: 0 | BC169: 0 | BD169: 606 | BE169: 606 | BF169: 0 | BI169: 0 | BJ169: 0 | BK169: 606 | BL169: 606 | BM169: 0 | BR169: 0 | BS169: 0 | BT169: 606 | BU169: 606 | BV169: 0 | CA169: 0 | CB169: 0 | CC169: =VLOOKUP(C169,[1]TCD!$D:$E,2,0) -> 606 | CD169: 606 | CE169: 0 | CG169: 0 | CH169: 0 | CI169: 606 | CJ169: 606 | CK169: 0 | CM169: 0 | CN169: 0 | CO169: 606 | CP169: 606 | CQ169: 0 | CS169: 0 | CT169: 0 | CU169: 606 | CV169: 606 | CW169: 0
A170: Oui | B170: Snecma | C170: 21217CA3212 | D170: COUNTERSUNK HEAD-RIVET | E170: 200 | F170: 0 | G170: 0 | H170: 200 | I170: 200 | J170: 0 | L170: 0 | M170: 0 | N170: 200 | O170: 200 | P170: 0 | V170: 0 | W170: 0 | X170: 200 | Y170: 200 | Z170: 0 | AC170: 0 | AD170: 0 | AE170: 200 | AF170: 200 | AG170: 0 | AJ170: 0 | AK170: 0 | AL170: 200 | AM170: 200 | AN170: 0 | AP170: 0 | AQ170: 0 | AR170: 200 | AS170: 200 | AT170: 0 | AV170: 0 | AW170: 0 | AX170: 200 | AY170: 200 | AZ170: 0 | BB170: 0 | BC170: 0 | BD170: 200 | BE170: 200 | BF170: 0 | BI170: 0 | BJ170: 0 | BK170: 200 | BL170: 200 | BM170: 0 | BR170: 0 | BS170: 0 | BT170: 200 | BU170: 200 | BV170: 0 | CA170: 0 | CB170: 0 | CC170: =VLOOKUP(C170,[1]TCD!$D:$E,2,0) -> 200 | CD170: 200 | CE170: 0 | CG170: 0 | CH170: 0 | CI170: 200 | CJ170: 200 | CK170: 0 | CM170: 0 | CN170: 0 | CO170: 200 | CP170: 200 | CQ170: 0 | CS170: 0 | CT170: 0 | CU170: 200 | CV170: 200 | CW170: 0
A171: Oui | B171: Snecma | C171: 21217CA3610 | D171: COUNTERSUNK HEAD-RIVET | E171: 250 | F171: 0 | G171: 0 | H171: 250 | I171: 250 | J171: 0 | L171: 0 | M171: 0 | N171: 250 | O171: 250 | P171: 0 | V171: 0 | W171: 0 | X171: 250 | Y171: 250 | Z171: 0 | AC171: 0 | AD171: 0 | AE171: 250 | AF171: 250 | AG171: 0 | AJ171: 0 | AK171: 0 | AL171: 250 | AM171: 250 | AN171: 0 | AP171: 0 | AQ171: 0 | AR171: 250 | AS171: 250 | AT171: 0 | AV171: 0 | AW171: 0 | AX171: 250 | AY171: 250 | AZ171: 0 | BB171: 0 | BC171: 0 | BD171: 250 | BE171: 250 | BF171: 0 | BI171: 0 | BJ171: 0 | BK171: 250 | BL171: 250 | BM171: 0 | BR171: 0 | BS171: 0 | BT171: 250 | BU171: 250 | BV171: 0 | CA171: 0 | CB171: 0 | CC171: =VLOOKUP(C171,[1]TCD!$D:$E,2,0) -> 250 | CD171: 250 | CE171: 0 | CG171: 0 | CH171: 0 | CI171: 250 | CJ171: 250 | CK171: 0 | CM171: 0 | CN171: 0 | CO171: 250 | CP171: 250 | CQ171: 0 | CS171: 0 | CT171: 0 | CU171: 250 | CV171: 250 | CW171: 0
A172: Oui | B172: Snecma | C172: 21217TC3207 | D172: RIVET | E172: 500 | F172: 0 | G172: 0 | H172: 500 | I172: 500 | J172: 0 | L172: 0 | M172: 0 | N172: 500 | O172: 500 | P172: 0 | V172: 0 | W172: 0 | X172: 500 | Y172: 500 | Z172: 0 | AC172: 0 | AD172: 0 | AE172: 500 | AF172: 500 | AG172: 0 | AJ172: 0 | AK172: 0 | AL172: 500 | AM172: 500 | AN172: 0 | AP172: 0 | AQ172: 0 | AR172: 500 | AS172: 500 | AT172: 0 | AV172: 0 | AW172: 0 | AX172: 500 | AY172: 500 | AZ172: 0 | BB172: 0 | BC172: 0 | BD172: 500 | BE172: 500 | BF172: 0 | BI172: 0 | BJ172: 0 | BK172: 500 | BL172: 500 | BM172: 0 | BR172: 0 | BS172: 0 | BT172: 500 | BU172: 500 | BV172: 0 | CA172: 0 | CB172: 0 | CC172: =VLOOKUP(C172,[1]TCD!$D:$E,2,0) -> 500 | CD172: 500 | CE172: 0 | CG172: 0 | CH172: 0 | CI172: 500 | CJ172: 500 | CK172: 0 | CM172: 0 | CN172: 0 | CO172: 500 | CP172: 500 | CQ172: 0 | CS172: 0 | CT172: 0 | CU172: 500 | CV172: 500 | CW172: 0
A173: Oui | B173: Snecma | C173: 21217TC3208 | D173: RIVET | E173: 500 | F173: 0 | G173: 0 | H173: 500 | I173: 500 | J173: 0 | L173: 0 | M173: 0 | N173: 500 | O173: 500 | P173: 0 | V173: 0 | W173: 0 | X173: 500 | Y173: 500 | Z173: 0 | AC173: 0 | AD173: 0 | AE173: 500 | AF173: 500 | AG173: 0 | AJ173: 0 | AK173: 0 | AL173: 500 | AM173: 500 | AN173: 0 | AP173: 0 | AQ173: 0 | AR173: 500 | AS173: 500 | AT173: 0 | AV173: 0 | AW173: 0 | AX173: 500 | AY173: 500 | AZ173: 0 | BB173: 0 | BC173: 0 | BD173: 500 | BE173: 500 | BF173: 0 | BI173: 0 | BJ173: 0 | BK173: 500 | BL173: 500 | BM173: 0 | BR173: 0 | BS173: 0 | BT173: 500 | BU173: 500 | BV173: 0 | CA173: 0 | CB173: 0 | CC173: =VLOOKUP(C173,[1]TCD!$D:$E,2,0) -> 500 | CD173: 500 | CE173: 0 | CG173: 0 | CH173: 0 | CI173: 500 | CJ173: 500 | CK173: 0 | CM173: 0 | CN173: 0 | CO173: 500 | CP173: 500 | CQ173: 0 | CS173: 0 | CT173: 0 | CU173: 500 | CV173: 500 | CW173: 0
A174: Oui | B174: Snecma | C174: 21217TC3608 | D174: RIVET | E174: 400 | F174: 0 | G174: 0 | H174: 400 | I174: 400 | J174: 0 | L174: 0 | M174: 0 | N174: 400 | O174: 400 | P174: 0 | V174: 0 | W174: 0 | X174: 400 | Y174: 400 | Z174: 0 | AC174: 0 | AD174: 0 | AE174: 400 | AF174: 400 | AG174: 0 | AJ174: 0 | AK174: 0 | AL174: 400 | AM174: 400 | AN174: 0 | AP174: 0 | AQ174: 0 | AR174: 400 | AS174: 400 | AT174: 0 | AV174: 0 | AW174: 0 | AX174: 400 | AY174: 400 | AZ174: 0 | BB174: 0 | BC174: 0 | BD174: 400 | BE174: 400 | BF174: 0 | BI174: 0 | BJ174: 0 | BK174: 400 | BL174: 400 | BM174: 0 | BR174: 0 | BS174: 0 | BT174: 400 | BU174: 400 | BV174: 0 | CA174: 0 | CB174: 0 | CC174: =VLOOKUP(C174,[1]TCD!$D:$E,2,0) -> 400 | CD174: 400 | CE174: 0 | CG174: 0 | CH174: 0 | CI174: 400 | CJ174: 400 | CK174: 0 | CM174: 0 | CN174: 0 | CO174: 400 | CP174: 400 | CQ174: 0 | CS174: 0 | CT174: 0 | CU174: 400 | CV174: 400 | CW174: 0
A175: Oui | B175: Snecma | C175: 21217TC3609 | D175: RIVET | E175: 200 | F175: 0 | G175: 0 | H175: 200 | I175: 200 | J175: 0 | L175: 0 | M175: 0 | N175: 200 | O175: 200 | P175: 0 | V175: 0 | W175: 0 | X175: 200 | Y175: 200 | Z175: 0 | AC175: 0 | AD175: 0 | AE175: 200 | AF175: 200 | AG175: 0 | AJ175: 0 | AK175: 0 | AL175: 200 | AM175: 200 | AN175: 0 | AP175: 0 | AQ175: 0 | AR175: 200 | AS175: 200 | AT175: 0 | AV175: 0 | AW175: 0 | AX175: 200 | AY175: 200 | AZ175: 0 | BB175: 0 | BC175: 0 | BD175: 200 | BE175: 200 | BF175: 0 | BI175: 0 | BJ175: 0 | BK175: 200 | BL175: 200 | BM175: 0 | BR175: 0 | BS175: 0 | BT175: 200 | BU175: 200 | BV175: 0 | CA175: 0 | CB175: 0 | CC175: =VLOOKUP(C175,[1]TCD!$D:$E,2,0) -> 200 | CD175: 200 | CE175: 0 | CG175: 0 | CH175: 0 | CI175: 200 | CJ175: 200 | CK175: 0 | CM175: 0 | CN175: 0 | CO175: 200 | CP175: 200 | CQ175: 0 | CS175: 0 | CT175: 0 | CU175: 200 | CV175: 200 | CW175: 0
A176: Oui | B176: Snecma | C176: 21217TS3208 | E176: 238 | F176: 0 | G176: 0 | H176: 238 | I176: 238 | J176: 0 | L176: 0 | M176: 0 | N176: 238 | O176: 238 | P176: 0 | V176: 0 | W176: 0 | X176: 238 | Y176: 238 | Z176: 0 | AC176: 0 | AD176: 0 | AE176: 238 | AF176: 238 | AG176: 0 | AJ176: 0 | AK176: 0 | AL176: 238 | AM176: 238 | AN176: 0 | AP176: 0 | AQ176: 0 | AR176: 238 | AS176: 238 | AT176: 0 | AV176: 0 | AW176: 0 | AX176: 238 | AY176: 238 | AZ176: 0 | BB176: 0 | BC176: 0 | BD176: 238 | BE176: 238 | BF176: 0 | BI176: 0 | BJ176: 0 | BK176: 238 | BL176: 238 | BM176: 0 | BR176: 0 | BS176: 0 | BT176: 238 | BU176: 238 | BV176: 0 | CA176: 0 | CB176: 0 | CC176: =VLOOKUP(C176,[1]TCD!$D:$E,2,0) -> 238 | CD176: 238 | CE176: 0 | CG176: 0 | CH176: 0 | CI176: 238 | CJ176: 238 | CK176: 0 | CM176: 0 | CN176: 0 | CO176: 238 | CP176: 238 | CQ176: 0 | CS176: 0 | CT176: 0 | CU176: 238 | CV176: 238 | CW176: 0
A177: Oui | B177: Snecma | C177: 21217TS3209 | D177: RIVET, | E177: 1493 | F177: 0 | G177: 0 | H177: 1493 | I177: 1493 | J177: 0 | L177: 0 | M177: 0 | N177: 1493 | O177: 1493 | P177: 0 | V177: 0 | W177: 0 | X177: 1493 | Y177: 1493 | Z177: 0 | AC177: 0 | AD177: 0 | AE177: 1493 | AF177: 1493 | AG177: 0 | AJ177: 0 | AK177: 0 | AL177: 1493 | AM177: 1493 | AN177: 0 | AP177: 0 | AQ177: 0 | AR177: 1493 | AS177: 1493 | AT177: 0 | AV177: 0 | AW177: 0 | AX177: 1493 | AY177: 1493 | AZ177: 0 | BB177: 0 | BC177: 0 | BD177: 1493 | BE177: 1493 | BF177: 0 | BI177: 0 | BJ177: 0 | BK177: 1493 | BL177: 1493 | BM177: 0 | BR177: 0 | BS177: 0 | BT177: 1493 | BU177: 1493 | BV177: 0 | CA177: 0 | CB177: 0 | CC177: =VLOOKUP(C177,[1]TCD!$D:$E,2,0) -> 1493 | CD177: 1493 | CE177: 0 | CG177: 0 | CH177: 0 | CI177: 1493 | CJ177: 1493 | CK177: 0 | CM177: 0 | CN177: 0 | CO177: 1493 | CP177: 1493 | CQ177: 0 | CS177: 0 | CT177: 0 | CU177: 1493 | CV177: 1493 | CW177: 0
A178: Oui | B178: Snecma | C178: 21217TS3210 | D178: RIVET, SOLID | E178: 326 | F178: 0 | G178: 0 | H178: 326 | I178: 326 | J178: 0 | L178: 0 | M178: 0 | N178: 326 | O178: 326 | P178: 0 | V178: 0 | W178: 0 | X178: 326 | Y178: 326 | Z178: 0 | AC178: 0 | AD178: 326 | AE178: 0 | AF178: 0 | AG178: 0 | AJ178: 0 | AK178: 0 | AL178: 0 | AM178: 0 | AN178: 0 | AP178: 0 | AQ178: 0 | AR178: 0 | AS178: 0 | AT178: 0 | AV178: 0 | AW178: 0 | AX178: 0 | AY178: 0 | AZ178: 0 | BB178: 0 | BC178: 0 | BD178: 0 | BE178: 0 | BF178: 0 | BI178: 0 | BJ178: 0 | BK178: 0 | BL178: 0 | BM178: 0 | BR178: 100 | BS178: 0 | BT178: 100 | BU178: 100 | BV178: 0 | CA178: 0 | CB178: 0 | CC178: =VLOOKUP(C178,[1]TCD!$D:$E,2,0) -> 100 | CD178: 100 | CE178: 0 | CG178: 0 | CH178: 0 | CI178: 100 | CJ178: 100 | CK178: 0 | CM178: 0 | CN178: 0 | CO178: 100 | CP178: 100 | CQ178: 0 | CS178: 0 | CT178: 0 | CU178: 100 | CV178: 100 | CW178: 0
A179: Oui | B179: Snecma | C179: 21217TS3610 | D179: RIVET | E179: 250 | F179: 0 | G179: 0 | H179: 250 | I179: 250 | J179: 0 | L179: 0 | M179: 0 | N179: 250 | O179: 250 | P179: 0 | V179: 0 | W179: 0 | X179: 250 | Y179: 250 | Z179: 0 | AC179: 0 | AD179: 0 | AE179: 250 | AF179: 250 | AG179: 0 | AJ179: 0 | AK179: 0 | AL179: 250 | AM179: 250 | AN179: 0 | AP179: 0 | AQ179: 0 | AR179: 250 | AS179: 250 | AT179: 0 | AV179: 0 | AW179: 0 | AX179: 250 | AY179: 250 | AZ179: 0 | BB179: 0 | BC179: 0 | BD179: 250 | BE179: 250 | BF179: 0 | BI179: 0 | BJ179: 0 | BK179: 250 | BL179: 250 | BM179: 0 | BR179: 0 | BS179: 0 | BT179: 250 | BU179: 250 | BV179: 0 | CA179: 0 | CB179: 0 | CC179: =VLOOKUP(C179,[1]TCD!$D:$E,2,0) -> 250 | CD179: 250 | CE179: 0 | CG179: 0 | CH179: 0 | CI179: 250 | CJ179: 250 | CK179: 0 | CM179: 0 | CN179: 0 | CO179: 250 | CP179: 250 | CQ179: 0 | CS179: 0 | CT179: 0 | CU179: 250 | CV179: 250 | CW179: 0
A180: Oui | B180: Snecma | C180: 21217TS3611 | D180: RIVET | E180: 0 | F180: 0 | G180: 0 | H180: 0 | I180: 0 | J180: 0 | L180: 0 | M180: 0 | N180: 0 | O180: 0 | P180: 0 | V180: 0 | W180: 0 | X180: 0 | Y180: 0 | Z180: 0 | AC180: 0 | AD180: 0 | AE180: 0 | AF180: 0 | AG180: 0 | AJ180: 0 | AK180: 0 | AL180: 0 | AM180: 0 | AN180: 0 | AP180: 0 | AQ180: 0 | AR180: 0 | AS180: 0 | AT180: 0 | AV180: 0 | AW180: 0 | AX180: 0 | AY180: 0 | AZ180: 0 | BB180: 0 | BC180: 0 | BD180: 0 | BE180: 0 | BF180: 0 | BI180: 0 | BJ180: 0 | BK180: 0 | BL180: 0 | BM180: 0 | BS180: 0 | BT180: 0 | BU180: 0 | BV180: 0 | CA180: 0 | CB180: 0 | CC180: 0 | CD180: 0 | CE180: 0 | CG180: 0 | CH180: 0 | CI180: 0 | CJ180: 0 | CK180: 0 | CM180: 0 | CN180: 0 | CO180: 0 | CP180: 0 | CQ180: 0 | CS180: 0 | CT180: 0 | CU180: 0 | CV180: 0 | CW180: 0
A181: Oui | B181: Snecma | C181: 21826495-7 | D181: OBTURATEUR | E181: 0 | F181: 0 | G181: 0 | H181: 0 | I181: 0 | J181: 0 | L181: 0 | M181: 0 | N181: 0 | O181: 0 | P181: 0 | V181: 0 | W181: 0 | X181: 0 | Y181: 0 | Z181: 0 | AC181: 0 | AD181: 0 | AE181: 0 | AF181: 0 | AG181: 0 | AJ181: 0 | AK181: 0 | AL181: 0 | AM181: 0 | AN181: 0 | AP181: 0 | AQ181: 0 | AR181: 0 | AS181: 0 | AT181: 0 | AV181: 0 | AW181: 0 | AX181: 0 | AY181: 0 | AZ181: 0 | BB181: 0 | BC181: 0 | BD181: 0 | BE181: 0 | BF181: 0 | BI181: 0 | BJ181: 0 | BK181: 0 | BL181: 0 | BM181: 0 | BS181: 0 | BT181: 0 | BU181: 0 | BV181: 0 | CA181: 0 | CB181: 0 | CC181: 0 | CD181: 0 | CE181: 0 | CG181: 0 | CH181: 0 | CI181: 0 | CJ181: 0 | CK181: 0 | CM181: 0 | CN181: 0 | CO181: 0 | CP181: 0 | CQ181: 0 | CS181: 0 | CT181: 0 | CU181: 0 | CV181: 0 | CW181: 0
B182: Snecma | C182: 22126BC040010L | D182: VIS | E182: 417 | F182: 0 | G182: 0 | H182: 417 | I182: 417 | J182: 0 | L182: 0 | M182: 0 | N182: 417 | O182: 417 | P182: 0 | V182: 0 | W182: 0 | X182: 417 | Y182: 417 | Z182: 0 | AC182: 0 | AD182: 0 | AE182: 417 | AF182: 417 | AG182: 0 | AJ182: 0 | AK182: 0 | AL182: 417 | AM182: 417 | AN182: 0 | AP182: 0 | AQ182: 0 | AR182: 417 | AS182: 417 | AT182: 0 | AV182: 0 | AW182: 0 | AX182: 417 | AY182: 417 | AZ182: 0 | BB182: 0 | BC182: 0 | BD182: 417 | BE182: 417 | BF182: 0 | BI182: 0 | BJ182: 0 | BK182: 417 | BL182: 417 | BM182: 0 | BR182: 12 | BS182: 0 | BT182: 429 | BU182: 429 | BV182: 0 | CA182: 0 | CB182: 0 | CC182: =VLOOKUP(C182,[1]TCD!$D:$E,2,0) -> 429 | CD182: 429 | CE182: 0 | CG182: 0 | CH182: 0 | CI182: 429 | CJ182: 429 | CK182: 0 | CM182: 0 | CN182: 0 | CO182: 429 | CP182: 429 | CQ182: 0 | CS182: 0 | CT182: 0 | CU182: 429 | CV182: 429 | CW182: 0
A183: Oui | B183: Snecma | C183: 22220TK060020X | D183: VIS | E183: 352 | F183: 0 | G183: 0 | H183: 352 | I183: 352 | J183: 0 | L183: 0 | M183: 0 | N183: 352 | O183: 352 | P183: 0 | V183: 0 | W183: 0 | X183: 352 | Y183: 352 | Z183: 0 | AC183: 0 | AD183: 0 | AE183: 352 | AF183: 352 | AG183: 0 | AJ183: 0 | AK183: 0 | AL183: 352 | AM183: 352 | AN183: 0 | AP183: 0 | AQ183: 0 | AR183: 352 | AS183: 352 | AT183: 0 | AV183: 0 | AW183: 0 | AX183: 352 | AY183: 352 | AZ183: 0 | BB183: 0 | BC183: 0 | BD183: 352 | BE183: 352 | BF183: 0 | BI183: 0 | BJ183: 1 | BK183: 351 | BL183: 351 | BM183: 0 | BR183: 0 | BS183: 0 | BT183: 351 | BU183: 351 | BV183: 0 | CA183: 0 | CB183: 0 | CC183: =VLOOKUP(C183,[1]TCD!$D:$E,2,0) -> 351 | CD183: 351 | CE183: 0 | CG183: 0 | CH183: 0 | CI183: 351 | CJ183: 351 | CK183: 0 | CM183: 0 | CN183: 0 | CO183: 351 | CP183: 351 | CQ183: 0 | CS183: 0 | CT183: 0 | CU183: 351 | CV183: 351 | CW183: 0
A184: Oui | B184: Snecma | C184: 22224CF030008E | D184: BOLT, CHEESE HEAD | E184: 671 | F184: 0 | G184: 0 | H184: 671 | I184: 671 | J184: 0 | L184: 0 | M184: 0 | N184: 671 | O184: 671 | P184: 0 | V184: 0 | W184: 0 | X184: 671 | Y184: 671 | Z184: 0 | AC184: 0 | AD184: 0 | AE184: 671 | AF184: 671 | AG184: 0 | AJ184: 0 | AK184: 0 | AL184: 671 | AM184: 671 | AN184: 0 | AP184: 0 | AQ184: 0 | AR184: 671 | AS184: 671 | AT184: 0 | AV184: 0 | AW184: 2 | AX184: 669 | AY184: 669 | AZ184: 0 | BB184: 0 | BC184: 0 | BD184: 669 | BE184: 669 | BF184: 0 | BI184: 0 | BJ184: 0 | BK184: 669 | BL184: 669 | BM184: 0 | BR184: 8 | BS184: 0 | BT184: 677 | BU184: 677 | BV184: 0 | CA184: 0 | CB184: 4 | CC184: =VLOOKUP(C184,[1]TCD!$D:$E,2,0) -> 673 | CD184: 673 | CE184: 0 | CG184: 0 | CH184: 0 | CI184: 673 | CJ184: 673 | CK184: 0 | CM184: 0 | CN184: 0 | CO184: 673 | CP184: 673 | CQ184: 0 | CS184: 0 | CT184: 0 | CU184: 673 | CV184: 673 | CW184: 0
A185: Oui | B185: Snecma | C185: 22259BC040010 | D185: VIS | E185: 748 | F185: 0 | G185: 0 | H185: 748 | I185: 748 | J185: 0 | L185: 0 | M185: 0 | N185: 748 | O185: 748 | P185: 0 | V185: 0 | W185: 0 | X185: 748 | Y185: 748 | Z185: 0 | AC185: 0 | AD185: 0 | AE185: 748 | AF185: 748 | AG185: 0 | AJ185: 0 | AK185: 0 | AL185: 748 | AM185: 748 | AN185: 0 | AP185: 0 | AQ185: 0 | AR185: 748 | AS185: 748 | AT185: 0 | AV185: 0 | AW185: 6 | AX185: 742 | AY185: 742 | AZ185: 0 | BB185: 0 | BC185: 6 | BD185: 736 | BE185: 736 | BF185: 0 | BI185: 0 | BJ185: 6 | BK185: 730 | BL185: 730 | BM185: 0 | BR185: 4 | BS185: 0 | BT185: 734 | BU185: 734 | BV185: 0 | CA185: 0 | CB185: 0 | CC185: =VLOOKUP(C185,[1]TCD!$D:$E,2,0) -> 734 | CD185: 734 | CE185: 0 | CG185: 0 | CH185: 6 | CI185: 728 | CJ185: 728 | CK185: 0 | CM185: 0 | CN185: 0 | CO185: 728 | CP185: 728 | CQ185: 0 | CS185: 0 | CT185: 0 | CU185: 728 | CV185: 728 | CW185: 0
A186: Oui | B186: Snecma | C186: 22259BC040012 | D186: VIS | E186: 407 | F186: 0 | G186: 0 | H186: 407 | I186: 407 | J186: 0 | L186: 0 | M186: 0 | N186: 407 | O186: 407 | P186: 0 | V186: 0 | W186: 0 | X186: 407 | Y186: 407 | Z186: 0 | AC186: 0 | AD186: 0 | AE186: 407 | AF186: 407 | AG186: 0 | AJ186: 0 | AK186: 0 | AL186: 407 | AM186: 407 | AN186: 0 | AP186: 0 | AQ186: 0 | AR186: 407 | AS186: 407 | AT186: 0 | AV186: 0 | AW186: 8 | AX186: 399 | AY186: 399 | AZ186: 0 | BB186: 0 | BC186: 8 | BD186: 391 | BE186: 391 | BF186: 0 | BI186: 0 | BJ186: 8 | BK186: 383 | BL186: 383 | BM186: 0 | BR186: 10 | BS186: 0 | BT186: 393 | BU186: 393 | BV186: 0 | CA186: 0 | CB186: 0 | CC186: =VLOOKUP(C186,[1]TCD!$D:$E,2,0) -> 393 | CD186: 393 | CE186: 0 | CG186: 0 | CH186: 8 | CI186: 385 | CJ186: 385 | CK186: 0 | CM186: 0 | CN186: 0 | CO186: 385 | CP186: 385 | CQ186: 0 | CS186: 0 | CT186: 0 | CU186: 385 | CV186: 385 | CW186: 0
A187: Oui | B187: Snecma | C187: 22259BC050012 | D187: VIS | E187: 76 | F187: 0 | G187: 0 | H187: 76 | I187: 76 | J187: 0 | L187: 0 | M187: 0 | N187: 76 | O187: 76 | P187: 0 | V187: 0 | W187: 0 | X187: 76 | Y187: 76 | Z187: 0 | AC187: 0 | AD187: 0 | AE187: 76 | AF187: 76 | AG187: 0 | AJ187: 0 | AK187: 0 | AL187: 76 | AM187: 76 | AN187: 0 | AP187: 0 | AQ187: 0 | AR187: 76 | AS187: 76 | AT187: 0 | AV187: 0 | AW187: 4 | AX187: 72 | AY187: 72 | AZ187: 0 | BB187: 0 | BC187: 1 | BD187: 71 | BE187: 71 | BF187: 0 | BI187: 0 | BJ187: 0 | BK187: 71 | BL187: 71 | BM187: 0 | BR187: 13 | BS187: 0 | BT187: 84 | BU187: 84 | BV187: 0 | CA187: 0 | CB187: 0 | CC187: =VLOOKUP(C187,[1]TCD!$D:$E,2,0) -> 84 | CD187: 84 | CE187: 0 | CG187: 0 | CH187: 0 | CI187: 84 | CJ187: 84 | CK187: 0 | CM187: 0 | CN187: 0 | CO187: 84 | CP187: 84 | CQ187: 0 | CS187: 0 | CT187: 0 | CU187: 84 | CV187: 84 | CW187: 0
A188: Oui | B188: Snecma | C188: 22259TK060020X | D188: VIS | E188: 324 | F188: 0 | G188: 0 | H188: 324 | I188: 324 | J188: 0 | L188: 0 | M188: 0 | N188: 324 | O188: 324 | P188: 0 | V188: 0 | W188: 0 | X188: 324 | Y188: 324 | Z188: 0 | AC188: 0 | AD188: 0 | AE188: 324 | AF188: 324 | AG188: 0 | AJ188: 0 | AK188: 0 | AL188: 324 | AM188: 324 | AN188: 0 | AP188: 0 | AQ188: 0 | AR188: 324 | AS188: 324 | AT188: 0 | AV188: 0 | AW188: 0 | AX188: 324 | AY188: 324 | AZ188: 0 | BB188: 0 | BC188: 0 | BD188: 324 | BE188: 324 | BF188: 0 | BI188: 0 | BJ188: 0 | BK188: 324 | BL188: 324 | BM188: 0 | BR188: 2 | BS188: 0 | BT188: 326 | BU188: 326 | BV188: 0 | CA188: 0 | CB188: 0 | CC188: =VLOOKUP(C188,[1]TCD!$D:$E,2,0) -> 326 | CD188: 326 | CE188: 0 | CG188: 0 | CH188: 0 | CI188: 326 | CJ188: 326 | CK188: 0 | CM188: 0 | CN188: 0 | CO188: 326 | CP188: 326 | CQ188: 0 | CS188: 0 | CT188: 0 | CU188: 326 | CV188: 326 | CW188: 0
A189: Oui | B189: Snecma | C189: 22291CA030006 | D189: VIS F/90 M3X6 | E189: 174 | F189: 0 | G189: 0 | H189: 174 | I189: 174 | J189: 0 | L189: 0 | M189: 0 | N189: 174 | O189: 174 | P189: 0 | V189: 0 | W189: 0 | X189: 174 | Y189: 174 | Z189: 0 | AC189: 0 | AD189: 0 | AE189: 174 | AF189: 174 | AG189: 0 | AJ189: 0 | AK189: 0 | AL189: 174 | AM189: 174 | AN189: 0 | AP189: 0 | AQ189: 0 | AR189: 174 | AS189: 174 | AT189: 0 | AV189: 0 | AW189: 0 | AX189: 174 | AY189: 174 | AZ189: 0 | BB189: 0 | BC189: 0 | BD189: 174 | BE189: 174 | BF189: 0 | BI189: 0 | BJ189: 0 | BK189: 174 | BL189: 174 | BM189: 0 | BR189: 2 | BS189: 0 | BT189: 176 | BU189: 176 | BV189: 0 | CA189: 0 | CB189: 0 | CC189: =VLOOKUP(C189,[1]TCD!$D:$E,2,0) -> 176 | CD189: 176 | CE189: 0 | CG189: 0 | CH189: 0 | CI189: 176 | CJ189: 176 | CK189: 0 | CM189: 0 | CN189: 0 | CO189: 176 | CP189: 176 | CQ189: 0 | CS189: 0 | CT189: 0 | CU189: 176 | CV189: 176 | CW189: 0
A190: Oui | B190: Snecma | C190: 222K132-25 | E190: 145 | F190: 0 | G190: 0 | H190: 145 | I190: 145 | J190: 0 | L190: 0 | M190: 0 | N190: 145 | O190: 145 | P190: 0 | V190: 0 | W190: 0 | X190: 145 | Y190: 145 | Z190: 0 | AC190: 0 | AD190: 0 | AE190: 145 | AF190: 145 | AG190: 0 | AJ190: 0 | AK190: 0 | AL190: 145 | AM190: 145 | AN190: 0 | AP190: 0 | AQ190: 0 | AR190: 145 | AS190: 145 | AT190: 0 | AV190: 0 | AW190: 0 | AX190: 145 | AY190: 145 | AZ190: 0 | BB190: 0 | BC190: 0 | BD190: 145 | BE190: 145 | BF190: 0 | BI190: 0 | BJ190: 0 | BK190: 145 | BL190: 145 | BM190: 0 | BR190: 0 | BS190: 0 | BT190: 145 | BU190: 145 | BV190: 0 | CA190: 0 | CB190: 0 | CC190: =VLOOKUP(C190,[1]TCD!$D:$E,2,0) -> 145 | CD190: 145 | CE190: 0 | CG190: 0 | CH190: 0 | CI190: 145 | CJ190: 145 | CK190: 0 | CM190: 0 | CN190: 0 | CO190: 145 | CP190: 145 | CQ190: 0 | CS190: 0 | CT190: 0 | CU190: 145 | CV190: 145 | CW190: 0
A191: Oui | B191: Snecma | C191: 222K142-25 | E191: 116 | F191: 0 | G191: 0 | H191: 116 | I191: 116 | J191: 0 | L191: 0 | M191: 0 | N191: 116 | O191: 116 | P191: 0 | V191: 0 | W191: 0 | X191: 116 | Y191: 116 | Z191: 0 | AC191: 0 | AD191: 0 | AE191: 116 | AF191: 116 | AG191: 0 | AJ191: 0 | AK191: 0 | AL191: 116 | AM191: 116 | AN191: 0 | AP191: 0 | AQ191: 0 | AR191: 116 | AS191: 116 | AT191: 0 | AV191: 0 | AW191: 0 | AX191: 116 | AY191: 116 | AZ191: 0 | BB191: 0 | BC191: 0 | BD191: 116 | BE191: 116 | BF191: 0 | BI191: 0 | BJ191: 0 | BK191: 116 | BL191: 116 | BM191: 0 | BR191: 0 | BS191: 0 | BT191: 116 | BU191: 116 | BV191: 0 | CA191: 0 | CB191: 0 | CC191: =VLOOKUP(C191,[1]TCD!$D:$E,2,0) -> 116 | CD191: 116 | CE191: 0 | CG191: 0 | CH191: 0 | CI191: 116 | CJ191: 116 | CK191: 0 | CM191: 0 | CN191: 0 | CO191: 116 | CP191: 116 | CQ191: 0 | CS191: 0 | CT191: 0 | CU191: 116 | CV191: 116 | CW191: 0
A192: Oui | B192: Snecma | C192: 222K152-25G13 | D192: EMBOUT THERMORETRACTABLE COUDE | E192: 150 | F192: 0 | G192: 0 | H192: 150 | I192: 150 | J192: 0 | L192: 0 | M192: 0 | N192: 150 | O192: 150 | P192: 0 | V192: 0 | W192: 0 | X192: 150 | Y192: 150 | Z192: 0 | AC192: 0 | AD192: 0 | AE192: 150 | AF192: 150 | AG192: 0 | AJ192: 0 | AK192: 0 | AL192: 150 | AM192: 150 | AN192: 0 | AP192: 0 | AQ192: 0 | AR192: 150 | AS192: 150 | AT192: 0 | AV192: 0 | AW192: 0 | AX192: 150 | AY192: 150 | AZ192: 0 | BB192: 0 | BC192: 0 | BD192: 150 | BE192: 150 | BF192: 0 | BI192: 0 | BJ192: 0 | BK192: 150 | BL192: 150 | BM192: 0 | BR192: 0 | BS192: 0 | BT192: 150 | BU192: 150 | BV192: 0 | CA192: 0 | CB192: 0 | CC192: =VLOOKUP(C192,[1]TCD!$D:$E,2,0) -> 150 | CD192: 150 | CE192: 0 | CG192: 0 | CH192: 0 | CI192: 150 | CJ192: 150 | CK192: 0 | CM192: 0 | CN192: 0 | CO192: 150 | CP192: 150 | CQ192: 0 | CS192: 0 | CT192: 0 | CU192: 150 | CV192: 150 | CW192: 0
A193: Oui | B193: Snecma | C193: 222K163-25 | D193: SLEEVE HEAT SHRINKABLE | E193: 190 | F193: 0 | G193: 0 | H193: 190 | I193: 190 | J193: 0 | L193: 0 | M193: 0 | N193: 190 | O193: 190 | P193: 0 | V193: 0 | W193: 0 | X193: 190 | Y193: 190 | Z193: 0 | AC193: 0 | AD193: 0 | AE193: 190 | AF193: 190 | AG193: 0 | AJ193: 0 | AK193: 0 | AL193: 190 | AM193: 190 | AN193: 0 | AP193: 0 | AQ193: 0 | AR193: 190 | AS193: 190 | AT193: 0 | AV193: 0 | AW193: 0 | AX193: 190 | AY193: 190 | AZ193: 0 | BB193: 0 | BC193: 0 | BD193: 190 | BE193: 190 | BF193: 0 | BI193: 0 | BJ193: 0 | BK193: 190 | BL193: 190 | BM193: 0 | BR193: 0 | BS193: 0 | BT193: 190 | BU193: 190 | BV193: 0 | CA193: 0 | CB193: 0 | CC193: =VLOOKUP(C193,[1]TCD!$D:$E,2,0) -> 190 | CD193: 190 | CE193: 0 | CG193: 0 | CH193: 0 | CI193: 190 | CJ193: 190 | CK193: 0 | CM193: 0 | CN193: 0 | CO193: 190 | CP193: 190 | CQ193: 0 | CS193: 0 | CT193: 0 | CU193: 190 | CV193: 190 | CW193: 0
A194: Oui | B194: AIA | C194: 222K163-25-0 | E194: 37 | F194: 0 | G194: 0 | H194: 37 | I194: 37 | J194: 0 | L194: 0 | M194: 0 | N194: 37 | O194: 37 | P194: 0 | V194: 0 | W194: 0 | X194: 37 | Y194: 37 | Z194: 0 | AC194: 0 | AD194: 0 | AE194: 37 | AF194: 37 | AG194: 0 | AJ194: 0 | AK194: 0 | AL194: 37 | AM194: 37 | AN194: 0 | AP194: 0 | AQ194: 0 | AR194: 37 | AS194: 37 | AT194: 0 | AV194: 0 | AW194: 0 | AX194: 37 | AY194: 37 | AZ194: 0 | BB194: 0 | BC194: 0 | BD194: 37 | BE194: 37 | BF194: 0 | BI194: 0 | BJ194: 0 | BK194: 37 | BL194: 37 | BM194: 0 | BR194: 0 | BS194: 0 | BT194: 37 | BU194: 37 | BV194: 0 | CA194: 0 | CB194: 0 | CC194: =VLOOKUP(C194,[1]TCD!$D:$E,2,0) -> 37 | CD194: 37 | CE194: 0 | CG194: 0 | CH194: 0 | CI194: 37 | CJ194: 37 | CK194: 0 | CM194: 0 | CN194: 0 | CO194: 37 | CP194: 37 | CQ194: 0 | CS194: 0 | CT194: 0 | CU194: 37 | CV194: 37 | CW194: 0
A195: Oui | B195: Snecma | C195: 23111CA030 | D195: WASHER , FLAT | E195: 584 | F195: 0 | G195: 0 | H195: 584 | I195: 584 | J195: 0 | L195: 0 | M195: 0 | N195: 584 | O195: 584 | P195: 0 | V195: 0 | W195: 0 | X195: 584 | Y195: 584 | Z195: 0 | AC195: 0 | AD195: 0 | AE195: 584 | AF195: 584 | AG195: 0 | AJ195: 0 | AK195: 0 | AL195: 584 | AM195: 584 | AN195: 0 | AP195: 0 | AQ195: 0 | AR195: 584 | AS195: 584 | AT195: 0 | AV195: 0 | AW195: 0 | AX195: 584 | AY195: 584 | AZ195: 0 | BB195: 0 | BC195: 0 | BD195: 584 | BE195: 584 | BF195: 0 | BI195: 0 | BJ195: 0 | BK195: 584 | BL195: 584 | BM195: 0 | BR195: 0 | BS195: 0 | BT195: 584 | BU195: 584 | BV195: 0 | CA195: 0 | CB195: 0 | CC195: =VLOOKUP(C195,[1]TCD!$D:$E,2,0) -> 584 | CD195: 584 | CE195: 0 | CG195: 0 | CH195: 0 | CI195: 584 | CJ195: 584 | CK195: 0 | CM195: 0 | CN195: 0 | CO195: 584 | CP195: 584 | CQ195: 0 | CS195: 0 | CT195: 0 | CU195: 584 | CV195: 584 | CW195: 0
A196: Oui | B196: Snecma | C196: 23111CA040 | D196: RONDELLE PLATE | E196: 205 | F196: 0 | G196: 0 | H196: 205 | I196: 205 | J196: 0 | L196: 0 | M196: 0 | N196: 205 | O196: 205 | P196: 0 | V196: 0 | W196: 0 | X196: 205 | Y196: 205 | Z196: 0 | AC196: 0 | AD196: 0 | AE196: 205 | AF196: 205 | AG196: 0 | AJ196: 0 | AK196: 0 | AL196: 205 | AM196: 205 | AN196: 0 | AP196: 0 | AQ196: 0 | AR196: 205 | AS196: 205 | AT196: 0 | AV196: 0 | AW196: 0 | AX196: 205 | AY196: 205 | AZ196: 0 | BB196: 0 | BC196: 16 | BD196: 189 | BE196: 189 | BF196: 0 | BI196: 0 | BJ196: 0 | BK196: 189 | BL196: 189 | BM196: 0 | BR196: 0 | BS196: 0 | BT196: 189 | BU196: 189 | BV196: 0 | CA196: 0 | CB196: 0 | CC196: =VLOOKUP(C196,[1]TCD!$D:$E,2,0) -> 189 | CD196: 189 | CE196: 0 | CG196: 0 | CH196: 0 | CI196: 189 | CJ196: 189 | CK196: 0 | CM196: 0 | CN196: 0 | CO196: 189 | CP196: 189 | CQ196: 0 | CS196: 0 | CT196: 0 | CU196: 189 | CV196: 189 | CW196: 0
A197: Oui | B197: Snecma | C197: 23112CA050 | D197: WASHER | E197: 214 | F197: 0 | G197: 0 | H197: 214 | I197: 214 | J197: 0 | L197: 0 | M197: 0 | N197: 214 | O197: 214 | P197: 0 | V197: 0 | W197: 0 | X197: 214 | Y197: 214 | Z197: 0 | AC197: 0 | AD197: 0 | AE197: 214 | AF197: 214 | AG197: 0 | AJ197: 0 | AK197: 0 | AL197: 214 | AM197: 214 | AN197: 0 | AP197: 0 | AQ197: 0 | AR197: 214 | AS197: 214 | AT197: 0 | AV197: 0 | AW197: 0 | AX197: 214 | AY197: 214 | AZ197: 0 | BB197: 0 | BC197: 0 | BD197: 214 | BE197: 214 | BF197: 0 | BI197: 0 | BJ197: 0 | BK197: 214 | BL197: 214 | BM197: 0 | BR197: 0 | BS197: 0 | BT197: 214 | BU197: 214 | BV197: 0 | CA197: 0 | CB197: 0 | CC197: =VLOOKUP(C197,[1]TCD!$D:$E,2,0) -> 214 | CD197: =BT197+CA197-CB197 -> 214 | CE197: =CC197-CD197 -> 0 | CG197: 0 | CH197: 0 | CI197: 214 | CJ197: =CC197+CG197-CH197 -> 214 | CK197: =CI197-CJ197 -> 0 | CM197: 0 | CN197: 0 | CO197: 214 | CP197: =CI197+CM197-CN197 -> 214 | CQ197: =CO197-CP197 -> 0 | CS197: 0 | CT197: 0 | CU197: 214 | CV197: =CO197+CS197-CT197 -> 214 | CW197: =CU197-CV197 -> 0
A198: Oui | B198: Snecma | C198: 23112CA070 | D198: WASHER | E198: 261 | F198: 0 | G198: 0 | H198: 261 | I198: 261 | J198: 0 | L198: 0 | M198: 0 | N198: 261 | O198: 261 | P198: 0 | V198: 0 | W198: 0 | X198: 261 | Y198: 261 | Z198: 0 | AC198: 0 | AD198: 0 | AE198: 261 | AF198: 261 | AG198: 0 | AJ198: 0 | AK198: 0 | AL198: 261 | AM198: 261 | AN198: 0 | AP198: 0 | AQ198: 0 | AR198: 261 | AS198: 261 | AT198: 0 | AV198: 0 | AW198: 0 | AX198: 261 | AY198: 261 | AZ198: 0 | BB198: 0 | BC198: 0 | BD198: 261 | BE198: 261 | BF198: 0 | BI198: 0 | BJ198: 0 | BK198: 261 | BL198: 261 | BM198: 0 | BR198: 0 | BS198: 0 | BT198: 261 | BU198: 261 | BV198: 0 | CA198: 0 | CB198: 0 | CC198: =VLOOKUP(C198,[1]TCD!$D:$E,2,0) -> 261 | CD198: 261 | CE198: 0 | CG198: 0 | CH198: 0 | CI198: 261 | CJ198: 261 | CK198: 0 | CM198: 0 | CN198: 0 | CO198: 261 | CP198: 261 | CQ198: 0 | CS198: 0 | CT198: 0 | CU198: 261 | CV198: 261 | CW198: 0
A199: Oui | B199: Snecma | C199: 23310CA010010 | D199: SPLIT PIN | E199: 2859 | F199: 0 | G199: 0 | H199: 2859 | I199: 2859 | J199: 0 | L199: 0 | M199: 1 | N199: 2858 | O199: 2858 | P199: 0 | V199: 0 | W199: 0 | X199: 2858 | Y199: 2858 | Z199: 0 | AC199: 0 | AD199: 2 | AE199: 2856 | AF199: 2856 | AG199: 0 | AJ199: 0 | AK199: 0 | AL199: 2856 | AM199: 2856 | AN199: 0 | AP199: 0 | AQ199: 0 | AR199: 2856 | AS199: 2856 | AT199: 0 | AV199: 0 | AW199: 0 | AX199: 2856 | AY199: 2856 | AZ199: 0 | BB199: 0 | BC199: 0 | BD199: 2856 | BE199: 2856 | BF199: 0 | BI199: 0 | BJ199: 1 | BK199: 2855 | BL199: 2855 | BM199: 0 | BR199: 3 | BS199: 1 | BT199: 2857 | BU199: 2857 | BV199: 0 | CA199: 0 | CB199: 2 | CC199: =VLOOKUP(C199,[1]TCD!$D:$E,2,0) -> 2855 | CD199: 2855 | CE199: 0 | CG199: 0 | CH199: 0 | CI199: 2855 | CJ199: 2855 | CK199: 0 | CM199: 0 | CN199: 1 | CO199: 2854 | CP199: 2854 | CQ199: 0 | CS199: 0 | CT199: 1 | CU199: 2853 | CV199: 2853 | CW199: 0
A200: Oui | B200: Snecma | C200: 243D022-25G04 | D200: SLEEVE,HEAT SHRINKABLE | E200: 50 | F200: 0 | G200: 0 | H200: 50 | I200: 50 | J200: 0 | L200: 0 | M200: 0 | N200: 50 | O200: 50 | P200: 0 | V200: 0 | W200: 0 | X200: 50 | Y200: 50 | Z200: 0 | AC200: 0 | AD200: 0 | AE200: 50 | AF200: 50 | AG200: 0 | AJ200: 0 | AK200: 0 | AL200: 50 | AM200: 50 | AN200: 0 | AP200: 0 | AQ200: 0 | AR200: 50 | AS200: 50 | AT200: 0 | AV200: 0 | AW200: 0 | AX200: 50 | AY200: 50 | AZ200: 0 | BB200: 0 | BC200: 0 | BD200: 50 | BE200: 50 | BF200: 0 | BI200: 0 | BJ200: 0 | BK200: 50 | BL200: 50 | BM200: 0 | BR200: 0 | BS200: 0 | BT200: 50 | BU200: 50 | BV200: 0 | CA200: 0 | CB200: 0 | CC200: =VLOOKUP(C200,[1]TCD!$D:$E,2,0) -> 50 | CD200: 50 | CE200: 0 | CG200: 0 | CH200: 0 | CI200: 50 | CJ200: 50 | CK200: 0 | CM200: 0 | CN200: 0 | CO200: 50 | CP200: 50 | CQ200: 0 | CS200: 0 | CT200: 0 | CU200: 50 | CV200: 50 | CW200: 0
... 362 more rows

Sheet Indicateurs
A1: Extractions Brutes | B1: Sem 41 | C1: Sem 42 | D1: Sem 43 | E1: Sem 44 | F1: Sem 45 | G1: Sem 46 | H1: Sem 47 | I1: Sem 48 | J1: Sem 49 | K1: Sem 50 | L1: Sem 51
A2: Qté de réf suivies | B2: 2750 | C2: 2750 | D2: 2750 | E2: 2750 | F2: 2750 | G2: 2750 | H2: 2750 | I2: 2752 | J2: 2750 | K2: 2755 | L2: 2755
A3: Qté de ref déclarées en stock (<>0) | B3: 2,207 | C3: 2,218 | D3: 2201 | E3: 2206 | F3: 2204 | G3: 2193 | H3: 2204 | I3: 2215 | J3: 2216 | K3: 2221
A4: Qté de pièces en stock | B4: 529,480 | C4: 532,162 | D4: 525478 | E4: 524536 | F4: 519017 | G4: 519301 | H4: 531492 | I4: 552890 | J4: 560774 | K4: 558327
A5: Qté ref cohérent (Stock Final = S Initial+entrées-sorties) | B5: 2,622 | C5: 2,600 | D5: 2657 | E5: 2739 | F5: 2749 | G5: 2748 | H5: 2748 | I5: 2736 | J5: 2723 | K5: 2747
A6: Qté pièces cohérentes (Stock Final = S Initial+entrées-sorties) | B6: 385,706 | C6: 464,380 | D6: 495,900 | E6: 523349 | F6: 519008 | G6: 517592 | H6: 530194 | I6: 538029 | J6: 530398 | K6: 557730
A7: Qté ref incohérent (Stock Final = S Initial+entrées-sorties) | B7: 141 | C7: 146 | D7: 93 | E7: 10 | F7: 1 | G7: 2 | H7: 2 | I7: 16 | J7: 29 | K7: 8
A8: Qté pièces incohérent (Stock Final = S Initial+entrées-sorties) | B8: =B10+B12 -> 61266 | C8: 6722 | D8: 2661 | E8: 138 | F8: 20 | G8: 65 | H8: 57 | I8: 367 | J8: =J10+J12 -> 297 | K8: =K10+K12 -> 355 | L8: =L10+L12 -> 0
A9: Dont stock trop important Ref | B9: 82 | C9: 100 | D9: 48 | E9: 6 | F9: 1 | G9: 0 | H9: 0 | I9: 12 | J9: 13 | K9: 5
A10: Dont stock trop important Qté | B10: 60,889 | C10: 6,036 | D10: 631 | E10: 123 | F10: 20 | G10: 0 | H10: 0 | I10: 312 | J10: 89 | K10: 319
A11: Dont stock pas assez important Ref | B11: 59 | C11: 46 | D11: 45 | E11: 5 | F11: 0 | G11: 2 | H11: 2 | I11: 4 | J11: 16 | K11: 3
A12: Dont stock pas assez important Qté | B12: 377 | C12: 686 | D12: 2030 | E12: 15 | F12: 0 | G12: 65 | H12: 57 | I12: 55 | J12: 208 | K12: 36
A36: Extractions Net (Pble système Saphir) | B36: Sem 49 | C36: Sem 50 | D36: Sem 51
A37: Qté de réf suivies | B37: 2750 | C37: 2750 | D37: 2750
A38: Qté de ref déclarées en stock (<>0) | B38: 2216
A39: Qté de pièces en stock | B39: 560774
A40: Qté ref cohérent (Stock Final = S Initial+entrées-sorties) | B40: 2723
A41: Qté pièces cohérentes (Stock Final = S Initial+entrées-sorties) | B41: 530398
A42: Qté ref incohérent (Stock Final = S Initial+entrées-sorties) | B42: 3
A43: Qté pièces incohérent (Stock Final = S Initial+entrées-sorties) | B43: 56
A44: Dont stock trop important Ref | B44: 0
A45: Dont stock trop important Qté | B45: 0
A46: Dont stock pas assez important Ref | B46: 3
A47: Dont stock pas assez important Qté | B47: 56

Sheet Analyse S
B1: =SUM(B4:B2758) -> 6933 | C1: =SUM(C4:C2758) -> 4636 | D1: =SUM(D4:D2758) -> 556317
B2: 6933 | C2: 4636 | D2: 556317
A3: Ref Fab (PNR) | B3: Entrées S2 | C3: Sorties S2 | D3: Stock fin S2 | E3: Stock S1 + E S2- S S2 | F3: Ecarts Données stock AIA et données trouvées | G3: Remarques SN | H3: Remarques AIA | I3: Point AIA/SN | J3: Conclusion ecarts | K3: Stocks fin S01
A4: 06003 | B4: 0 | C4: 0 | D4: 114 | E4: =(K4+B4)-C4 -> 114 | F4: =D4-E4 -> 0 | K4: 114
A5: 25907 | B5: 0 | C5: 0 | D5: 66 | E5: =(K5+B5)-C5 -> 66 | F5: =D5-E5 -> 0 | K5: 66
A6: 70206 | B6: 0 | C6: 0 | D6: 161 | E6: 161 | F6: 0 | K6: 161
A7: 70515 | B7: 0 | C7: 0 | D7: 1 | E7: 1 | F7: 0 | K7: 1
A8: 602991 | B8: 0 | C8: 2 | D8: 24 | E8: 24 | F8: 0 | K8: 26
A9: 2000081 | B9: 0 | C9: 0 | D9: 3310 | E9: 3310 | F9: 0 | K9: 3310
A10: 2010065 | B10: 0 | C10: 0 | D10: 304 | E10: 304 | F10: 0 | K10: 304
A11: 3153008 | B11: 0 | C11: 0 | D11: 509 | E11: 509 | F11: 0 | K11: 509
A12: 7290107 | B12: 0 | C12: 0 | D12: 0 | E12: 0 | F12: 0 | K12: 0
A13: 7440905 | B13: 0 | C13: 0 | D13: 63 | E13: 63 | F13: 0 | K13: 63
A14: 8607570 | B14: 0 | C14: 0 | D14: 0 | E14: 0 | F14: 0 | K14: 0
A15: 37189001 | B15: 0 | C15: 0 | D15: 72 | E15: 72 | F15: 0 | K15: 72
A16: 37199001 | B16: 0 | C16: 0 | D16: 20 | E16: 20 | F16: 0 | K16: 20
A17: 01320040008 | B17: 0 | C17: 0 | D17: 5297 | E17: 5297 | F17: 0 | K17: 5297
A18: 01320040009 | B18: 0 | C18: 0 | D18: 0 | E18: 0 | F18: 0 | K18: 0
A19: 01320050010 | B19: 0 | C19: 0 | D19: 1392 | E19: 1392 | F19: 0 | K19: 1392
A20: 01320050015 | B20: 0 | C20: 0 | D20: 200 | E20: 200 | F20: 0 | K20: 200
A21: 01320050075 | B21: 0 | C21: 0 | D21: 4160 | E21: 4160 | F21: 0 | K21: 4160
A22: 01320060012 | B22: 0 | C22: 0 | D22: 2268 | E22: 2268 | F22: 0 | K22: 2268
A23: 01329050503 | B23: 0 | C23: 0 | D23: 1773 | E23: 1773 | F23: 0 | K23: 1773
A24: 9794410112 | B24: 0 | C24: 0 | D24: 20 | E24: 20 | F24: 0 | K24: 20
A25: 41320050010 | B25: 0 | C25: 0 | D25: 3681 | E25: 3681 | F25: 0 | K25: 3681
A26: 41320050125 | B26: 0 | C26: 0 | D26: 0 | E26: 0 | F26: 0 | K26: 0
A27: 0-0031819-0 | B27: 0 | C27: 0 | D27: 458 | E27: 458 | F27: 0 | K27: 458
A28: 0-0036490-0 | B28: 0 | C28: 0 | D28: 448 | E28: 448 | F28: 0 | K28: 448
A29: 006-0912-16 | B29: 0 | C29: 0 | D29: 100 | E29: 100 | F29: 0 | K29: 100
A30: 006-0912-20 | B30: 0 | C30: 0 | D30: 100 | E30: 100 | F30: 0 | K30: 100
A31: 006-0937-16 | B31: 0 | C31: 0 | D31: 100 | E31: 100 | F31: 0 | K31: 100
A32: 006-0937-20 | B32: 0 | C32: 12 | D32: 3604 | E32: 3604 | F32: 0 | K32: 3616
A33: 01KS0001 | B33: 0 | C33: 0 | D33: 0 | E33: 0 | F33: 0 | K33: 0
A34: 01KS0011 | B34: 0 | C34: 0 | D34: 0 | E34: 0 | F34: 0 | K34: 0
A35: 0200/SPEC/00/F93768 | B35: 0 | C35: 0 | D35: 0 | E35: 0 | F35: 0 | K35: 0
A36: 0290/SPEC//FJ3730 | B36: 0 | C36: 0 | D36: 0 | E36: 0 | F36: 0 | K36: 0
A37: 03KS0001 | B37: 0 | C37: 0 | D37: 0 | E37: 0 | F37: 0 | K37: 0
A38: 058-000-604-6 | B38: 0 | C38: 0 | D38: 0 | E38: 0 | F38: 0 | K38: 0
A39: 058-001-302-6 | B39: 0 | C39: 0 | D39: 13 | E39: 13 | F39: 0 | K39: 13
A40: 058-001-901-6 | B40: 0 | C40: 0 | D40: 0 | E40: 0 | F40: 0 | K40: 0
A41: 058-001-902-6 | B41: 0 | C41: 0 | D41: 0 | E41: 0 | F41: 0 | K41: 0
A42: 058-002-003-6 | B42: 0 | C42: 0 | D42: 1342 | E42: 1342 | F42: 0 | K42: 1342
A43: 058-002-005-6 | B43: 0 | C43: 0 | D43: 210 | E43: 210 | F43: 0 | K43: 210
A44: 058-004-001-6 | B44: 0 | C44: 2 | D44: 16 | E44: 16 | F44: 0 | K44: 18
A45: 058-004-201-6 | B45: 0 | C45: 2 | D45: 80 | E45: 80 | F45: 0 | K45: 82
A46: 058-004-301-6 | B46: 0 | C46: 2 | D46: 96 | E46: 96 | F46: 0 | K46: 98
A47: 058-004-601-6 | B47: 0 | C47: 2 | D47: 104 | E47: 104 | F47: 0 | K47: 106
A48: 058-011-301-0 | B48: 0 | C48: 0 | D48: 20 | E48: 20 | F48: 0 | K48: 20
A49: 058-011-503-0 | B49: 0 | C49: 0 | D49: 23 | E49: 23 | F49: 0 | K49: 23
A50: 058-011-607-6 | B50: 0 | C50: 0 | D50: 0 | E50: 0 | F50: 0 | K50: 0
A51: 058-011-608-6 | B51: 0 | C51: 0 | D51: 0 | E51: 0 | F51: 0 | K51: 0
A52: 058-021-001-6 | B52: 0 | C52: 0 | D52: 2 | E52: 2 | F52: 0 | K52: 2
A53: 058-021-102-6 | B53: 0 | C53: 0 | D53: 2 | E53: 2 | F53: 0 | K53: 2
A54: 058-600-101-6 | B54: 0 | C54: 0 | D54: 17 | E54: 17 | F54: 0 | K54: 17
A55: 093-360-004-0 | B55: 0 | C55: 0 | D55: 0 | E55: 0 | F55: 0 | K55: 0
A56: 093-360-007-0 | B56: 0 | C56: 0 | D56: 0 | E56: 0 | F56: 0 | K56: 0
A57: 093-360-009-0 | B57: 0 | C57: 0 | D57: 0 | E57: 0 | F57: 0 | K57: 0
A58: 093-360-010-0 | B58: 0 | C58: 0 | D58: 0 | E58: 0 | F58: 0 | K58: 0
A59: 093-360-011-0 | B59: 0 | C59: 0 | D59: 0 | E59: 0 | F59: 0 | K59: 0
A60: 093-360-012-0 | B60: 0 | C60: 0 | D60: 0 | E60: 0 | F60: 0 | K60: 0
A61: 093-360-013-0 | B61: 0 | C61: 0 | D61: 0 | E61: 0 | F61: 0 | K61: 0
A62: 093-360-014-0 | B62: 0 | C62: 0 | D62: 0 | E62: 0 | F62: 0 | K62: 0
A63: 093-360-015-0 | B63: 0 | C63: 0 | D63: 0 | E63: 0 | F63: 0 | K63: 0
A64: 093-360-016-0 | B64: 0 | C64: 0 | D64: 0 | E64: 0 | F64: 0 | K64: 0
A65: 093-360-017-0 | B65: 0 | C65: 0 | D65: 0 | E65: 0 | F65: 0 | K65: 0
A66: 093-360-018-0 | B66: 0 | C66: 0 | D66: 0 | E66: 0 | F66: 0 | K66: 0
A67: 093-360-019-0 | B67: 0 | C67: 0 | D67: 0 | E67: 0 | F67: 0 | K67: 0
A68: 093-360-020-0 | B68: 0 | C68: 0 | D68: 0 | E68: 0 | F68: 0 | K68: 0
A69: 093-360-021-0 | B69: 0 | C69: 0 | D69: 0 | E69: =(K69+B69)-C69 -> 0 | F69: =D69-E69 -> 0 | K69: 0
A70: 093-360-022-0 | B70: 0 | C70: 0 | D70: 0 | E70: 0 | F70: 0 | K70: 0
A71: 093-360-023-0 | B71: 0 | C71: 0 | D71: 0 | E71: 0 | F71: 0 | K71: 0
A72: 093-360-024-0 | B72: 0 | C72: 0 | D72: 0 | E72: 0 | F72: 0 | K72: 0
A73: 093-360-025-0 | B73: 0 | C73: 0 | D73: 0 | E73: 0 | F73: 0 | K73: 0
A74: 093-360-026-0 | B74: 0 | C74: 0 | D74: 0 | E74: 0 | F74: 0 | K74: 0
A75: 093-360-027-0 | B75: 0 | C75: 0 | D75: 0 | E75: 0 | F75: 0 | K75: 0
A76: 093-360-028-0 | B76: 0 | C76: 0 | D76: 0 | E76: 0 | F76: 0 | K76: 0
A77: 093-360-029-0 | B77: 0 | C77: 0 | D77: 0 | E77: 0 | F77: 0 | K77: 0
A78: 093-360-030-0 | B78: 0 | C78: 0 | D78: 0 | E78: 0 | F78: 0 | K78: 0
A79: 093-360-031-0 | B79: 0 | C79: 0 | D79: 0 | E79: 0 | F79: 0 | K79: 0
A80: 093-360-033-0 | B80: 0 | C80: 0 | D80: 0 | E80: 0 | F80: 0 | K80: 0
A81: 093-360-034-0 | B81: 0 | C81: 0 | D81: 0 | E81: 0 | F81: 0 | K81: 0
A82: 093-360-035-0 | B82: 0 | C82: 0 | D82: 0 | E82: 0 | F82: 0 | K82: 0
A83: 093-360-036-0 | B83: 0 | C83: 0 | D83: 0 | E83: 0 | F83: 0 | K83: 0
A84: 093-360-037-0 | B84: 0 | C84: 0 | D84: 0 | E84: 0 | F84: 0 | K84: 0
A85: 093-360-038-0 | B85: 0 | C85: 0 | D85: 0 | E85: 0 | F85: 0 | K85: 0
A86: 093-360-039-0 | B86: 0 | C86: 0 | D86: 0 | E86: 0 | F86: 0 | K86: 0
A87: 093-360-070-0 | B87: 0 | C87: 0 | D87: 964 | E87: 964 | F87: 0 | K87: 964
A88: 093-360-072-0 | B88: 0 | C88: 0 | D88: 77 | E88: 77 | F88: 0 | K88: 77
A89: 093-360-084-0 | B89: 0 | C89: 0 | D89: 0 | E89: 0 | F89: 0 | K89: 0
A90: 093-360-085-0 | B90: 0 | C90: 0 | D90: 400 | E90: 400 | F90: 0 | K90: 400
A91: 093-360-087-0 | B91: 0 | C91: 0 | D91: 990 | E91: 990 | F91: 0 | K91: 990
A92: 093-410-000-0 | B92: 0 | C92: 0 | D92: 0 | E92: 0 | F92: 0 | K92: 0
A93: 093-410-054-0 | B93: 0 | C93: 0 | D93: 0 | E93: 0 | F93: 0 | K93: 0
A94: 093-410-138-0 | B94: 0 | C94: 0 | D94: 4 | E94: 4 | F94: 0 | K94: 4
A95: 093-998-041-0 | B95: 0 | C95: 0 | D95: 0 | E95: 0 | F95: 0 | K95: 0
A96: 093-998-097-0 | B96: 0 | C96: 0 | D96: 0 | E96: 0 | F96: 0 | K96: 0
A97: 093-998-189-0 | B97: 0 | C97: 0 | D97: 0 | E97: 0 | F97: 0 | K97: 0
A98: 097-0140-20 | B98: 0 | C98: 0 | D98: 127 | E98: 127 | F98: 0 | K98: 127
A99: 11-10058-4 | B99: 0 | C99: 0 | D99: 263 | E99: 263 | F99: 0 | K99: 263
A100: 11-10296-4 | B100: 0 | C100: 0 | D100: 211 | E100: 211 | F100: 0 | K100: 211
A101: 11-10297-4 | B101: 0 | C101: 0 | D101: 458 | E101: 458 | F101: 0 | K101: 458
A102: 11-10298-3 | B102: 0 | C102: 0 | D102: 245 | E102: 245 | F102: 0 | K102: 245
A103: 11-10299-3 | B103: 0 | C103: 0 | D103: 464 | E103: 464 | F103: 0 | K103: 464
A104: 11-10300-3 | B104: 0 | C104: 0 | D104: 457 | E104: 457 | F104: 0 | K104: 457
A105: 11-11347-3 | B105: 0 | C105: 0 | D105: 503 | E105: 503 | F105: 0 | K105: 503
A106: 11-11348-3 | B106: 0 | C106: 0 | D106: 700 | E106: 700 | F106: 0 | K106: 700
A107: 1163-100 | B107: 0 | C107: 0 | D107: 32 | E107: 32 | F107: 0 | K107: 32
A108: 1163-300 | B108: 0 | C108: 0 | D108: 13 | E108: 13 | F108: 0 | K108: 13
A109: 11-841651-3 | B109: 0 | C109: 0 | D109: 11 | E109: 11 | F109: 0 | K109: 11
A110: 1338T18-23-1 | B110: 0 | C110: 0 | D110: 0 | E110: 0 | F110: 0 | K110: 0
A111: 1338T24-29-1 | B111: 0 | C111: 0 | D111: 0 | E111: 0 | F111: 0 | K111: 0
A112: 1338T30.37-1 | B112: 0 | C112: 0 | D112: 0 | E112: 0 | F112: 0 | K112: 0
A113: 1338T30-37-1 | B113: 0 | C113: 0 | D113: 0 | E113: 0 | F113: 0 | K113: 0
A114: 1338T38.45-1 | B114: 0 | C114: 0 | D114: 0 | E114: 0 | F114: 0 | K114: 0
A115: 1338T38-45-1 | B115: 0 | C115: 0 | D115: 0 | E115: 0 | F115: 0 | K115: 0
A116: 1348-400 | B116: 0 | C116: 0 | D116: 40 | E116: 40 | F116: 0 | K116: 40
A117: 135D14C | B117: 0 | C117: 0 | D117: 0 | E117: 0 | F117: 0 | K117: 0
A118: 135D14C001 | B118: 0 | C118: 2 | D118: 39 | E118: 39 | F118: 0 | K118: 41
A119: 135D14T | B119: 0 | C119: 0 | D119: 11 | E119: 11 | F119: 0 | K119: 11
A120: 135D54C | B120: 0 | C120: 0 | D120: 16 | E120: 16 | F120: 0 | K120: 16
A121: 135D54T | B121: 0 | C121: 0 | D121: 51 | E121: 51 | F121: 0 | K121: 51
A122: 135K80 | B122: 0 | C122: 0 | D122: 0 | E122: 0 | F122: 0 | K122: 0
A123: 135K80001 | B123: 0 | C123: 0 | D123: 12 | E123: 12 | F123: 0 | K123: 12
A124: 144-408-000-121 | B124: 0 | C124: 0 | D124: 23 | E124: 23 | F124: 0 | K124: 23
A125: 144-408-000-122 | B125: 0 | C125: 0 | D125: 20 | E125: 20 | F125: 0 | K125: 20
A126: 1465-400 | B126: 0 | C126: 0 | D126: 0 | E126: 0 | F126: 0 | K126: 0
A127: 1465-500 | B127: 0 | C127: 0 | D127: 6 | E127: 6 | F127: 0 | K127: 6
A128: 1466-400 | B128: 0 | C128: 0 | D128: 23 | E128: 23 | F128: 0 | K128: 23
A129: 1567100-03 | B129: 0 | C129: 0 | D129: 74 | E129: 74 | F129: 0 | K129: 74
A130: 1567100-04 | B130: 0 | C130: 1 | D130: 91 | E130: 91 | F130: 0 | K130: 92
A131: 1567200-03 | B131: 0 | C131: 0 | D131: 0 | E131: 0 | F131: 0 | K131: 0
A132: 1567200-04 | B132: 0 | C132: 0 | D132: 17 | E132: 17 | F132: 0 | K132: 17
A133: 1567300-03 | B133: 0 | C133: 0 | D133: 0 | E133: =(K133+B133)-C133 -> 0 | F133: =D133-E133 -> 0 | K133: 0
A134: 1567300-04 | B134: 0 | C134: 0 | D134: 0 | E134: 0 | F134: 0 | K134: 0
A135: 1567300-05 | B135: 0 | C135: 0 | D135: 31 | E135: 31 | F135: 0 | K135: 31
A136: 15-841651 | B136: 0 | C136: 0 | D136: 26 | E136: 26 | F136: 0 | K136: 26
A137: 17,00X2,65-64C8 | B137: 0 | C137: 0 | D137: 0 | E137: 0 | F137: 0 | K137: 0
A138: 1851-00 | B138: 0 | C138: 0 | D138: 1044 | E138: 1044 | F138: 0 | K138: 1044
A139: 200Z5X13 | B139: 0 | C139: 0 | D139: 101 | E139: 101 | F139: 0 | K139: 101
A140: 202A132-25-0 | B140: 0 | C140: 0 | D140: 15 | E140: 15 | F140: 0 | K140: 15
A141: 202K132-25 | B141: 0 | C141: 0 | D141: 130 | E141: 130 | F141: 0 | K141: 130
A142: 202K132-25-0 | B142: 0 | C142: 0 | D142: 7 | E142: 7 | F142: 0 | K142: 7
A143: 202K132-25-01-0 | B143: 0 | C143: 0 | D143: 60 | E143: 60 | F143: 0 | K143: 60
A144: 202K142-25-01 | B144: 0 | C144: 0 | D144: 127 | E144: 127 | F144: 0 | K144: 127
A145: 202K153-25 | B145: 0 | C145: 0 | D145: 175 | E145: 175 | F145: 0 | K145: 175
A146: 202K153-25-0 | B146: 0 | C146: 0 | D146: 12 | E146: 12 | F146: 0 | K146: 12
A147: 202K163-25 | B147: 0 | C147: 0 | D147: 0 | E147: 0 | F147: 0 | K147: 0
A148: 202K163-25-0 | B148: 0 | C148: 0 | D148: 19 | E148: 19 | F148: 0 | K148: 19
A149: 202K163-25-02 | B149: 0 | C149: 0 | D149: 48 | E149: 48 | F149: 0 | K149: 48
A150: 21215CA3207 | B150: 0 | C150: 0 | D150: 1350 | E150: 1350 | F150: 0 | K150: 1350
A151: 21215CA3209 | B151: 0 | C151: 0 | D151: 912 | E151: 912 | F151: 0 | K151: 912
A152: 21215CA3210 | B152: 0 | C152: 0 | D152: 575 | E152: 575 | F152: 0 | K152: 575
A153: 21215CM3208 | B153: 0 | C153: 0 | D153: 200 | E153: 200 | F153: 0 | K153: 200
A154: 21215CM4008 | B154: 0 | C154: 0 | D154: 224 | E154: 224 | F154: 0 | K154: 224
A155: 21215TC1605 | B155: 0 | C155: 0 | D155: 700 | E155: 700 | F155: 0 | K155: 700
A156: 21215TC2407 | B156: 0 | C156: 0 | D156: 0 | E156: 0 | F156: 0 | K156: 0
A157: 21215TC3206 | B157: 0 | C157: 0 | D157: 760 | E157: 760 | F157: 0 | K157: 760
A158: 21215TC3207 | B158: 0 | C158: 0 | D158: 420 | E158: 420 | F158: 0 | K158: 420
A159: 21215TC3208 | B159: 0 | C159: 0 | D159: 384 | E159: 384 | F159: 0 | K159: 384
A160: 21215TC3607 | B160: 0 | C160: 0 | D160: 480 | E160: 480 | F160: 0 | K160: 480
A161: 21215TC3608 | B161: 0 | C161: 0 | D161: 809 | E161: 809 | F161: 0 | K161: 809
A162: 21215TS3208 | B162: 0 | C162: 0 | D162: 1147 | E162: 1147 | F162: 0 | K162: 1147
A163: 21215TS3209 | B163: 0 | C163: 0 | D163: 611 | E163: 611 | F163: 0 | K163: 611
A164: 21215TS3608 | B164: 0 | C164: 0 | D164: 289 | E164: 289 | F164: 0 | K164: 289
A165: 21215TS3609 | B165: 0 | C165: 0 | D165: 0 | E165: 0 | F165: 0 | K165: 0
A166: 21217CA3207 | B166: 0 | C166: 0 | D166: 919 | E166: 919 | F166: 0 | K166: 919
A167: 21217CA3208 | B167: 0 | C167: 0 | D167: 37 | E167: 37 | F167: 0 | K167: 37
A168: 21217CA3209 | B168: 0 | C168: 0 | D168: 74 | E168: 74 | F168: 0 | K168: 74
A169: 21217CA3210 | B169: 0 | C169: 0 | D169: 606 | E169: 606 | F169: 0 | K169: 606
A170: 21217CA3212 | B170: 0 | C170: 0 | D170: 200 | E170: 200 | F170: 0 | K170: 200
A171: 21217CA3610 | B171: 0 | C171: 0 | D171: 250 | E171: 250 | F171: 0 | K171: 250
A172: 21217TC3207 | B172: 0 | C172: 0 | D172: 500 | E172: 500 | F172: 0 | K172: 500
A173: 21217TC3208 | B173: 0 | C173: 0 | D173: 500 | E173: 500 | F173: 0 | K173: 500
A174: 21217TC3608 | B174: 0 | C174: 0 | D174: 400 | E174: 400 | F174: 0 | K174: 400
A175: 21217TC3609 | B175: 0 | C175: 0 | D175: 200 | E175: 200 | F175: 0 | K175: 200
A176: 21217TS3208 | B176: 0 | C176: 0 | D176: 238 | E176: 238 | F176: 0 | K176: 238
A177: 21217TS3209 | B177: 0 | C177: 0 | D177: 1493 | E177: 1493 | F177: 0 | K177: 1493
A178: 21217TS3210 | B178: 0 | C178: 0 | D178: 100 | E178: 100 | F178: 0 | K178: 100
A179: 21217TS3610 | B179: 0 | C179: 0 | D179: 250 | E179: 250 | F179: 0 | K179: 250
A180: 21217TS3611 | B180: 0 | C180: 0 | D180: 0 | E180: 0 | F180: 0 | K180: 0
A181: 21826495-7 | B181: 0 | C181: 0 | D181: 0 | E181: 0 | F181: 0 | K181: 0
A182: 22126BC040010L | B182: 0 | C182: 0 | D182: 429 | E182: 429 | F182: 0 | K182: 429
A183: 22220TK060020X | B183: 0 | C183: 0 | D183: 351 | E183: 351 | F183: 0 | K183: 351
A184: 22224CF030008E | B184: 0 | C184: 0 | D184: 673 | E184: 673 | F184: 0 | K184: 673
A185: 22259BC040010 | B185: 0 | C185: 0 | D185: 728 | E185: 728 | F185: 0 | K185: 728
A186: 22259BC040012 | B186: 0 | C186: 0 | D186: 385 | E186: 385 | F186: 0 | K186: 385
A187: 22259BC050012 | B187: 0 | C187: 0 | D187: 84 | E187: 84 | F187: 0 | K187: 84
A188: 22259TK060020X | B188: 0 | C188: 0 | D188: 326 | E188: 326 | F188: 0 | K188: 326
A189: 22291CA030006 | B189: 0 | C189: 0 | D189: 176 | E189: 176 | F189: 0 | K189: 176
A190: 222K132-25 | B190: 0 | C190: 0 | D190: 145 | E190: 145 | F190: 0 | K190: 145
A191: 222K142-25 | B191: 0 | C191: 0 | D191: 116 | E191: 116 | F191: 0 | K191: 116
A192: 222K152-25G13 | B192: 0 | C192: 0 | D192: 150 | E192: 150 | F192: 0 | K192: 150
A193: 222K163-25 | B193: 0 | C193: 0 | D193: 190 | E193: 190 | F193: 0 | K193: 190
A194: 222K163-25-0 | B194: 0 | C194: 0 | D194: 37 | E194: 37 | F194: 0 | K194: 37
A195: 23111CA030 | B195: 0 | C195: 0 | D195: 584 | E195: 584 | F195: 0 | K195: 584
A196: 23111CA040 | B196: 0 | C196: 0 | D196: 189 | E196: 189 | F196: 0 | K196: 189
A197: 23112CA050 | B197: 0 | C197: 0 | D197: 214 | E197: =(K197+B197)-C197 -> 214 | F197: =D197-E197 -> 0 | K197: 214
A198: 23112CA070 | B198: 0 | C198: 0 | D198: 261 | E198: 261 | F198: 0 | K198: 261
A199: 23310CA010010 | B199: 0 | C199: 1 | D199: 2853 | E199: 2853 | F199: 0 | K199: 2854
A200: 243D022-25G04 | B200: 0 | C200: 0 | D200: 50 | E200: 50 | F200: 0 | K200: 50
... 2558 more rows

Sheet stocks S1
A1: Étiquettes de lignes | B1: Somme de Stocktotal | C1: Vérification
A2: 0-0031819-0 | B2: 458 | C2: =VLOOKUP(A2,'Analyse S'!A:D,4,FALSE) -> 458
A3: 0-0036490-0 | B3: 448 | C3: =VLOOKUP(A3,'Analyse S'!A:D,4,FALSE) -> 448
A4: 006-0912-16 | B4: 100 | C4: =VLOOKUP(A4,'Analyse S'!A:D,4,FALSE) -> 100
A5: 006-0912-20 | B5: 100 | C5: =VLOOKUP(A5,'Analyse S'!A:D,4,FALSE) -> 100
A6: 006-0937-16 | B6: 100 | C6: =VLOOKUP(A6,'Analyse S'!A:D,4,FALSE) -> 100
A7: 006-0937-20 | B7: 3604 | C7: =VLOOKUP(A7,'Analyse S'!A:D,4,FALSE) -> 3604
A8: 01320040008 | B8: 5297 | C8: =VLOOKUP(A8,'Analyse S'!A:D,4,FALSE) -> 5297
A9: 01320050010 | B9: 1392 | C9: =VLOOKUP(A9,'Analyse S'!A:D,4,FALSE) -> 1392
A10: 01320050015 | B10: 200 | C10: =VLOOKUP(A10,'Analyse S'!A:D,4,FALSE) -> 200
A11: 01320050075 | B11: 4160 | C11: =VLOOKUP(A11,'Analyse S'!A:D,4,FALSE) -> 4160
A12: 01320060012 | B12: 2268 | C12: =VLOOKUP(A12,'Analyse S'!A:D,4,FALSE) -> 2268
A13: 01329050503 | B13: 1773 | C13: =VLOOKUP(A13,'Analyse S'!A:D,4,FALSE) -> 1773
A14: 058-001-302-6 | B14: 13 | C14: =VLOOKUP(A14,'Analyse S'!A:D,4,FALSE) -> 13
A15: 058-002-003-6 | B15: 1342 | C15: =VLOOKUP(A15,'Analyse S'!A:D,4,FALSE) -> 1342
A16: 058-002-005-6 | B16: 210 | C16: =VLOOKUP(A16,'Analyse S'!A:D,4,FALSE) -> 210
A17: 058-004-001-6 | B17: 16 | C17: =VLOOKUP(A17,'Analyse S'!A:D,4,FALSE) -> 16
A18: 058-004-201-6 | B18: 80 | C18: =VLOOKUP(A18,'Analyse S'!A:D,4,FALSE) -> 80
A19: 058-004-301-6 | B19: 96 | C19: =VLOOKUP(A19,'Analyse S'!A:D,4,FALSE) -> 96
A20: 058-004-601-6 | B20: 104 | C20: =VLOOKUP(A20,'Analyse S'!A:D,4,FALSE) -> 104
A21: 058-011-301-0 | B21: 20 | C21: =VLOOKUP(A21,'Analyse S'!A:D,4,FALSE) -> 20
A22: 058-011-503-0 | B22: 23 | C22: =VLOOKUP(A22,'Analyse S'!A:D,4,FALSE) -> 23
A23: 058-021-001-6 | B23: 2 | C23: =VLOOKUP(A23,'Analyse S'!A:D,4,FALSE) -> 2
A24: 058-021-102-6 | B24: 2 | C24: =VLOOKUP(A24,'Analyse S'!A:D,4,FALSE) -> 2
A25: 058-600-101-6 | B25: 17 | C25: =VLOOKUP(A25,'Analyse S'!A:D,4,FALSE) -> 17
A26: 06003 | B26: 114 | C26: =VLOOKUP(A26,'Analyse S'!A:D,4,FALSE) -> 114
A27: 093-360-070-0 | B27: 964 | C27: =VLOOKUP(A27,'Analyse S'!A:D,4,FALSE) -> 964
A28: 093-360-072-0 | B28: 77 | C28: =VLOOKUP(A28,'Analyse S'!A:D,4,FALSE) -> 77
A29: 093-360-085-0 | B29: 400 | C29: =VLOOKUP(A29,'Analyse S'!A:D,4,FALSE) -> 400
A30: 093-360-087-0 | B30: 990 | C30: =VLOOKUP(A30,'Analyse S'!A:D,4,FALSE) -> 990
A31: 093-410-138-0 | B31: 4 | C31: =VLOOKUP(A31,'Analyse S'!A:D,4,FALSE) -> 4
A32: 097-0140-20 | B32: 127 | C32: =VLOOKUP(A32,'Analyse S'!A:D,4,FALSE) -> 127
A33: 11-10058-4 | B33: 263 | C33: =VLOOKUP(A33,'Analyse S'!A:D,4,FALSE) -> 263
A34: 11-10296-4 | B34: 211 | C34: =VLOOKUP(A34,'Analyse S'!A:D,4,FALSE) -> 211
A35: 11-10297-4 | B35: 458 | C35: =VLOOKUP(A35,'Analyse S'!A:D,4,FALSE) -> 458
A36: 11-10298-3 | B36: 245 | C36: =VLOOKUP(A36,'Analyse S'!A:D,4,FALSE) -> 245
A37: 11-10299-3 | B37: 464 | C37: =VLOOKUP(A37,'Analyse S'!A:D,4,FALSE) -> 464
A38: 11-10300-3 | B38: 457 | C38: =VLOOKUP(A38,'Analyse S'!A:D,4,FALSE) -> 457
A39: 11-11347-3 | B39: 503 | C39: =VLOOKUP(A39,'Analyse S'!A:D,4,FALSE) -> 503
A40: 11-11348-3 | B40: 700 | C40: =VLOOKUP(A40,'Analyse S'!A:D,4,FALSE) -> 700
A41: 1163-100 | B41: 32 | C41: =VLOOKUP(A41,'Analyse S'!A:D,4,FALSE) -> 32
A42: 1163-300 | B42: 13 | C42: =VLOOKUP(A42,'Analyse S'!A:D,4,FALSE) -> 13
A43: 11-841651-3 | B43: 11 | C43: =VLOOKUP(A43,'Analyse S'!A:D,4,FALSE) -> 11
A44: 1348-400 | B44: 40 | C44: =VLOOKUP(A44,'Analyse S'!A:D,4,FALSE) -> 40
A45: 135D14C001 | B45: 39 | C45: =VLOOKUP(A45,'Analyse S'!A:D,4,FALSE) -> 39
A46: 135D14T | B46: 11 | C46: =VLOOKUP(A46,'Analyse S'!A:D,4,FALSE) -> 11
A47: 135D54C | B47: 16 | C47: =VLOOKUP(A47,'Analyse S'!A:D,4,FALSE) -> 16
A48: 135D54T | B48: 51 | C48: =VLOOKUP(A48,'Analyse S'!A:D,4,FALSE) -> 51
A49: 135K80001 | B49: 12 | C49: =VLOOKUP(A49,'Analyse S'!A:D,4,FALSE) -> 12
A50: 144-408-000-121 | B50: 23 | C50: =VLOOKUP(A50,'Analyse S'!A:D,4,FALSE) -> 23
A51: 144-408-000-122 | B51: 20 | C51: =VLOOKUP(A51,'Analyse S'!A:D,4,FALSE) -> 20
A52: 1465-500 | B52: 6 | C52: =VLOOKUP(A52,'Analyse S'!A:D,4,FALSE) -> 6
A53: 1466-400 | B53: 23 | C53: =VLOOKUP(A53,'Analyse S'!A:D,4,FALSE) -> 23
A54: 1567100-03 | B54: 74 | C54: =VLOOKUP(A54,'Analyse S'!A:D,4,FALSE) -> 74
A55: 1567100-04 | B55: 91 | C55: =VLOOKUP(A55,'Analyse S'!A:D,4,FALSE) -> 91
A56: 1567200-04 | B56: 17 | C56: =VLOOKUP(A56,'Analyse S'!A:D,4,FALSE) -> 17
A57: 1567300-05 | B57: 31 | C57: =VLOOKUP(A57,'Analyse S'!A:D,4,FALSE) -> 31
A58: 15-841651 | B58: 26 | C58: =VLOOKUP(A58,'Analyse S'!A:D,4,FALSE) -> 26
A59: 1851-00 | B59: 1044 | C59: =VLOOKUP(A59,'Analyse S'!A:D,4,FALSE) -> 1044
A60: 2000081 | B60: 3310 | C60: =VLOOKUP(A60,'Analyse S'!A:D,4,FALSE) -> 3310
A61: 200Z5X13 | B61: 101 | C61: =VLOOKUP(A61,'Analyse S'!A:D,4,FALSE) -> 101
A62: 2010065 | B62: 304 | C62: =VLOOKUP(A62,'Analyse S'!A:D,4,FALSE) -> 304
A63: 202A132-25-0 | B63: 15 | C63: =VLOOKUP(A63,'Analyse S'!A:D,4,FALSE) -> 15
A64: 202K132-25 | B64: 130 | C64: =VLOOKUP(A64,'Analyse S'!A:D,4,FALSE) -> 130
A65: 202K132-25-0 | B65: 7 | C65: =VLOOKUP(A65,'Analyse S'!A:D,4,FALSE) -> 7
A66: 202K132-25-01-0 | B66: 60 | C66: =VLOOKUP(A66,'Analyse S'!A:D,4,FALSE) -> 60
A67: 202K142-25-01 | B67: 127 | C67: =VLOOKUP(A67,'Analyse S'!A:D,4,FALSE) -> 127
A68: 202K153-25 | B68: 175 | C68: =VLOOKUP(A68,'Analyse S'!A:D,4,FALSE) -> 175
A69: 202K153-25-0 | B69: 12 | C69: =VLOOKUP(A69,'Analyse S'!A:D,4,FALSE) -> 12
A70: 202K163-25-0 | B70: 19 | C70: =VLOOKUP(A70,'Analyse S'!A:D,4,FALSE) -> 19
A71: 202K163-25-02 | B71: 48 | C71: =VLOOKUP(A71,'Analyse S'!A:D,4,FALSE) -> 48
A72: 21215CA3207 | B72: 1350 | C72: =VLOOKUP(A72,'Analyse S'!A:D,4,FALSE) -> 1350
A73: 21215CA3209 | B73: 912 | C73: =VLOOKUP(A73,'Analyse S'!A:D,4,FALSE) -> 912
A74: 21215CA3210 | B74: 575 | C74: =VLOOKUP(A74,'Analyse S'!A:D,4,FALSE) -> 575
A75: 21215CM3208 | B75: 200 | C75: =VLOOKUP(A75,'Analyse S'!A:D,4,FALSE) -> 200
A76: 21215CM4008 | B76: 224 | C76: =VLOOKUP(A76,'Analyse S'!A:D,4,FALSE) -> 224
A77: 21215TC1605 | B77: 700 | C77: =VLOOKUP(A77,'Analyse S'!A:D,4,FALSE) -> 700
A78: 21215TC3206 | B78: 760 | C78: =VLOOKUP(A78,'Analyse S'!A:D,4,FALSE) -> 760
A79: 21215TC3207 | B79: 420 | C79: =VLOOKUP(A79,'Analyse S'!A:D,4,FALSE) -> 420
A80: 21215TC3208 | B80: 384 | C80: =VLOOKUP(A80,'Analyse S'!A:D,4,FALSE) -> 384
A81: 21215TC3607 | B81: 480 | C81: =VLOOKUP(A81,'Analyse S'!A:D,4,FALSE) -> 480
A82: 21215TC3608 | B82: 809 | C82: =VLOOKUP(A82,'Analyse S'!A:D,4,FALSE) -> 809
A83: 21215TS3208 | B83: 1147 | C83: =VLOOKUP(A83,'Analyse S'!A:D,4,FALSE) -> 1147
A84: 21215TS3209 | B84: 611 | C84: =VLOOKUP(A84,'Analyse S'!A:D,4,FALSE) -> 611
A85: 21215TS3608 | B85: 289 | C85: =VLOOKUP(A85,'Analyse S'!A:D,4,FALSE) -> 289
A86: 21217CA3207 | B86: 919 | C86: =VLOOKUP(A86,'Analyse S'!A:D,4,FALSE) -> 919
A87: 21217CA3208 | B87: 37 | C87: =VLOOKUP(A87,'Analyse S'!A:D,4,FALSE) -> 37
A88: 21217CA3209 | B88: 74 | C88: =VLOOKUP(A88,'Analyse S'!A:D,4,FALSE) -> 74
A89: 21217CA3210 | B89: 606 | C89: =VLOOKUP(A89,'Analyse S'!A:D,4,FALSE) -> 606
A90: 21217CA3212 | B90: 200 | C90: =VLOOKUP(A90,'Analyse S'!A:D,4,FALSE) -> 200
A91: 21217CA3610 | B91: 250 | C91: =VLOOKUP(A91,'Analyse S'!A:D,4,FALSE) -> 250
A92: 21217TC3207 | B92: 500 | C92: =VLOOKUP(A92,'Analyse S'!A:D,4,FALSE) -> 500
A93: 21217TC3208 | B93: 500 | C93: =VLOOKUP(A93,'Analyse S'!A:D,4,FALSE) -> 500
A94: 21217TC3608 | B94: 400 | C94: =VLOOKUP(A94,'Analyse S'!A:D,4,FALSE) -> 400
A95: 21217TC3609 | B95: 200 | C95: =VLOOKUP(A95,'Analyse S'!A:D,4,FALSE) -> 200
A96: 21217TS3208 | B96: 238 | C96: =VLOOKUP(A96,'Analyse S'!A:D,4,FALSE) -> 238
A97: 21217TS3209 | B97: 1493 | C97: =VLOOKUP(A97,'Analyse S'!A:D,4,FALSE) -> 1493
A98: 21217TS3210 | B98: 100 | C98: =VLOOKUP(A98,'Analyse S'!A:D,4,FALSE) -> 100
A99: 21217TS3610 | B99: 250 | C99: =VLOOKUP(A99,'Analyse S'!A:D,4,FALSE) -> 250
A100: 22126BC040010L | B100: 429 | C100: =VLOOKUP(A100,'Analyse S'!A:D,4,FALSE) -> 429
A101: 22220TK060020X | B101: 351 | C101: =VLOOKUP(A101,'Analyse S'!A:D,4,FALSE) -> 351
A102: 22224CF030008E | B102: 673 | C102: =VLOOKUP(A102,'Analyse S'!A:D,4,FALSE) -> 673
A103: 22259BC040010 | B103: 728 | C103: =VLOOKUP(A103,'Analyse S'!A:D,4,FALSE) -> 728
A104: 22259BC040012 | B104: 385 | C104: =VLOOKUP(A104,'Analyse S'!A:D,4,FALSE) -> 385
A105: 22259BC050012 | B105: 84 | C105: =VLOOKUP(A105,'Analyse S'!A:D,4,FALSE) -> 84
A106: 22259TK060020X | B106: 326 | C106: =VLOOKUP(A106,'Analyse S'!A:D,4,FALSE) -> 326
A107: 22291CA030006 | B107: 176 | C107: =VLOOKUP(A107,'Analyse S'!A:D,4,FALSE) -> 176
A108: 222K132-25 | B108: 145 | C108: =VLOOKUP(A108,'Analyse S'!A:D,4,FALSE) -> 145
A109: 222K142-25 | B109: 116 | C109: =VLOOKUP(A109,'Analyse S'!A:D,4,FALSE) -> 116
A110: 222K152-25G13 | B110: 150 | C110: =VLOOKUP(A110,'Analyse S'!A:D,4,FALSE) -> 150
A111: 222K163-25 | B111: 190 | C111: =VLOOKUP(A111,'Analyse S'!A:D,4,FALSE) -> 190
A112: 222K163-25-0 | B112: 37 | C112: =VLOOKUP(A112,'Analyse S'!A:D,4,FALSE) -> 37
A113: 23111CA030 | B113: 584 | C113: =VLOOKUP(A113,'Analyse S'!A:D,4,FALSE) -> 584
A114: 23111CA040 | B114: 189 | C114: =VLOOKUP(A114,'Analyse S'!A:D,4,FALSE) -> 189
A115: 23112CA050 | B115: 214 | C115: =VLOOKUP(A115,'Analyse S'!A:D,4,FALSE) -> 214
A116: 23112CA070 | B116: 261 | C116: =VLOOKUP(A116,'Analyse S'!A:D,4,FALSE) -> 261
A117: 23310CA010010 | B117: 2853 | C117: =VLOOKUP(A117,'Analyse S'!A:D,4,FALSE) -> 2853
A118: 243D022-25G04 | B118: 50 | C118: =VLOOKUP(A118,'Analyse S'!A:D,4,FALSE) -> 50
A119: 25,00X2,65-64C8 | B119: 60 | C119: =VLOOKUP(A119,'Analyse S'!A:D,4,FALSE) -> 60
A120: 25907 | B120: 66 | C120: =VLOOKUP(A120,'Analyse S'!A:D,4,FALSE) -> 66
A121: 26013573-2 | B121: 8 | C121: =VLOOKUP(A121,'Analyse S'!A:D,4,FALSE) -> 8
A122: 263W023-25 | B122: 95 | C122: =VLOOKUP(A122,'Analyse S'!A:D,4,FALSE) -> 95
A123: 264W012-25 | B123: 50 | C123: =VLOOKUP(A123,'Analyse S'!A:D,4,FALSE) -> 50
A124: 2AGF0507BLS | B124: 132 | C124: =VLOOKUP(A124,'Analyse S'!A:D,4,FALSE) -> 132
A125: 2AGF0509BLS | B125: 749 | C125: =VLOOKUP(A125,'Analyse S'!A:D,4,FALSE) -> 749
A126: 2R500Y158B | B126: 1354 | C126: =VLOOKUP(A126,'Analyse S'!A:D,4,FALSE) -> 1354
A127: 300-017G | B127: 436 | C127: =VLOOKUP(A127,'Analyse S'!A:D,4,FALSE) -> 436
A128: 300-587-402-0 | B128: 1 | C128: =VLOOKUP(A128,'Analyse S'!A:D,4,FALSE) -> 1
A129: 300-656-301-0 | B129: 100 | C129: =VLOOKUP(A129,'Analyse S'!A:D,4,FALSE) -> 100
A130: 303-928-703-0 | B130: 221 | C130: =VLOOKUP(A130,'Analyse S'!A:D,4,FALSE) -> 221
A131: 304-965-001-0 | B131: 67 | C131: =VLOOKUP(A131,'Analyse S'!A:D,4,FALSE) -> 67
A132: 305-109-701-0 | B132: 32 | C132: =VLOOKUP(A132,'Analyse S'!A:D,4,FALSE) -> 32
A133: 307-002-023-0 | B133: 7 | C133: =VLOOKUP(A133,'Analyse S'!A:D,4,FALSE) -> 7
A134: 307-002-173-0 | B134: 1 | C134: =VLOOKUP(A134,'Analyse S'!A:D,4,FALSE) -> 1
A135: 307-002-175-0 | B135: 14 | C135: =VLOOKUP(A135,'Analyse S'!A:D,4,FALSE) -> 14
A136: 307-002-532-0 | B136: 8 | C136: =VLOOKUP(A136,'Analyse S'!A:D,4,FALSE) -> 8
A137: 307-002-534-0 | B137: 7 | C137: =VLOOKUP(A137,'Analyse S'!A:D,4,FALSE) -> 7
A138: 307-002-809-6 | B138: 1006 | C138: =VLOOKUP(A138,'Analyse S'!A:D,4,FALSE) -> 1006
A139: 307-002-906-6 | B139: 1584 | C139: =VLOOKUP(A139,'Analyse S'!A:D,4,FALSE) -> 1584
A140: 307-003-005-6 | B140: 1700 | C140: =VLOOKUP(A140,'Analyse S'!A:D,4,FALSE) -> 1700
A141: 307-003-124-0 | B141: 43 | C141: =VLOOKUP(A141,'Analyse S'!A:D,4,FALSE) -> 43
A142: 307-003-308-6 | B142: 5 | C142: =VLOOKUP(A142,'Analyse S'!A:D,4,FALSE) -> 5
A143: 307-003-724-0 | B143: 30 | C143: =VLOOKUP(A143,'Analyse S'!A:D,4,FALSE) -> 30
A144: 307-003-908-6 | B144: 6 | C144: =VLOOKUP(A144,'Analyse S'!A:D,4,FALSE) -> 6
A145: 307-004-333-0 | B145: 20 | C145: =VLOOKUP(A145,'Analyse S'!A:D,4,FALSE) -> 20
A146: 307-004-505-6 | B146: 8 | C146: =VLOOKUP(A146,'Analyse S'!A:D,4,FALSE) -> 8
A147: 307-007-453-0 | B147: 3 | C147: =VLOOKUP(A147,'Analyse S'!A:D,4,FALSE) -> 3
A148: 307-007-570-0 | B148: 28 | C148: =VLOOKUP(A148,'Analyse S'!A:D,4,FALSE) -> 28
A149: 307-007-581-0 | B149: 15 | C149: =VLOOKUP(A149,'Analyse S'!A:D,4,FALSE) -> 15
A150: 307-011-001-0 | B150: 11 | C150: =VLOOKUP(A150,'Analyse S'!A:D,4,FALSE) -> 11
A151: 307-011-403-0 | B151: 10 | C151: =VLOOKUP(A151,'Analyse S'!A:D,4,FALSE) -> 10
A152: 307-011-601-0 | B152: 39 | C152: =VLOOKUP(A152,'Analyse S'!A:D,4,FALSE) -> 39
A153: 307-011-701-0 | B153: 48 | C153: =VLOOKUP(A153,'Analyse S'!A:D,4,FALSE) -> 48
A154: 307-012-001-0 | B154: 34 | C154: =VLOOKUP(A154,'Analyse S'!A:D,4,FALSE) -> 34
A155: 307-012-201-0 | B155: 51 | C155: =VLOOKUP(A155,'Analyse S'!A:D,4,FALSE) -> 51
A156: 307-014-201-6 | B156: 72 | C156: =VLOOKUP(A156,'Analyse S'!A:D,4,FALSE) -> 72
A157: 307-015-407-0 | B157: 108 | C157: =VLOOKUP(A157,'Analyse S'!A:D,4,FALSE) -> 108
A158: 307-015-801-0 | B158: 13 | C158: =VLOOKUP(A158,'Analyse S'!A:D,4,FALSE) -> 13
A159: 307-015-901-0 | B159: 51 | C159: =VLOOKUP(A159,'Analyse S'!A:D,4,FALSE) -> 51
A160: 307-016-501-0 | B160: 12 | C160: =VLOOKUP(A160,'Analyse S'!A:D,4,FALSE) -> 12
A161: 307-016-602-0 | B161: 10 | C161: =VLOOKUP(A161,'Analyse S'!A:D,4,FALSE) -> 10
A162: 307-017-204-0 | B162: 6 | C162: =VLOOKUP(A162,'Analyse S'!A:D,4,FALSE) -> 6
A163: 307-017-304-0 | B163: 8 | C163: =VLOOKUP(A163,'Analyse S'!A:D,4,FALSE) -> 8
A164: 307-017-404-0 | B164: 1 | C164: =VLOOKUP(A164,'Analyse S'!A:D,4,FALSE) -> 1
A165: 307-017-701-0 | B165: 11 | C165: =VLOOKUP(A165,'Analyse S'!A:D,4,FALSE) -> 11
A166: 307-017-901-0 | B166: 29 | C166: =VLOOKUP(A166,'Analyse S'!A:D,4,FALSE) -> 29
A167: 307-018-001-0 | B167: 30 | C167: =VLOOKUP(A167,'Analyse S'!A:D,4,FALSE) -> 30
A168: 307-018-103-0 | B168: 6 | C168: =VLOOKUP(A168,'Analyse S'!A:D,4,FALSE) -> 6
A169: 307-018-202-0 | B169: 17 | C169: =VLOOKUP(A169,'Analyse S'!A:D,4,FALSE) -> 17
A170: 307-018-301-0 | B170: 14 | C170: =VLOOKUP(A170,'Analyse S'!A:D,4,FALSE) -> 14
A171: 307-018-502-0 | B171: 110 | C171: =VLOOKUP(A171,'Analyse S'!A:D,4,FALSE) -> 110
A172: 307-019-701-0 | B172: 26 | C172: =VLOOKUP(A172,'Analyse S'!A:D,4,FALSE) -> 26
A173: 307-019-902-0 | B173: 11 | C173: =VLOOKUP(A173,'Analyse S'!A:D,4,FALSE) -> 11
A174: 307-020-001-0 | B174: 58 | C174: =VLOOKUP(A174,'Analyse S'!A:D,4,FALSE) -> 58
A175: 307-020-103-0 | B175: 8 | C175: =VLOOKUP(A175,'Analyse S'!A:D,4,FALSE) -> 8
A176: 307-020-201-0 | B176: 143 | C176: =VLOOKUP(A176,'Analyse S'!A:D,4,FALSE) -> 143
A177: 307-020-301-0 | B177: 18 | C177: =VLOOKUP(A177,'Analyse S'!A:D,4,FALSE) -> 18
A178: 307-020-601-0 | B178: 184 | C178: =VLOOKUP(A178,'Analyse S'!A:D,4,FALSE) -> 184
A179: 307-020-701-0 | B179: 153 | C179: =VLOOKUP(A179,'Analyse S'!A:D,4,FALSE) -> 153
A180: 307-020-801-0 | B180: 231 | C180: =VLOOKUP(A180,'Analyse S'!A:D,4,FALSE) -> 231
A181: 307-021-001-0 | B181: 8 | C181: =VLOOKUP(A181,'Analyse S'!A:D,4,FALSE) -> 8
A182: 307-021-101-0 | B182: 25 | C182: =VLOOKUP(A182,'Analyse S'!A:D,4,FALSE) -> 25
A183: 307-021-201-0 | B183: 20 | C183: =VLOOKUP(A183,'Analyse S'!A:D,4,FALSE) -> 20
A184: 307-021-401-0 | B184: 16 | C184: =VLOOKUP(A184,'Analyse S'!A:D,4,FALSE) -> 16
A185: 307-021-801-0 | B185: 30 | C185: =VLOOKUP(A185,'Analyse S'!A:D,4,FALSE) -> 30
A186: 307-021-901-0 | B186: 20 | C186: =VLOOKUP(A186,'Analyse S'!A:D,4,FALSE) -> 20
A187: 307-022-114-0 | B187: 5 | C187: =VLOOKUP(A187,'Analyse S'!A:D,4,FALSE) -> 5
A188: 307-022-403-0 | B188: 126 | C188: =VLOOKUP(A188,'Analyse S'!A:D,4,FALSE) -> 126
A189: 307-022-506-0 | B189: 43 | C189: =VLOOKUP(A189,'Analyse S'!A:D,4,FALSE) -> 43
A190: 307-022-605-0 | B190: 565 | C190: =VLOOKUP(A190,'Analyse S'!A:D,4,FALSE) -> 565
A191: 307-022-703-0 | B191: 143 | C191: =VLOOKUP(A191,'Analyse S'!A:D,4,FALSE) -> 143
A192: 307-022-802-0 | B192: 125 | C192: =VLOOKUP(A192,'Analyse S'!A:D,4,FALSE) -> 125
A193: 307-022-806-0 | B193: 55 | C193: =VLOOKUP(A193,'Analyse S'!A:D,4,FALSE) -> 55
A194: 307-023-004-0 | B194: 44 | C194: =VLOOKUP(A194,'Analyse S'!A:D,4,FALSE) -> 44
A195: 307-023-105-0 | B195: 729 | C195: =VLOOKUP(A195,'Analyse S'!A:D,4,FALSE) -> 729
A196: 307-023-203-0 | B196: 112 | C196: =VLOOKUP(A196,'Analyse S'!A:D,4,FALSE) -> 112
A197: 307-023-304-0 | B197: 51 | C197: =VLOOKUP(A197,'Analyse S'!A:D,4,FALSE) -> 51
A198: 307-023-402-0 | B198: 500 | C198: =VLOOKUP(A198,'Analyse S'!A:D,4,FALSE) -> 500
A199: 307-023-604-0 | B199: 64 | C199: =VLOOKUP(A199,'Analyse S'!A:D,4,FALSE) -> 64
A200: 307-023-704-0 | B200: 44 | C200: =VLOOKUP(A200,'Analyse S'!A:D,4,FALSE) -> 44
... 2558 more rows

Sheet Entrées S1
A1: RACE | B1: Quantité | C1: Vérification
A2: 307-282-001-0 | B2: 120 | C2: =VLOOKUP(A2,'Analyse S'!A:D,2,FALSE) -> 120
A3: 309-053-601-0 | B3: 12 | C3: =VLOOKUP(A3,'Analyse S'!A:D,2,FALSE) -> 12
A4: 307-056-101-0 | B4: 50 | C4: =VLOOKUP(A4,'Analyse S'!A:D,2,FALSE) -> 50
A5: 307-250-507-0 | B5: 60 | C5: =VLOOKUP(A5,'Analyse S'!A:D,2,FALSE) -> 60
A6: 307-111-002-0 | B6: 1 | C6: =VLOOKUP(A6,'Analyse S'!A:D,2,FALSE) -> 1
A7: 307-222-602-6 | B7: 10 | C7: =VLOOKUP(A7,'Analyse S'!A:D,2,FALSE) -> 10
A8: 307-150-001-0 | B8: 2 | C8: =VLOOKUP(A8,'Analyse S'!A:D,2,FALSE) -> 2
A9: 650-153-504-0 | B9: 25 | C9: =VLOOKUP(A9,'Analyse S'!A:D,2,FALSE) -> 25
A10: 307-094-451-6 | B10: 1 | C10: =VLOOKUP(A10,'Analyse S'!A:D,2,FALSE) -> 1
A11: 307-113-702-6 | B11: 1 | C11: =VLOOKUP(A11,'Analyse S'!A:D,2,FALSE) -> 1
A12: 307-826-902-0 | B12: 1 | C12: =VLOOKUP(A12,'Analyse S'!A:D,2,FALSE) -> 1
A13: 307-226-302-0 | B13: 4 | C13: =VLOOKUP(A13,'Analyse S'!A:D,2,FALSE) -> 4
A14: 650-153-506-0 | B14: 200 | C14: =VLOOKUP(A14,'Analyse S'!A:D,2,FALSE) -> 200
A15: 650-153-216-0 | B15: 25 | C15: =VLOOKUP(A15,'Analyse S'!A:D,2,FALSE) -> 25
A16: 307-094-605-0 | B16: 8 | C16: =VLOOKUP(A16,'Analyse S'!A:D,2,FALSE) -> 8
A17: 307-138-501-0 | B17: 5 | C17: =VLOOKUP(A17,'Analyse S'!A:D,2,FALSE) -> 5
A18: 309-012-902-0 | B18: 2 | C18: =VLOOKUP(A18,'Analyse S'!A:D,2,FALSE) -> 2
A19: 309-107-006-0 | B19: 1 | C19: =VLOOKUP(A19,'Analyse S'!A:D,2,FALSE) -> 1
A20: 307-214-601-0 | B20: 2 | C20: =VLOOKUP(A20,'Analyse S'!A:D,2,FALSE) -> 2
A21: 307-214-701-0 | B21: 2 | C21: =VLOOKUP(A21,'Analyse S'!A:D,2,FALSE) -> 2
A22: 307-230-702-6 | B22: 2 | C22: =VLOOKUP(A22,'Analyse S'!A:D,2,FALSE) -> 2
A23: 649-804-019-0 | B23: 1 | C23: =VLOOKUP(A23,'Analyse S'!A:D,2,FALSE) -> 1
A24: 326-025-301-0 | B24: 2 | C24: =VLOOKUP(A24,'Analyse S'!A:D,2,FALSE) -> 2
A25: 326-202-301-0 | B25: 1 | C25: =VLOOKUP(A25,'Analyse S'!A:D,2,FALSE) -> 1
A26: 307-004-333-0 | B26: 2 | C26: =VLOOKUP(A26,'Analyse S'!A:D,2,FALSE) -> 2
A27: A80910-9 | B27: 2 | C27: =VLOOKUP(A27,'Analyse S'!A:D,2,FALSE) -> 2
A28: 650-002-551-0 | B28: 450 | C28: =VLOOKUP(A28,'Analyse S'!A:D,2,FALSE) -> 450
A29: 307-279-401-0 | B29: 4 | C29: =VLOOKUP(A29,'Analyse S'!A:D,2,FALSE) -> 4
A30: 309-129-207-0 | B30: 2 | C30: =VLOOKUP(A30,'Analyse S'!A:D,2,FALSE) -> 2
A31: 307-251-409-0 | B31: 28 | C31: =VLOOKUP(A31,'Analyse S'!A:D,2,FALSE) -> 28
A32: 307-827-413-0 | B32: 18 | C32: =VLOOKUP(A32,'Analyse S'!A:D,2,FALSE) -> 18
A33: 307-232-214-0 | B33: 1 | C33: =VLOOKUP(A33,'Analyse S'!A:D,2,FALSE) -> 1
A34: 309-169-601-0 | B34: 1 | C34: =VLOOKUP(A34,'Analyse S'!A:D,2,FALSE) -> 1
A35: 307-942-511-0 | B35: 1 | C35: =VLOOKUP(A35,'Analyse S'!A:D,2,FALSE) -> 1
A36: 307-233-801-0 | B36: 5000 | C36: =VLOOKUP(A36,'Analyse S'!A:D,2,FALSE) -> 5000
A37: 309-111-402-0 | B37: 100 | C37: =VLOOKUP(A37,'Analyse S'!A:D,2,FALSE) -> 100
A38: 307-059-108-0 | B38: 1 | C38: =VLOOKUP(A38,'Analyse S'!A:D,2,FALSE) -> 1
A39: 307-232-606-0 | B39: 600 | C39: =VLOOKUP(A39,'Analyse S'!A:D,2,FALSE) -> 600
A40: 307-058-345-0 | B40: 2 | C40: =VLOOKUP(A40,'Analyse S'!A:D,2,FALSE) -> 2
A41: 307-240-107-0 | B41: 120 | C41: =VLOOKUP(A41,'Analyse S'!A:D,2,FALSE) -> 120
A42: 307-234-202-0 | B42: 2 | C42: =VLOOKUP(A42,'Analyse S'!A:D,2,FALSE) -> 2
A43: 307-157-503-0 | B43: 1 | C43: =VLOOKUP(A43,'Analyse S'!A:D,2,FALSE) -> 1
A44: RP217-03 | B44: 28 | C44: =VLOOKUP(A44,'Analyse S'!A:D,2,FALSE) -> 28
A45: 309-133-301-0 | B45: 1 | C45: =VLOOKUP(A45,'Analyse S'!A:D,2,FALSE) -> 1
A46: 307-083-734-0 | B46: 4 | C46: =VLOOKUP(A46,'Analyse S'!A:D,2,FALSE) -> 4
A47: 443-349-00-C | B47: 20 | C47: =VLOOKUP(A47,'Analyse S'!A:D,2,FALSE) -> 20
A48: 309-042-004-0 | B48: 1 | C48: =VLOOKUP(A48,'Analyse S'!A:D,2,FALSE) -> 1
A49: 307-264-510-6 | B49: 1 | C49: =VLOOKUP(A49,'Analyse S'!A:D,2,FALSE) -> 1
A50: 307-812-501-0 | B50: 1 | C50: =VLOOKUP(A50,'Analyse S'!A:D,2,FALSE) -> 1
A51: 309-124-703-0 | B51: 1 | C51: =VLOOKUP(A51,'Analyse S'!A:D,2,FALSE) -> 1
A52: 309-126-101-0 | B52: 1 | C52: =VLOOKUP(A52,'Analyse S'!A:D,2,FALSE) -> 1
A53: 309-126-201-0 | B53: 1 | C53: =VLOOKUP(A53,'Analyse S'!A:D,2,FALSE) -> 1
A54: TP634-3 | B54: 1 | C54: =VLOOKUP(A54,'Analyse S'!A:D,2,FALSE) -> 1
C55: =VLOOKUP(A55,'Analyse S'!A:D,2,FALSE) -> 
C56: =VLOOKUP(A56,'Analyse S'!A:D,2,FALSE) -> 
C57: =VLOOKUP(A57,'Analyse S'!A:D,2,FALSE) -> 
C58: =VLOOKUP(A58,'Analyse S'!A:D,2,FALSE) -> 
C59: =VLOOKUP(A59,'Analyse S'!A:D,2,FALSE) -> 
C60: =VLOOKUP(A60,'Analyse S'!A:D,2,FALSE) -> 
C61: =VLOOKUP(A61,'Analyse S'!A:D,2,FALSE) -> 
C62: =VLOOKUP(A62,'Analyse S'!A:D,2,FALSE) -> 
C63: =VLOOKUP(A63,'Analyse S'!A:D,2,FALSE) -> 
C64: =VLOOKUP(A64,'Analyse S'!A:D,2,FALSE) -> 
C65: =VLOOKUP(A65,'Analyse S'!A:D,2,FALSE) -> 
C66: =VLOOKUP(A66,'Analyse S'!A:D,2,FALSE) -> 
C67: =VLOOKUP(A67,'Analyse S'!A:D,2,FALSE) -> 
C68: =VLOOKUP(A68,'Analyse S'!A:D,2,FALSE) -> 
C69: =VLOOKUP(A69,'Analyse S'!A:D,2,FALSE) -> 
C70: =VLOOKUP(A70,'Analyse S'!A:D,2,FALSE) -> 
C71: =VLOOKUP(A71,'Analyse S'!A:D,2,FALSE) -> 
C72: =VLOOKUP(A72,'Analyse S'!A:D,2,FALSE) -> 
C73: =VLOOKUP(A73,'Analyse S'!A:D,2,FALSE) -> 
C74: =VLOOKUP(A74,'Analyse S'!A:D,2,FALSE) -> 
C75: =VLOOKUP(A75,'Analyse S'!A:D,2,FALSE) -> 
C76: =VLOOKUP(A76,'Analyse S'!A:D,2,FALSE) -> 
C77: =VLOOKUP(A77,'Analyse S'!A:D,2,FALSE) -> 
C78: =VLOOKUP(A78,'Analyse S'!A:D,2,FALSE) -> 
C79: =VLOOKUP(A79,'Analyse S'!A:D,2,FALSE) -> 
C80: =VLOOKUP(A80,'Analyse S'!A:D,2,FALSE) -> 
C81: =VLOOKUP(A81,'Analyse S'!A:D,2,FALSE) -> 
C82: =VLOOKUP(A82,'Analyse S'!A:D,2,FALSE) -> 
C83: =VLOOKUP(A83,'Analyse S'!A:D,2,FALSE) -> 
C84: =VLOOKUP(A84,'Analyse S'!A:D,2,FALSE) -> 
C85: =VLOOKUP(A85,'Analyse S'!A:D,2,FALSE) -> 
C86: =VLOOKUP(A86,'Analyse S'!A:D,2,FALSE) -> 
C87: =VLOOKUP(A87,'Analyse S'!A:D,2,FALSE) -> 
C88: =VLOOKUP(A88,'Analyse S'!A:D,2,FALSE) -> 
C89: =VLOOKUP(A89,'Analyse S'!A:D,2,FALSE) -> 
C90: =VLOOKUP(A90,'Analyse S'!A:D,2,FALSE) -> 
C91: =VLOOKUP(A91,'Analyse S'!A:D,2,FALSE) -> 
C92: =VLOOKUP(A92,'Analyse S'!A:D,2,FALSE) -> 
C93: =VLOOKUP(A93,'Analyse S'!A:D,2,FALSE) -> 
C94: =VLOOKUP(A94,'Analyse S'!A:D,2,FALSE) -> 
C95: =VLOOKUP(A95,'Analyse S'!A:D,2,FALSE) -> 
C96: =VLOOKUP(A96,'Analyse S'!A:D,2,FALSE) -> 
C97: =VLOOKUP(A97,'Analyse S'!A:D,2,FALSE) -> 
C98: =VLOOKUP(A98,'Analyse S'!A:D,2,FALSE) -> 
C99: =VLOOKUP(A99,'Analyse S'!A:D,2,FALSE) -> 
C100: =VLOOKUP(A100,'Analyse S'!A:D,2,FALSE) -> 
C101: =VLOOKUP(A101,'Analyse S'!A:D,2,FALSE) -> 
C102: =VLOOKUP(A102,'Analyse S'!A:D,2,FALSE) -> 
C103: =VLOOKUP(A103,'Analyse S'!A:D,2,FALSE) -> 
C104: =VLOOKUP(A104,'Analyse S'!A:D,2,FALSE) -> 
C105: =VLOOKUP(A105,'Analyse S'!A:D,2,FALSE) -> 
C106: =VLOOKUP(A106,'Analyse S'!A:D,2,FALSE) -> 
C107: =VLOOKUP(A107,'Analyse S'!A:D,2,FALSE) -> 
C108: =VLOOKUP(A108,'Analyse S'!A:D,2,FALSE) -> 
C109: =VLOOKUP(A109,'Analyse S'!A:D,2,FALSE) -> 
C110: =VLOOKUP(A110,'Analyse S'!A:D,2,FALSE) -> 
C111: =VLOOKUP(A111,'Analyse S'!A:D,2,FALSE) -> 
C112: =VLOOKUP(A112,'Analyse S'!A:D,2,FALSE) -> 
C113: =VLOOKUP(A113,'Analyse S'!A:D,2,FALSE) -> 
C114: =VLOOKUP(A114,'Analyse S'!A:D,2,FALSE) -> 
C115: =VLOOKUP(A115,'Analyse S'!A:D,2,FALSE) -> 
C116: =VLOOKUP(A116,'Analyse S'!A:D,2,FALSE) -> 
C117: =VLOOKUP(A117,'Analyse S'!A:D,2,FALSE) -> 
C118: =VLOOKUP(A118,'Analyse S'!A:D,2,FALSE) -> 
C119: =VLOOKUP(A119,'Analyse S'!A:D,2,FALSE) -> 
C120: =VLOOKUP(A120,'Analyse S'!A:D,2,FALSE) -> 
C121: =VLOOKUP(A121,'Analyse S'!A:D,2,FALSE) -> 
C122: =VLOOKUP(A122,'Analyse S'!A:D,2,FALSE) -> 
C123: =VLOOKUP(A123,'Analyse S'!A:D,2,FALSE) -> 
C124: =VLOOKUP(A124,'Analyse S'!A:D,2,FALSE) -> 
C125: =VLOOKUP(A125,'Analyse S'!A:D,2,FALSE) -> 
C126: =VLOOKUP(A126,'Analyse S'!A:D,2,FALSE) -> 
C127: =VLOOKUP(A127,'Analyse S'!A:D,2,FALSE) -> 
C128: =VLOOKUP(A128,'Analyse S'!A:D,2,FALSE) -> 
C129: =VLOOKUP(A129,'Analyse S'!A:D,2,FALSE) -> 
C130: =VLOOKUP(A130,'Analyse S'!A:D,2,FALSE) -> 
C131: =VLOOKUP(A131,'Analyse S'!A:D,2,FALSE) -> 
C132: =VLOOKUP(A132,'Analyse S'!A:D,2,FALSE) -> 
C133: =VLOOKUP(A133,'Analyse S'!A:D,2,FALSE) -> 
C134: =VLOOKUP(A134,'Analyse S'!A:D,2,FALSE) -> 
C135: =VLOOKUP(A135,'Analyse S'!A:D,2,FALSE) -> 
C136: =VLOOKUP(A136,'Analyse S'!A:D,2,FALSE) -> 
C137: =VLOOKUP(A137,'Analyse S'!A:D,2,FALSE) -> 
C138: =VLOOKUP(A138,'Analyse S'!A:D,2,FALSE) -> 
C139: =VLOOKUP(A139,'Analyse S'!A:D,2,FALSE) -> 
C140: =VLOOKUP(A140,'Analyse S'!A:D,2,FALSE) -> 
C141: =VLOOKUP(A141,'Analyse S'!A:D,2,FALSE) -> 
C142: =VLOOKUP(A142,'Analyse S'!A:D,2,FALSE) -> 
C143: =VLOOKUP(A143,'Analyse S'!A:D,2,FALSE) -> 
C144: =VLOOKUP(A144,'Analyse S'!A:D,2,FALSE) -> 
C145: =VLOOKUP(A145,'Analyse S'!A:D,2,FALSE) -> 
C146: =VLOOKUP(A146,'Analyse S'!A:D,2,FALSE) -> 
C147: =VLOOKUP(A147,'Analyse S'!A:D,2,FALSE) -> 
C148: =VLOOKUP(A148,'Analyse S'!A:D,2,FALSE) -> 
C149: =VLOOKUP(A149,'Analyse S'!A:D,2,FALSE) -> 
C150: =VLOOKUP(A150,'Analyse S'!A:D,2,FALSE) -> 
C151: =VLOOKUP(A151,'Analyse S'!A:D,2,FALSE) -> 
C152: =VLOOKUP(A152,'Analyse S'!A:D,2,FALSE) -> 
C153: =VLOOKUP(A153,'Analyse S'!A:D,2,FALSE) -> 
C154: =VLOOKUP(A154,'Analyse S'!A:D,2,FALSE) -> 
C155: =VLOOKUP(A155,'Analyse S'!A:D,2,FALSE) -> 
C156: =VLOOKUP(A156,'Analyse S'!A:D,2,FALSE) -> 
C157: =VLOOKUP(A157,'Analyse S'!A:D,2,FALSE) -> 
C158: =VLOOKUP(A158,'Analyse S'!A:D,2,FALSE) -> 
C159: =VLOOKUP(A159,'Analyse S'!A:D,2,FALSE) -> 
C160: =VLOOKUP(A160,'Analyse S'!A:D,2,FALSE) -> 
C161: =VLOOKUP(A161,'Analyse S'!A:D,2,FALSE) -> 
C162: =VLOOKUP(A162,'Analyse S'!A:D,2,FALSE) -> 
C163: =VLOOKUP(A163,'Analyse S'!A:D,2,FALSE) -> 
C164: =VLOOKUP(A164,'Analyse S'!A:D,2,FALSE) -> 
C165: =VLOOKUP(A165,'Analyse S'!A:D,2,FALSE) -> 
C166: =VLOOKUP(A166,'Analyse S'!A:D,2,FALSE) -> 
C167: =VLOOKUP(A167,'Analyse S'!A:D,2,FALSE) -> 
C168: =VLOOKUP(A168,'Analyse S'!A:D,2,FALSE) -> 
C169: =VLOOKUP(A169,'Analyse S'!A:D,2,FALSE) -> 
C170: =VLOOKUP(A170,'Analyse S'!A:D,2,FALSE) -> 
C171: =VLOOKUP(A171,'Analyse S'!A:D,2,FALSE) -> 
C172: =VLOOKUP(A172,'Analyse S'!A:D,2,FALSE) -> 
C173: =VLOOKUP(A173,'Analyse S'!A:D,2,FALSE) -> 
C174: =VLOOKUP(A174,'Analyse S'!A:D,2,FALSE) -> 
C175: =VLOOKUP(A175,'Analyse S'!A:D,2,FALSE) -> 
C176: =VLOOKUP(A176,'Analyse S'!A:D,2,FALSE) -> 
C177: =VLOOKUP(A177,'Analyse S'!A:D,2,FALSE) -> 
C178: =VLOOKUP(A178,'Analyse S'!A:D,2,FALSE) -> 
C179: =VLOOKUP(A179,'Analyse S'!A:D,2,FALSE) -> 
C180: =VLOOKUP(A180,'Analyse S'!A:D,2,FALSE) -> 
C181: =VLOOKUP(A181,'Analyse S'!A:D,2,FALSE) -> 
C182: =VLOOKUP(A182,'Analyse S'!A:D,2,FALSE) -> 
C183: =VLOOKUP(A183,'Analyse S'!A:D,2,FALSE) -> 
C184: =VLOOKUP(A184,'Analyse S'!A:D,2,FALSE) -> 
C185: =VLOOKUP(A185,'Analyse S'!A:D,2,FALSE) -> 
C186: =VLOOKUP(A186,'Analyse S'!A:D,2,FALSE) -> 
C187: =VLOOKUP(A187,'Analyse S'!A:D,2,FALSE) -> 
C188: =VLOOKUP(A188,'Analyse S'!A:D,2,FALSE) -> 
C189: =VLOOKUP(A189,'Analyse S'!A:D,2,FALSE) -> 
C190: =VLOOKUP(A190,'Analyse S'!A:D,2,FALSE) -> 
C191: =VLOOKUP(A191,'Analyse S'!A:D,2,FALSE) -> 
C192: =VLOOKUP(A192,'Analyse S'!A:D,2,FALSE) -> 
C193: =VLOOKUP(A193,'Analyse S'!A:D,2,FALSE) -> 
C194: =VLOOKUP(A194,'Analyse S'!A:D,2,FALSE) -> 
C195: =VLOOKUP(A195,'Analyse S'!A:D,2,FALSE) -> 
C196: =VLOOKUP(A196,'Analyse S'!A:D,2,FALSE) -> 
C197: =VLOOKUP(A197,'Analyse S'!A:D,2,FALSE) -> 
C198: =VLOOKUP(A198,'Analyse S'!A:D,2,FALSE) -> 
C199: =VLOOKUP(A199,'Analyse S'!A:D,2,FALSE) -> 
C200: =VLOOKUP(A200,'Analyse S'!A:D,2,FALSE) -> 
... 2558 more rows

Sheet Sorties S1
A1: Étiquettes de lignes | B1: Somme de Qté réelle prenant | C1: Vérification
A2: 006-0937-20 | B2: 12 | C2: =VLOOKUP(A2,'Analyse S'!A:D,3,FALSE) -> 12
A3: 058-004-001-6 | B3: 2 | C3: =VLOOKUP(A3,'Analyse S'!A:D,3,FALSE) -> 2
A4: 058-004-201-6 | B4: 2 | C4: =VLOOKUP(A4,'Analyse S'!A:D,3,FALSE) -> 2
A5: 058-004-301-6 | B5: 2 | C5: =VLOOKUP(A5,'Analyse S'!A:D,3,FALSE) -> 2
A6: 058-004-601-6 | B6: 2 | C6: =VLOOKUP(A6,'Analyse S'!A:D,3,FALSE) -> 2
A7: 135D14C001 | B7: 2 | C7: =VLOOKUP(A7,'Analyse S'!A:D,3,FALSE) -> 2
A8: 1567100-04 | B8: 1 | C8: =VLOOKUP(A8,'Analyse S'!A:D,3,FALSE) -> 1
A9: 23310CA010010 | B9: 1 | C9: =VLOOKUP(A9,'Analyse S'!A:D,3,FALSE) -> 1
A10: 307-003-005-6 | B10: 1 | C10: =VLOOKUP(A10,'Analyse S'!A:D,3,FALSE) -> 1
A11: 307-016-501-0 | B11: 1 | C11: =VLOOKUP(A11,'Analyse S'!A:D,3,FALSE) -> 1
A12: 307-017-701-0 | B12: 1 | C12: =VLOOKUP(A12,'Analyse S'!A:D,3,FALSE) -> 1
A13: 307-018-502-0 | B13: 1 | C13: =VLOOKUP(A13,'Analyse S'!A:D,3,FALSE) -> 1
A14: 307-020-701-0 | B14: 1 | C14: =VLOOKUP(A14,'Analyse S'!A:D,3,FALSE) -> 1
A15: 307-020-801-0 | B15: 1 | C15: =VLOOKUP(A15,'Analyse S'!A:D,3,FALSE) -> 1
A16: 307-021-001-0 | B16: 1 | C16: =VLOOKUP(A16,'Analyse S'!A:D,3,FALSE) -> 1
A17: 307-028-801-0 | B17: 1 | C17: =VLOOKUP(A17,'Analyse S'!A:D,3,FALSE) -> 1
A18: 307-035-601-0 | B18: 2 | C18: =VLOOKUP(A18,'Analyse S'!A:D,3,FALSE) -> 2
A19: 307-035-702-0 | B19: 2 | C19: =VLOOKUP(A19,'Analyse S'!A:D,3,FALSE) -> 2
A20: 307-035-802-0 | B20: 2 | C20: =VLOOKUP(A20,'Analyse S'!A:D,3,FALSE) -> 2
A21: 307-038-110-0 | B21: 4 | C21: =VLOOKUP(A21,'Analyse S'!A:D,3,FALSE) -> 4
A22: 307-038-210-0 | B22: 4 | C22: =VLOOKUP(A22,'Analyse S'!A:D,3,FALSE) -> 4
A23: 307-050-106-0 | B23: 15 | C23: =VLOOKUP(A23,'Analyse S'!A:D,3,FALSE) -> 15
A24: 307-055-606-0 | B24: 16 | C24: =VLOOKUP(A24,'Analyse S'!A:D,3,FALSE) -> 16
A25: 307-056-101-0 | B25: 21 | C25: =VLOOKUP(A25,'Analyse S'!A:D,3,FALSE) -> 21
A26: 307-056-603-0 | B26: 20 | C26: =VLOOKUP(A26,'Analyse S'!A:D,3,FALSE) -> 20
A27: 307-057-003-0 | B27: 20 | C27: =VLOOKUP(A27,'Analyse S'!A:D,3,FALSE) -> 20
A28: 307-057-721-0 | B28: 5 | C28: =VLOOKUP(A28,'Analyse S'!A:D,3,FALSE) -> 5
A29: 307-057-817-0 | B29: 5 | C29: =VLOOKUP(A29,'Analyse S'!A:D,3,FALSE) -> 5
A30: 307-057-907-0 | B30: 8 | C30: =VLOOKUP(A30,'Analyse S'!A:D,3,FALSE) -> 8
A31: 307-058-007-0 | B31: 14 | C31: =VLOOKUP(A31,'Analyse S'!A:D,3,FALSE) -> 14
A32: 307-058-801-0 | B32: 20 | C32: =VLOOKUP(A32,'Analyse S'!A:D,3,FALSE) -> 20
A33: 307-058-903-0 | B33: 11 | C33: =VLOOKUP(A33,'Analyse S'!A:D,3,FALSE) -> 11
A34: 307-059-011-0 | B34: 2 | C34: =VLOOKUP(A34,'Analyse S'!A:D,3,FALSE) -> 2
A35: 307-080-303-6 | B35: 2 | C35: =VLOOKUP(A35,'Analyse S'!A:D,3,FALSE) -> 2
A36: 307-080-703-6 | B36: 2 | C36: =VLOOKUP(A36,'Analyse S'!A:D,3,FALSE) -> 2
A37: 307-081-903-0 | B37: 8 | C37: =VLOOKUP(A37,'Analyse S'!A:D,3,FALSE) -> 8
A38: 307-087-603-0 | B38: 4 | C38: =VLOOKUP(A38,'Analyse S'!A:D,3,FALSE) -> 4
A39: 307-087-702-0 | B39: 1 | C39: =VLOOKUP(A39,'Analyse S'!A:D,3,FALSE) -> 1
A40: 307-089-601-0 | B40: 4 | C40: =VLOOKUP(A40,'Analyse S'!A:D,3,FALSE) -> 4
A41: 307-102-903-6 | B41: 36 | C41: =VLOOKUP(A41,'Analyse S'!A:D,3,FALSE) -> 36
A42: 307-114-301-0 | B42: 1 | C42: =VLOOKUP(A42,'Analyse S'!A:D,3,FALSE) -> 1
A43: 307-117-401-0 | B43: 1 | C43: =VLOOKUP(A43,'Analyse S'!A:D,3,FALSE) -> 1
A44: 307-134-501-0 | B44: 1 | C44: =VLOOKUP(A44,'Analyse S'!A:D,3,FALSE) -> 1
A45: 307-137-912-0 | B45: 2 | C45: =VLOOKUP(A45,'Analyse S'!A:D,3,FALSE) -> 2
A46: 307-137-962-0 | B46: 3 | C46: =VLOOKUP(A46,'Analyse S'!A:D,3,FALSE) -> 3
A47: 307-148-109-0 | B47: 2 | C47: =VLOOKUP(A47,'Analyse S'!A:D,3,FALSE) -> 2
A48: 307-156-101-0 | B48: 3 | C48: =VLOOKUP(A48,'Analyse S'!A:D,3,FALSE) -> 3
A49: 307-185-704-6 | B49: 25 | C49: =VLOOKUP(A49,'Analyse S'!A:D,3,FALSE) -> 25
A50: 307-186-601-0 | B50: 1 | C50: =VLOOKUP(A50,'Analyse S'!A:D,3,FALSE) -> 1
A51: 307-186-701-0 | B51: 1 | C51: =VLOOKUP(A51,'Analyse S'!A:D,3,FALSE) -> 1
A52: 307-187-801-6 | B52: 1 | C52: =VLOOKUP(A52,'Analyse S'!A:D,3,FALSE) -> 1
A53: 307-190-401-0 | B53: 1 | C53: =VLOOKUP(A53,'Analyse S'!A:D,3,FALSE) -> 1
A54: 307-193-401-0 | B54: 1 | C54: =VLOOKUP(A54,'Analyse S'!A:D,3,FALSE) -> 1
A55: 307-194-202-0 | B55: 1 | C55: =VLOOKUP(A55,'Analyse S'!A:D,3,FALSE) -> 1
A56: 307-209-702-0 | B56: 3 | C56: =VLOOKUP(A56,'Analyse S'!A:D,3,FALSE) -> 3
A57: 307-230-602-6 | B57: 64 | C57: =VLOOKUP(A57,'Analyse S'!A:D,3,FALSE) -> 64
A58: 307-230-702-6 | B58: 2 | C58: =VLOOKUP(A58,'Analyse S'!A:D,3,FALSE) -> 2
A59: 307-230-802-6 | B59: 6 | C59: =VLOOKUP(A59,'Analyse S'!A:D,3,FALSE) -> 6
A60: 307-230-902-6 | B60: 19 | C60: =VLOOKUP(A60,'Analyse S'!A:D,3,FALSE) -> 19
A61: 307-231-003-6 | B61: 248 | C61: =VLOOKUP(A61,'Analyse S'!A:D,3,FALSE) -> 248
A62: 307-231-103-6 | B62: 1 | C62: =VLOOKUP(A62,'Analyse S'!A:D,3,FALSE) -> 1
A63: 307-231-203-6 | B63: 2 | C63: =VLOOKUP(A63,'Analyse S'!A:D,3,FALSE) -> 2
A64: 307-231-303-6 | B64: 57 | C64: =VLOOKUP(A64,'Analyse S'!A:D,3,FALSE) -> 57
A65: 307-231-403-6 | B65: 113 | C65: =VLOOKUP(A65,'Analyse S'!A:D,3,FALSE) -> 113
A66: 307-231-503-6 | B66: 1 | C66: =VLOOKUP(A66,'Analyse S'!A:D,3,FALSE) -> 1
A67: 307-231-603-6 | B67: 2 | C67: =VLOOKUP(A67,'Analyse S'!A:D,3,FALSE) -> 2
A68: 307-231-703-6 | B68: 17 | C68: =VLOOKUP(A68,'Analyse S'!A:D,3,FALSE) -> 17
A69: 307-231-803-6 | B69: 140 | C69: =VLOOKUP(A69,'Analyse S'!A:D,3,FALSE) -> 140
A70: 307-231-903-6 | B70: 6 | C70: =VLOOKUP(A70,'Analyse S'!A:D,3,FALSE) -> 6
A71: 307-232-003-6 | B71: 3 | C71: =VLOOKUP(A71,'Analyse S'!A:D,3,FALSE) -> 3
A72: 307-232-103-6 | B72: 53 | C72: =VLOOKUP(A72,'Analyse S'!A:D,3,FALSE) -> 53
A73: 307-232-302-0 | B73: 45 | C73: =VLOOKUP(A73,'Analyse S'!A:D,3,FALSE) -> 45
A74: 307-232-401-0 | B74: 440 | C74: =VLOOKUP(A74,'Analyse S'!A:D,3,FALSE) -> 440
A75: 307-232-606-0 | B75: 124 | C75: =VLOOKUP(A75,'Analyse S'!A:D,3,FALSE) -> 124
A76: 307-232-901-0 | B76: 205 | C76: =VLOOKUP(A76,'Analyse S'!A:D,3,FALSE) -> 205
A77: 307-233-801-0 | B77: 368 | C77: =VLOOKUP(A77,'Analyse S'!A:D,3,FALSE) -> 368
A78: 307-250-507-0 | B78: 3 | C78: =VLOOKUP(A78,'Analyse S'!A:D,3,FALSE) -> 3
A79: 307-250-605-6 | B79: 4 | C79: =VLOOKUP(A79,'Analyse S'!A:D,3,FALSE) -> 4
A80: 307-250-903-0 | B80: 4 | C80: =VLOOKUP(A80,'Analyse S'!A:D,3,FALSE) -> 4
A81: 307-251-305-0 | B81: 2 | C81: =VLOOKUP(A81,'Analyse S'!A:D,3,FALSE) -> 2
A82: 307-251-409-0 | B82: 3 | C82: =VLOOKUP(A82,'Analyse S'!A:D,3,FALSE) -> 3
A83: 307-251-505-0 | B83: 4 | C83: =VLOOKUP(A83,'Analyse S'!A:D,3,FALSE) -> 4
A84: 307-251-601-0 | B84: 36 | C84: =VLOOKUP(A84,'Analyse S'!A:D,3,FALSE) -> 36
A85: 307-251-705-0 | B85: 2 | C85: =VLOOKUP(A85,'Analyse S'!A:D,3,FALSE) -> 2
A86: 307-254-301-0 | B86: 24 | C86: =VLOOKUP(A86,'Analyse S'!A:D,3,FALSE) -> 24
A87: 307-254-702-6 | B87: 6 | C87: =VLOOKUP(A87,'Analyse S'!A:D,3,FALSE) -> 6
A88: 307-264-510-6 | B88: 3 | C88: =VLOOKUP(A88,'Analyse S'!A:D,3,FALSE) -> 3
A89: 307-265-003-6 | B89: 6 | C89: =VLOOKUP(A89,'Analyse S'!A:D,3,FALSE) -> 6
A90: 307-266-702-0 | B90: 2 | C90: =VLOOKUP(A90,'Analyse S'!A:D,3,FALSE) -> 2
A91: 307-267-103-0 | B91: 4 | C91: =VLOOKUP(A91,'Analyse S'!A:D,3,FALSE) -> 4
A92: 307-267-202-6 | B92: 4 | C92: =VLOOKUP(A92,'Analyse S'!A:D,3,FALSE) -> 4
A93: 307-268-602-0 | B93: 1 | C93: =VLOOKUP(A93,'Analyse S'!A:D,3,FALSE) -> 1
A94: 307-268-802-0 | B94: 4 | C94: =VLOOKUP(A94,'Analyse S'!A:D,3,FALSE) -> 4
A95: 307-269-902-0 | B95: 4 | C95: =VLOOKUP(A95,'Analyse S'!A:D,3,FALSE) -> 4
A96: 307-270-001-0 | B96: 2 | C96: =VLOOKUP(A96,'Analyse S'!A:D,3,FALSE) -> 2
A97: 307-270-601-0 | B97: 6 | C97: =VLOOKUP(A97,'Analyse S'!A:D,3,FALSE) -> 6
A98: 307-270-801-0 | B98: 16 | C98: =VLOOKUP(A98,'Analyse S'!A:D,3,FALSE) -> 16
A99: 307-270-901-0 | B99: 12 | C99: =VLOOKUP(A99,'Analyse S'!A:D,3,FALSE) -> 12
A100: 307-273-301-0 | B100: 2 | C100: =VLOOKUP(A100,'Analyse S'!A:D,3,FALSE) -> 2
A101: 307-274-302-0 | B101: 4 | C101: =VLOOKUP(A101,'Analyse S'!A:D,3,FALSE) -> 4
A102: 307-279-502-6 | B102: 4 | C102: =VLOOKUP(A102,'Analyse S'!A:D,3,FALSE) -> 4
A103: 307-279-602-6 | B103: 20 | C103: =VLOOKUP(A103,'Analyse S'!A:D,3,FALSE) -> 20
A104: 307-279-702-6 | B104: 4 | C104: =VLOOKUP(A104,'Analyse S'!A:D,3,FALSE) -> 4
A105: 307-281-202-6 | B105: 4 | C105: =VLOOKUP(A105,'Analyse S'!A:D,3,FALSE) -> 4
A106: 307-281-302-6 | B106: 12 | C106: =VLOOKUP(A106,'Analyse S'!A:D,3,FALSE) -> 12
A107: 307-281-402-6 | B107: 4 | C107: =VLOOKUP(A107,'Analyse S'!A:D,3,FALSE) -> 4
A108: 307-281-601-6 | B108: 12 | C108: =VLOOKUP(A108,'Analyse S'!A:D,3,FALSE) -> 12
A109: 307-281-701-6 | B109: 5 | C109: =VLOOKUP(A109,'Analyse S'!A:D,3,FALSE) -> 5
A110: 307-282-001-0 | B110: 84 | C110: =VLOOKUP(A110,'Analyse S'!A:D,3,FALSE) -> 84
A111: 307-282-101-0 | B111: 60 | C111: =VLOOKUP(A111,'Analyse S'!A:D,3,FALSE) -> 60
A112: 307-282-201-0 | B112: 1 | C112: =VLOOKUP(A112,'Analyse S'!A:D,3,FALSE) -> 1
A113: 307-801-805-0 | B113: 1 | C113: =VLOOKUP(A113,'Analyse S'!A:D,3,FALSE) -> 1
A114: 307-812-501-0 | B114: 1 | C114: =VLOOKUP(A114,'Analyse S'!A:D,3,FALSE) -> 1
A115: 307-813-302-0 | B115: 8 | C115: =VLOOKUP(A115,'Analyse S'!A:D,3,FALSE) -> 8
A116: 307-835-704-0 | B116: 1 | C116: =VLOOKUP(A116,'Analyse S'!A:D,3,FALSE) -> 1
A117: 307-836-903-0 | B117: 1 | C117: =VLOOKUP(A117,'Analyse S'!A:D,3,FALSE) -> 1
A118: 307-902-107-0 | B118: 2 | C118: =VLOOKUP(A118,'Analyse S'!A:D,3,FALSE) -> 2
A119: 307-902-206-0 | B119: 2 | C119: =VLOOKUP(A119,'Analyse S'!A:D,3,FALSE) -> 2
A120: 307-902-602-0 | B120: 8 | C120: =VLOOKUP(A120,'Analyse S'!A:D,3,FALSE) -> 8
A121: 307-903-002-0 | B121: 2 | C121: =VLOOKUP(A121,'Analyse S'!A:D,3,FALSE) -> 2
A122: 307-908-705-0 | B122: 1 | C122: =VLOOKUP(A122,'Analyse S'!A:D,3,FALSE) -> 1
A123: 307-930-802-0 | B123: 9 | C123: =VLOOKUP(A123,'Analyse S'!A:D,3,FALSE) -> 9
A124: 307-943-406-0 | B124: 1 | C124: =VLOOKUP(A124,'Analyse S'!A:D,3,FALSE) -> 1
A125: 307-943-906-0 | B125: 1 | C125: =VLOOKUP(A125,'Analyse S'!A:D,3,FALSE) -> 1
A126: 309-042-004-0 | B126: 1 | C126: =VLOOKUP(A126,'Analyse S'!A:D,3,FALSE) -> 1
A127: 309-059-503-0 | B127: 1 | C127: =VLOOKUP(A127,'Analyse S'!A:D,3,FALSE) -> 1
A128: 309-101-802-0 | B128: 16 | C128: =VLOOKUP(A128,'Analyse S'!A:D,3,FALSE) -> 16
A129: 309-141-001-0 | B129: 1 | C129: =VLOOKUP(A129,'Analyse S'!A:D,3,FALSE) -> 1
A130: 309-165-201-0 | B130: 1 | C130: =VLOOKUP(A130,'Analyse S'!A:D,3,FALSE) -> 1
A131: 394-178-301-0 | B131: 1 | C131: =VLOOKUP(A131,'Analyse S'!A:D,3,FALSE) -> 1
A132: 394-179-301-0 | B132: 1 | C132: =VLOOKUP(A132,'Analyse S'!A:D,3,FALSE) -> 1
A133: 416B16-3 | B133: 1 | C133: =VLOOKUP(A133,'Analyse S'!A:D,3,FALSE) -> 1
A134: 416B20-3 | B134: 1 | C134: =VLOOKUP(A134,'Analyse S'!A:D,3,FALSE) -> 1
A135: 443-349-00-C | B135: 21 | C135: =VLOOKUP(A135,'Analyse S'!A:D,3,FALSE) -> 21
A136: 443-600-0 | B136: 1 | C136: =VLOOKUP(A136,'Analyse S'!A:D,3,FALSE) -> 1
A137: 551-806-008-0 | B137: 1 | C137: =VLOOKUP(A137,'Analyse S'!A:D,3,FALSE) -> 1
A138: 551-810-910-0 | B138: 1 | C138: =VLOOKUP(A138,'Analyse S'!A:D,3,FALSE) -> 1
A139: 602991 | B139: 2 | C139: =VLOOKUP(A139,'Analyse S'!A:D,3,FALSE) -> 2
A140: 649-392-351-0 | B140: 32 | C140: =VLOOKUP(A140,'Analyse S'!A:D,3,FALSE) -> 32
A141: 649-972-052-0 | B141: 1 | C141: =VLOOKUP(A141,'Analyse S'!A:D,3,FALSE) -> 1
A142: 649-972-058-0 | B142: 6 | C142: =VLOOKUP(A142,'Analyse S'!A:D,3,FALSE) -> 6
A143: 650-002-551-0 | B143: 440 | C143: =VLOOKUP(A143,'Analyse S'!A:D,3,FALSE) -> 440
A144: 650-151-500-0 | B144: 2 | C144: =VLOOKUP(A144,'Analyse S'!A:D,3,FALSE) -> 2
A145: 650-151-505-0 | B145: 6 | C145: =VLOOKUP(A145,'Analyse S'!A:D,3,FALSE) -> 6
A146: 650-151-508-0 | B146: 49 | C146: =VLOOKUP(A146,'Analyse S'!A:D,3,FALSE) -> 49
A147: 650-151-538-0 | B147: 8 | C147: =VLOOKUP(A147,'Analyse S'!A:D,3,FALSE) -> 8
A148: 650-151-922-0 | B148: 2 | C148: =VLOOKUP(A148,'Analyse S'!A:D,3,FALSE) -> 2
A149: 650-152-854-0 | B149: 2 | C149: =VLOOKUP(A149,'Analyse S'!A:D,3,FALSE) -> 2
A150: 650-152-855-0 | B150: 3 | C150: =VLOOKUP(A150,'Analyse S'!A:D,3,FALSE) -> 3
A151: 650-153-212-0 | B151: 2 | C151: =VLOOKUP(A151,'Analyse S'!A:D,3,FALSE) -> 2
A152: 650-153-213-0 | B152: 5 | C152: =VLOOKUP(A152,'Analyse S'!A:D,3,FALSE) -> 5
A153: 650-153-216-0 | B153: 34 | C153: =VLOOKUP(A153,'Analyse S'!A:D,3,FALSE) -> 34
A154: 650-153-220-0 | B154: 1 | C154: =VLOOKUP(A154,'Analyse S'!A:D,3,FALSE) -> 1
A155: 650-153-231-0 | B155: 14 | C155: =VLOOKUP(A155,'Analyse S'!A:D,3,FALSE) -> 14
A156: 650-153-352-0 | B156: 2 | C156: =VLOOKUP(A156,'Analyse S'!A:D,3,FALSE) -> 2
A157: 650-153-353-0 | B157: 16 | C157: =VLOOKUP(A157,'Analyse S'!A:D,3,FALSE) -> 16
A158: 650-153-354-0 | B158: 6 | C158: =VLOOKUP(A158,'Analyse S'!A:D,3,FALSE) -> 6
A159: 650-153-502-0 | B159: 5 | C159: =VLOOKUP(A159,'Analyse S'!A:D,3,FALSE) -> 5
A160: 650-153-504-0 | B160: 33 | C160: =VLOOKUP(A160,'Analyse S'!A:D,3,FALSE) -> 33
A161: 650-153-506-0 | B161: 15 | C161: =VLOOKUP(A161,'Analyse S'!A:D,3,FALSE) -> 15
A162: 650-153-525-0 | B162: 4 | C162: =VLOOKUP(A162,'Analyse S'!A:D,3,FALSE) -> 4
A163: 650-192-657-0 | B163: 1 | C163: =VLOOKUP(A163,'Analyse S'!A:D,3,FALSE) -> 1
A164: 650-192-665-0 | B164: 1 | C164: =VLOOKUP(A164,'Analyse S'!A:D,3,FALSE) -> 1
A165: 650-192-677-0 | B165: 1 | C165: =VLOOKUP(A165,'Analyse S'!A:D,3,FALSE) -> 1
A166: 650-192-706-0 | B166: 6 | C166: =VLOOKUP(A166,'Analyse S'!A:D,3,FALSE) -> 6
A167: 650-192-708-0 | B167: 1 | C167: =VLOOKUP(A167,'Analyse S'!A:D,3,FALSE) -> 1
A168: 650-201-641-0 | B168: 12 | C168: =VLOOKUP(A168,'Analyse S'!A:D,3,FALSE) -> 12
A169: 650-301-811-0 | B169: 16 | C169: =VLOOKUP(A169,'Analyse S'!A:D,3,FALSE) -> 16
A170: 650-305-341-0 | B170: 2 | C170: =VLOOKUP(A170,'Analyse S'!A:D,3,FALSE) -> 2
A171: 650-309-004-0 | B171: 18 | C171: =VLOOKUP(A171,'Analyse S'!A:D,3,FALSE) -> 18
A172: 650-341-122-0 | B172: 5 | C172: =VLOOKUP(A172,'Analyse S'!A:D,3,FALSE) -> 5
A173: 650-341-124-0 | B173: 1 | C173: =VLOOKUP(A173,'Analyse S'!A:D,3,FALSE) -> 1
A174: 650-342-220-0 | B174: 1 | C174: =VLOOKUP(A174,'Analyse S'!A:D,3,FALSE) -> 1
A175: 650-362-621-6 | B175: 20 | C175: =VLOOKUP(A175,'Analyse S'!A:D,3,FALSE) -> 20
A176: 650-365-011-0 | B176: 1 | C176: =VLOOKUP(A176,'Analyse S'!A:D,3,FALSE) -> 1
A177: 650-365-021-0 | B177: 1 | C177: =VLOOKUP(A177,'Analyse S'!A:D,3,FALSE) -> 1
A178: 650-365-026-0 | B178: 2 | C178: =VLOOKUP(A178,'Analyse S'!A:D,3,FALSE) -> 2
A179: 650-366-520-0 | B179: 1 | C179: =VLOOKUP(A179,'Analyse S'!A:D,3,FALSE) -> 1
A180: 650-389-036-0 | B180: 1 | C180: =VLOOKUP(A180,'Analyse S'!A:D,3,FALSE) -> 1
A181: 650-391-009-0 | B181: 1 | C181: =VLOOKUP(A181,'Analyse S'!A:D,3,FALSE) -> 1
A182: 650-391-048-0 | B182: 2 | C182: =VLOOKUP(A182,'Analyse S'!A:D,3,FALSE) -> 2
A183: 650-393-057-0 | B183: 2 | C183: =VLOOKUP(A183,'Analyse S'!A:D,3,FALSE) -> 2
A184: 650-393-065-0 | B184: 2 | C184: =VLOOKUP(A184,'Analyse S'!A:D,3,FALSE) -> 2
A185: 650-393-080-0 | B185: 1 | C185: =VLOOKUP(A185,'Analyse S'!A:D,3,FALSE) -> 1
A186: 650-393-081-0 | B186: 1 | C186: =VLOOKUP(A186,'Analyse S'!A:D,3,FALSE) -> 1
A187: 650-393-236-0 | B187: 3 | C187: =VLOOKUP(A187,'Analyse S'!A:D,3,FALSE) -> 3
A188: 650-393-260-0 | B188: 1 | C188: =VLOOKUP(A188,'Analyse S'!A:D,3,FALSE) -> 1
A189: 650-393-268-0 | B189: 2 | C189: =VLOOKUP(A189,'Analyse S'!A:D,3,FALSE) -> 2
A190: 650-403-003-0 | B190: 1 | C190: =VLOOKUP(A190,'Analyse S'!A:D,3,FALSE) -> 1
A191: 650-403-022-0 | B191: 1 | C191: =VLOOKUP(A191,'Analyse S'!A:D,3,FALSE) -> 1
A192: 650-403-042-0 | B192: 1 | C192: =VLOOKUP(A192,'Analyse S'!A:D,3,FALSE) -> 1
A193: 650-403-062-0 | B193: 1 | C193: =VLOOKUP(A193,'Analyse S'!A:D,3,FALSE) -> 1
A194: 650-773-106-0 | B194: 80 | C194: =VLOOKUP(A194,'Analyse S'!A:D,3,FALSE) -> 80
A195: 650-773-112-0 | B195: 4 | C195: =VLOOKUP(A195,'Analyse S'!A:D,3,FALSE) -> 4
A196: 650-779-053-0 | B196: 2 | C196: =VLOOKUP(A196,'Analyse S'!A:D,3,FALSE) -> 2
A197: 650-779-063-0 | B197: 30 | C197: =VLOOKUP(A197,'Analyse S'!A:D,3,FALSE) -> 30
A198: 650-781-105-0 | B198: 23 | C198: =VLOOKUP(A198,'Analyse S'!A:D,3,FALSE) -> 23
A199: 650-781-108-0 | B199: 12 | C199: =VLOOKUP(A199,'Analyse S'!A:D,3,FALSE) -> 12
A200: 650-783-049-0 | B200: 66 | C200: =VLOOKUP(A200,'Analyse S'!A:D,3,FALSE) -> 66
... 2558 more rows
